Department  Family,Entity, Transaction Date, Expense Type, Expense Area, Supplier Name, Component Code, Amount,Invoice Description
DFID,DFID,26/08/2014,Project delivery costs  supplier services ,West and Southern Africa ,Maria A. Arregui ,104038-101 ,536.74,
DFID,DFID,15/08/2014,Conferences  Seminars & Meeting/Event Resource ,West and Southern Africa ,Ideialab Limitada ,204497-102 ,"1,403.90",
DFID,DFID,06/08/2014,Aid Programme - Accountable Grant Payments ,West and Southern Africa ,EGPAF ,202637-105 ,"160,119.46",
DFID,DFID,26/08/2014,Project delivery costs  supplier services ,West and Southern Africa ,ADAM SMITH INTERNATIONAL ,201139-101 ,"272,006.10",
DFID,DFID,11/08/2014,Project delivery costs  supplier services ,West and Southern Africa ,Crown Agents Bank ,202183-101 ,"131,116.77",
DFID,DFID,13/08/2014,Contract & Agency Staff ,Business Solutions Division Level ,ALLEGIS GROUP LIMITED ,200001-101 ,936.00,
DFID,DFID,07/08/2014,Contract & Agency Staff ,Business Solutions Division Level ,ALLEGIS GROUP LIMITED ,200001-101 ,"3,276.00",
DFID,DFID,07/08/2014,Contract & Agency Staff ,Business Solutions Division Level ,ALLEGIS GROUP LIMITED ,200001-101 ,"5,616.00",
DFID,DFID,07/08/2014,Contract & Agency Staff ,Business Solutions Division Level ,ALLEGIS GROUP LIMITED ,200001-101 ,"2,250.00",
DFID,DFID,07/08/2014,Hardware -monitors ,Business Solutions Division Level ,FCO SERVICES ,200003-168 ,"11,522.28",
DFID,DFID,06/08/2014,Aid Programme - Pooled/Basket funding ,Research and Evidence Division ,WELLCOME TRUST ,114075-103 ,"6,830.60",
DFID,DFID,05/08/2014,Research & Development costs ,Research and Evidence Division ,UNIVERSITY OF BRIGHTON ,204567-101 ,"79,596.00",
DFID,DFID,28/08/2014,Project delivery costs  supplier services ,Western Asia Division ,Supplier Name withheld ,202112-102 ,"144,218.92",
DFID,DFID,07/08/2014,Project delivery costs  supplier services ,Western Asia Division ,Supplier Name withheld ,201098-102 ,"328,191.17",
DFID,DFID,01/08/2014,Project delivery costs  supplier services ,Research and Evidence Division ,ASSOCIATION OF COMMONWEALTH UNIVER ,203778-109 ,"9,086.43",
DFID,DFID,18/08/2014,Aid Programme - Accountable Grant Payments ,Middle East  Humanitarian & Security Division ,International Foundation for Electoral Systems (IFES) ,203351-102 ,"77,557.66",
DFID,DFID,11/08/2014,Other travel costs ,Middle East  Humanitarian & Security Division ,Susan Frank ,203939-103 ,532.65,
DFID,DFID,27/08/2014,Project delivery costs  supplier services ,East and Central Africa ,HEALTH PARTNERS INTERNATIONAL ,200250-115 ,"340,139.90",
DFID,DFID,05/08/2014,Project delivery costs  supplier services ,East and Central Africa ,HEALTH PARTNERS INTERNATIONAL ,200250-115 ,"265,013.00",
DFID,DFID,26/08/2014,Project delivery costs  supplier services ,East and Central Africa ,IPA-International Procurement Agency (BV) ,200787-109 ,"96,726.82",
DFID,DFID,26/08/2014,Project delivery costs  supplier services ,East and Central Africa ,IPA-International Procurement Agency (BV) ,200787-109 ,"23,023.89",
DFID,DFID,26/08/2014,Project delivery costs  supplier services ,East and Central Africa ,IPA-International Procurement Agency (BV) ,200787-109 ,679.20,
DFID,DFID,26/08/2014,Project delivery costs  supplier services ,East and Central Africa ,IPA-International Procurement Agency (BV) ,200787-109 ,"2,853.44",
DFID,DFID,12/08/2014,Aid Programme - Accountable Grant Payments ,International Relations Division ,IFPRI ,203707-101 ,"180,080.99",
DFID,DFID,05/08/2014,Project delivery costs  supplier services ,Western Asia Division ,Hannah Roberts  ,203039-102 ,"8,250.00",
DFID,DFID,27/08/2014,Project delivery costs  supplier services ,Asia  Caribbean and Overseas Territories ,BMB MOTT  MACDONALD ,107480-101 ,"83,947.15",
DFID,DFID,27/08/2014,Project delivery costs  supplier services ,Asia  Caribbean and Overseas Territories ,BMB MOTT  MACDONALD ,107480-101 ,"161,295.01",
DFID,DFID,01/08/2014,Training - Course Fees ,Middle East  Humanitarian & Security Division ,RedR UK ,204055-101 ,"1,354.00",
DFID,DFID,20/08/2014,Training - Course Fees ,Middle East  Humanitarian & Security Division ,RedR UK ,204055-101 ,"3,357.00",
DFID,DFID,01/08/2014,Training - Course Fees ,Middle East  Humanitarian & Security Division ,RedR UK ,204055-101 ,"1,354.00",
DFID,DFID,28/08/2014,Aid Programme - Accountable Grant Payments ,Policy Division ,Center for Global Development ,202820-101 ,"214,400.00",
DFID,DFID,29/08/2014,Aid Programme - Accountable Grant Payments ,Policy Division ,INSTITUTE OF DEVELOPMENT STUDIES ,202830-101 ,"297,986.57",
DFID,DFID,12/08/2014,Training Providers/Facilitation Services ,Middle East  Humanitarian & Security Division ,Capita  Business Services ,204084-101 ,"1,959.82",
DFID,DFID,01/08/2014,Project delivery costs  supplier services ,Middle East  Humanitarian & Security Division ,ADAM SMITH INTERNATIONAL  LTD ,203792-101 ,"139,500.00",
DFID,DFID,06/08/2014,Storage & Distribution costs ,Asia  Caribbean and Overseas Territories ,PICKFORDS LTD ,100150-101 ,"1,273.91",
DFID,DFID,12/08/2014,Repairs  Maintenance and Alterations – Other Building Costs ,Group Operations ,MITIE Technical Facilities Management Ltd ,203717-101 ,"4,378.50",
DFID,DFID,11/08/2014,Repairs  Maintenance and Alterations – Other Building Costs ,Group Operations ,MITIE Technical Facilities Management Ltd ,203717-101 ,584.37,
DFID,DFID,12/08/2014,Repairs  Maintenance and Alterations – Other Building Costs ,Group Operations ,MITIE Technical Facilities Management Ltd ,203717-101 ,"1,835.90",
DFID,DFID,28/08/2014,Repairs  Maintenance and Alterations – Other Building Costs ,Group Operations ,MITIE Technical Facilities Management Ltd ,203717-101 ,605.75,
DFID,DFID,11/08/2014,Repairs  Maintenance and Alterations – Other Building Costs ,Group Operations ,MITIE Technical Facilities Management Ltd ,203717-101 ,"21,932.42",
DFID,DFID,19/08/2014,Repairs  Maintenance and Alterations – Other Building Costs ,Group Operations ,MITIE Technical Facilities Management Ltd ,203717-101 ,"1,071.65",
DFID,DFID,12/08/2014,Repairs  Maintenance and Alterations – Other Building Costs ,Group Operations ,MITIE Technical Facilities Management Ltd ,203717-101 ,714.00,
DFID,DFID,12/08/2014,Repairs  Maintenance and Alterations – Other Building Costs ,Group Operations ,MITIE Technical Facilities Management Ltd ,203717-101 ,743.69,
DFID,DFID,12/08/2014,Repairs  Maintenance and Alterations – Other Building Costs ,Group Operations ,MITIE Technical Facilities Management Ltd ,203717-101 ,"6,807.00",
DFID,DFID,12/08/2014,Repairs  Maintenance and Alterations – Other Building Costs ,Group Operations ,MITIE Technical Facilities Management Ltd ,203717-101 ,550.00,
DFID,DFID,12/08/2014,Repairs  Maintenance and Alterations – Other Building Costs ,Group Operations ,MITIE Technical Facilities Management Ltd ,203717-101 ,"3,544.20",
DFID,DFID,15/08/2014,FCO shared service charges ,Group Operations ,FCO SERVICES ,203717-101 ,"1,860.18",
DFID,DFID,12/08/2014,Repairs  Maintenance and Alterations – Other Building Costs ,Group Operations ,MITIE Technical Facilities Management Ltd ,203717-101 ,"2,220.00",
DFID,DFID,08/08/2014,Aid Programme - Voluntary contributions ,East and Central Africa ,AUC- Shared Values  Election ,204458-101 ,"500,000.00",
DFID,DFID,22/08/2014,Aid Programme - Trust Funds contributions ,Western Asia Division ,IBRD (HSBC)  C/O THE WORLD BANK ,203029-106 ,"1,000,000.00",
DFID,DFID,22/08/2014,Project delivery costs  supplier services ,Asia  Caribbean and Overseas Territories ,PRICEWATERHOUSECOOPERS ,203964-101 ,"54,552.67",
DFID,DFID,12/08/2014,Aid Programme - Voluntary contributions ,Asia  Caribbean and Overseas Territories ,ASIAN DEVELOPMENT.BANK ,203601-114 ,"1,026,000.00",
DFID,DFID,04/08/2014,Aid Programme - Accountable Grant Payments ,Asia  Caribbean and Overseas Territories ,INTERNATIONAL RESCUE COMMITTEE UK ,203400-101 ,"260,356.00",
DFID,DFID,15/08/2014,Aid Programme - Other Financial Aid to Government ,Asia  Caribbean and Overseas Territories ,St Helena Department of Finance ,203955-101 ,"2,516,667.00",
DFID,DFID,15/08/2014,Aid Programme - Other Financial Aid to Government ,Asia  Caribbean and Overseas Territories ,St Helena Department of Finance ,203955-102 ,"1,340,000.00",
DFID,DFID,18/08/2014,Project delivery costs  supplier services ,West and Southern Africa ,ATOS CONSULTING LIMITED ,200452-101 ,"677,838.85",
DFID,DFID,07/08/2014,Project delivery costs  supplier services ,West and Southern Africa ,MALARIA CONSORTIUM ,104223-101 ,"341,158.00",
DFID,DFID,27/08/2014,Project delivery costs  supplier services ,West and Southern Africa ,ADAM SMITH INTERNATIONAL  LTD ,201433-102 ,"1,537,750.94",
DFID,DFID,21/08/2014,Cleaning Costs ,Group Operations ,MITIE Technical Facilities Management Ltd ,100106-101 ,"12,518.18",
DFID,DFID,21/08/2014,Facilities Management payments ,Group Operations ,MITIE Technical Facilities Management Ltd ,100106-101 ,"12,794.04",
DFID,DFID,21/08/2014,Project delivery costs  supplier services ,Group Operations ,MITIE Technical Facilities Management Ltd ,203717-101 ,660.23,
DFID,DFID,21/08/2014,Facilities Management payments ,Group Operations ,MITIE Technical Facilities Management Ltd ,203717-101 ,"20,878.62",
DFID,DFID,21/08/2014,Cleaning Costs ,Group Operations ,MITIE Technical Facilities Management Ltd ,203717-101 ,"15,698.00",
DFID,DFID,21/08/2014,Repairs  Maint  Alter - Property & Constrct. Services ,Group Operations ,MITIE Technical Facilities Management Ltd ,203717-101 ,"8,589.86",
DFID,DFID,01/08/2014,Property rates ,Group Operations ,CITY OF WESTMINSTER ,203717-101 ,"124,496.00",Property Rates for DFID HQ (Whitehall)  August 2014 installment
DFID,DFID,07/08/2014,Aid Programme - Accountable Grant Payments ,Middle East  Humanitarian & Security Division ,Save the Children Fund UK ,204351-101 ,"195,256.63",
DFID,DFID,19/08/2014,Aid Programme - Accountable Grant Payments ,Middle East  Humanitarian & Security Division ,Save the Children Fund UK ,204813-101 ,"841,825.00",
DFID,DFID,21/08/2014,Aid Programme - Accountable Grant Payments ,West and Southern Africa ,Hope for Future Generations ,203648-111 ,"257,116.56",
DFID,DFID,22/08/2014,Aid Programme - Accountable Grant Payments ,West and Southern Africa ,JHU Center for Communication Programs ,203648-103 ,"65,117.00",
DFID,DFID,21/08/2014,Aid Programme - Accountable Grant Payments ,International Relations Division ,UNESCO ,202791-101 ,"73,867.87",
DFID,DFID,12/08/2014,Training Providers/Facilitation Services ,Middle East  Humanitarian & Security Division ,Capita  Business Services ,100049-101 ,"7,958.07",
DFID,DFID,25/08/2014,Aid Programme - Core contributions ,Middle East  Humanitarian & Security Division ,The Centre for Humanitarian Dialogue ,202602-101 ,"50,000.00",
DFID,DFID,22/08/2014,Project delivery costs  supplier services ,International Finance Division ,PRICEWATERHOUSECOOPERS ,114178-101 ,"46,414.67",
DFID,DFID,20/08/2014,Project delivery costs  supplier services ,International Finance Division ,Nathan Associates London Ltd ,114009-101 ,"21,461.50",
DFID,DFID,07/08/2014,Project delivery costs  supplier services ,International Finance Division ,Nathan Associates London Ltd ,114009-102 ,"349,433.55",
DFID,DFID,22/08/2014,Aid Programme - Accountable Grant Payments ,East and Central Africa ,LIVERPOOL SCHOOL OF TROPICAL MEDICINE ,202549-104 ,"441,990.51",
DFID,DFID,07/08/2014,Hotels - Accommodation only ,Policy Division ,Department of Energy and Climate Change (DECC) ,100274-111 ,744.19,
DFID,DFID,07/08/2014,Hotels - Accommodation only ,Policy Division ,Department of Energy and Climate Change (DECC) ,202402-107 ,"1,116.28",
DFID,DFID,19/08/2014,Aid Programme - Accountable Grant Payments ,Policy Division ,CONCERN WORLDWIDE ,202921-114 ,"15,957.00",
DFID,DFID,13/08/2014,Air fares ,International Relations Division ,Recipient name withheld ,202319-101 ,544.67,
DFID,DFID,20/08/2014,Training - Course Fees ,International Relations Division ,Alliance Francaise de Bruxeles Europe ,202319-101 ,"1,694.28",
DFID,DFID,07/08/2014,Secure Staff Accommodation ,International Relations Division ,Recipient name withheld ,202319-101 ,"3,905.52",
DFID,DFID,04/08/2014,Training - Course Fees ,International Relations Division ,Alliance Francaise de Bruxeles Europe ,202319-101 ,"1,612.20",
DFID,DFID,01/08/2014,Relocation costs ,International Relations Division ,Recipient name withheld ,202319-101 ,"1,872.65",
DFID,DFID,28/08/2014,Legal costs ,East and Central Africa ,TREASURY SOLICITORS CASH ACC ,101612-101 ,"5,333.80",
DFID,DFID,28/08/2014,Legal costs ,East and Central Africa ,TREASURY SOLICITORS CASH ACC ,101612-101 ,"2,140.00",
DFID,DFID,28/08/2014,Legal costs ,East and Central Africa ,TREASURY SOLICITORS CASH ACC ,101612-101 ,760.00,
DFID,DFID,26/08/2014,Storage & Distribution costs ,East and Central Africa ,PICKFORDS LTD ,202913-104 ,"18,403.29",
DFID,DFID,12/08/2014,Project delivery costs  supplier services ,East and Central Africa ,ATOS CONSULTING LIMITED ,202574-104 ,"82,436.62",
DFID,DFID,14/08/2014,Project delivery costs  supplier services ,Asia  Caribbean and Overseas Territories ,TURNER & TOWNSEND ,202433-108 ,"143,120.50",
DFID,DFID,08/08/2014,Hostile Environment Training ,Asia  Caribbean and Overseas Territories ,Pilgrims Group ,202775-108 ,673.13,
DFID,DFID,18/08/2014,Mobile telephones & accessories ,West and Southern Africa ,ECONET ,101638-104 ,695.82,
DFID,DFID,18/08/2014,Oil - Other Utilities ,West and Southern Africa ,British Embassy ,101638-103 ,"1,917.66",
DFID,DFID,18/08/2014,Oil - Other Utilities ,West and Southern Africa ,British Embassy ,101638-103 ,"4,868.26",
DFID,DFID,18/08/2014,Oil - Other Utilities ,West and Southern Africa ,British Embassy ,101638-103 ,"3,143.71",
DFID,DFID,07/08/2014,Aid Programme - Trust Funds contributions ,Policy Division ,IBRD HSBC T ,203034-102 ,"1,000,000.00",
DFID,DFID,25/08/2014,Project delivery costs  supplier services ,Asia  Caribbean and Overseas Territories ,ADAM SMITH INTERNATIONAL  LTD ,201367-103 ,"337,668.80",
DFID,DFID,21/08/2014,Hostile Environment Training ,Western Asia Division ,Pilgrims Group ,100020-101 ,673.13,
DFID,DFID,14/08/2014,Project delivery costs  supplier services ,Western Asia Division ,Supplier Name withheld ,202733-102 ,"1,028,668.75",
DFID,DFID,22/08/2014,Project delivery costs  supplier services ,West and Southern Africa ,HEALTH PARTNERS INTERNATIONAL ,202694-101 ,"516,810.41",
DFID,DFID,06/08/2014,Aid Programme - Accountable Grant Payments ,Communications Division ,OPPORTUNITY INTERNATIONAL UK ,202197-101 ,"293,374.00",
DFID,DFID,07/08/2014,Aid Programme - Accountable Grant Payments ,Communications Division ,OPPORTUNITY INTERNATIONAL UK ,203559-104 ,"260,078.00",
DFID,DFID,27/08/2014,Aid Programme - Accountable Grant Payments ,Research and Evidence Division ,Université Laval ,203049-101 ,"430,664.80",
DFID,DFID,07/08/2014,Air fares ,East and Central Africa ,Bon Voyage Travel Centre Ltd(USD) ,101634-101 ,944.74,
DFID,DFID,01/08/2014,Hostile Environment Training ,East and Central Africa ,Pilgrims Group ,101634-101 ,666.19,
DFID,DFID,13/08/2014,Aid Programme - Accountable Grant Payments ,East and Central Africa ,Aga Khan Foundation (Tanzania) ,200716-101 ,"609,768.00",
DFID,DFID,13/08/2014,Aid Programme - Accountable Grant Payments ,East and Central Africa ,BRAC Maendeleo Tanzania ,202901-101 ,"299,128.80",
DFID,DFID,01/08/2014,Aid Programme - Accountable Grant Payments ,Policy Division ,THE TIDES CENTER ,204178-101 ,"66,505.00",
DFID,DFID,25/08/2014,Contract & Agency Staff ,Finance and Corporate Performance Division ,Michael Page Int. Recruitment Ltd ,100201-101 ,"1,005.89",
DFID,DFID,14/08/2014,Contract & Agency Staff ,Finance and Corporate Performance Division ,Michael Page Int. Recruitment Ltd ,100201-101 ,"1,257.36",
DFID,DFID,18/08/2014,Contract & Agency Staff ,Finance and Corporate Performance Division ,Michael Page Int. Recruitment Ltd ,100201-101 ,"1,005.89",
DFID,DFID,01/08/2014,Repairs  Maint  Alter - Property & Constrct. Services ,East and Central Africa ,SAFECON Electro Mechanical Works PLC ,100082-101 ,"5,642.82",
DFID,DFID,01/08/2014,Repairs  Maint  Alter - Property & Constrct. Services ,East and Central Africa ,SAFECON Electro Mechanical Works PLC ,101612-101 ,"1,438.76",
DFID,DFID,01/08/2014,Repairs  Maint  Alter - Property & Constrct. Services ,East and Central Africa ,SAFECON Electro Mechanical Works PLC ,101612-101 ,"1,337.76",
DFID,DFID,01/08/2014,Repairs  Maint  Alter - Property & Constrct. Services ,East and Central Africa ,SAFECON Electro Mechanical Works PLC ,101612-101 ,"2,249.01",
DFID,DFID,25/08/2014,Project delivery costs  supplier services ,East and Central Africa ,LTS International Ltd. ,201866-106 ,"3,185.00",
DFID,DFID,25/08/2014,Project delivery costs  supplier services ,East and Central Africa ,KPMG EAST AFRICA LTD ,201866-109 ,"34,499.13",
DFID,DFID,13/08/2014,Project delivery costs  supplier services ,East and Central Africa ,KPMG EAST AFRICA LTD ,201866-109 ,"32,079.31",
DFID,DFID,22/08/2014,Oil - Other Utilities ,West and Southern Africa ,NP (SL) Ltd ,100214-101 ,"1,588.18",
DFID,DFID,21/08/2014,Medical/Health Services ,West and Southern Africa ,British High Commission ,100214-101 ,738.07,
DFID,DFID,14/08/2014,Storage & Distribution costs ,West and Southern Africa ,PICKFORDS LTD ,101629-101 ,"5,817.18",
DFID,DFID,21/08/2014,Medical/Health Services ,West and Southern Africa ,British High Commission ,101629-101 ,"1,107.10",
DFID,DFID,14/08/2014,Office Supplies ,West and Southern Africa ,Office Solutions ,101629-101 ,574.82,
DFID,DFID,07/08/2014,Oil - Other Utilities ,West and Southern Africa ,NP (SL) Ltd ,101629-101 ,"1,395.47",
DFID,DFID,22/08/2014,Oil - Other Utilities ,West and Southern Africa ,NP (SL) Ltd ,101629-101 ,"3,707.04",
DFID,DFID,29/08/2014,Project delivery costs  supplier services ,West and Southern Africa ,ADAM SMITH INTERNATIONAL  LTD ,203719-101 ,"81,193.96",
DFID,DFID,19/08/2014,Project delivery costs  supplier services ,Growth and Resilience Division ,PRICEWATERHOUSECOOPERS ,203732-101 ,"131,589.17",
DFID,DFID,20/08/2014,Aid Programme - Core contributions ,Research and Evidence Division ,CABI ,202748-101 ,"334,000.00",
DFID,DFID,07/08/2014,Research & Development costs ,Research and Evidence Division ,LIVERPOOL SCHOOL OF TROPICAL MEDICINE ,201400-101 ,"222,482.82",
DFID,DFID,21/08/2014,Research & Development costs ,Research and Evidence Division ,UNIVERSITY OF  OXFORD ,200425-101 ,"958,379.27",
DFID,DFID,06/08/2014,Aid Programme - Pooled/Basket funding ,Research and Evidence Division ,WELLCOME TRUST ,114075-102 ,"8,731.58",
DFID,DFID,05/08/2014,Research & Development costs ,Research and Evidence Division ,LIVERPOOL SCHOOL OF TROPICAL MEDICINE ,201401-101 ,"331,213.00",
DFID,DFID,28/08/2014,Aid Programme - Accountable Grant Payments ,Asia  Caribbean and Overseas Territories ,Manusher Jonno Foundation ,202958-101 ,"1,500,000.00",
DFID,DFID,13/08/2014,Project delivery costs  supplier services ,Research and Evidence Division ,PRICEWATERHOUSECOOPERS ,200822-101 ,"98,988.96",
DFID,DFID,13/08/2014,Project delivery costs  supplier services ,Research and Evidence Division ,PRICEWATERHOUSECOOPERS ,200822-101 ,"8,617.82",
DFID,DFID,15/08/2014,Project delivery costs  supplier services ,East and Central Africa ,OPTIONS CONSULTANCY SERVICES LIMITED ,201512-102 ,"543,869.00",
DFID,DFID,19/08/2014,Project delivery costs  supplier services ,West and Southern Africa ,ADAM SMITH INTERNATIONAL  LTD ,202539-106 ,"21,657.40",
DFID,DFID,21/08/2014,Project delivery costs  supplier services ,West and Southern Africa ,ADAM SMITH INTERNATIONAL  LTD ,202539-106 ,"378,063.60",
DFID,DFID,21/08/2014,Project delivery costs  supplier services ,West and Southern Africa ,ADAM SMITH INTERNATIONAL  LTD ,202539-106 ,"108,440.00",
DFID,DFID,22/08/2014,Project delivery costs  supplier services ,West and Southern Africa ,ADAM SMITH INTERNATIONAL  LTD ,202539-106 ,"177,300.02",
DFID,DFID,08/08/2014,Aid Programme - Accountable Grant Payments ,West and Southern Africa ,FinMark  TRUST ,200880-102 ,"802,913.16",
DFID,DFID,05/08/2014,Aid Programme - Challenge Fund payments ,Policy Division ,Triple Line Crown Agents JV. ,201242-101 ,"550,115.60",
DFID,DFID,21/08/2014,Project delivery costs  supplier services ,Policy Division ,Triple Line Crown Agents JV. ,201242-101 ,"38,606.14",
DFID,DFID,29/08/2014,Aid Programme - Partnership Programme Arrangements ,Policy Division ,The Asia Foundation (GBP) ,202703-101 ,"611,257.50",
DFID,DFID,07/08/2014,Aid Programme - Partnership Programme Arrangements ,Policy Division ,Conciliation Resources ,202702-101 ,"250,644.75",
DFID,DFID,07/08/2014,Aid Programme - Partnership Programme Arrangements ,Policy Division ,ARTICLE 19 ,202556-101 ,"135,671.75",
DFID,DFID,20/08/2014,Aid Programme - Partnership Programme Arrangements ,Policy Division ,MALARIA CONSORTIUM ,202700-101 ,"667,567.50",
DFID,DFID,19/08/2014,Aid Programme - Partnership Programme Arrangements ,Policy Division ,COMIC RELIEF ,200645-101 ,"1,333,761.00",
DFID,DFID,20/08/2014,Aid Programme - Partnership Programme Arrangements ,Policy Division ,Fairtrade Labelling Organizations International e.V. ,201718-101 ,"750,000.00",
DFID,DFID,20/08/2014,Vehicle Petrol & Oil ,East and Central Africa ,TAAM Petroleum(SSP) ,202594-101 ,"1,223.61",
DFID,DFID,22/08/2014,Oil - Other Utilities ,East and Central Africa ,TAAM Petroleum Ltd(US$) ,202594-101 ,"13,432.79",
DFID,DFID,26/08/2014,Storage & Distribution costs ,East and Central Africa ,PICKFORDS LTD ,202594-101 ,"4,991.98",
DFID,DFID,04/08/2014,Oil - Other Utilities ,East and Central Africa ,TAAM Petroleum Ltd(US$) ,202594-101 ,"17,568.66",
DFID,DFID,11/08/2014,Vehicle Purchase Costs ,East and Central Africa ,AIR CHARTER SERVICE (STERLING) ,202594-101 ,"31,574.04",Vehicle transportation costs for August  to  South Sudan
DFID,DFID,30/08/2014,Staff Travel - Air Fares,East and Central Africa ,Recipient name withheld ,202594-101 ,981.91,
DFID,DFID,17/08/2014,Storage & Distribution costs ,East and Central Africa ,PICKFORDS LTD ,202586-101 ,"14,972.80",
DFID,DFID,20/08/2014,Vehicle Petrol & Oil ,East and Central Africa ,TAAM Petroleum(SSP) ,202586-101 ,"1,223.61",
DFID,DFID,04/08/2014,Oil - Other Utilities ,East and Central Africa ,TAAM Petroleum Ltd(US$) ,202586-101 ,"46,141.73",Cost of supply of fuel for generators in DFID office & secure staff accomodation in South Sudan
DFID,DFID,11/08/2014,Vehicle Purchase Costs ,East and Central Africa ,AIR CHARTER SERVICE (STERLING) ,202586-101 ,"31,150.00",Vehicle transportation costs for August to South Sudan
DFID,DFID,04/08/2014,Oil - Other Utilities ,East and Central Africa ,TAAM Petroleum Ltd(US$) ,202586-101 ,"17,568.65",
DFID,DFID,20/08/2014,Training - Course Fees ,East and Central Africa ,Juba Language Centre ,202586-101 ,"1,793.19",
DFID,DFID,26/08/2014,Storage & Distribution costs ,East and Central Africa ,PICKFORDS LTD ,202586-101 ,"4,555.97",
DFID,DFID,22/08/2014,Oil - Other Utilities ,East and Central Africa ,TAAM Petroleum Ltd(US$) ,202586-101 ,"44,211.86",Cost of supply of fuel for generators in DFID office & secure staff accomodation in South Sudan
DFID,DFID,08/08/2014,Hostile Environment Training ,Human Resources ,Pilgrims Group ,100266-101 ,673.13,
DFID,DFID,27/08/2014,Interview expenses ,Human Resources ,Recipient name withheld ,100269-128 ,"1,100.61",
DFID,DFID,13/08/2014,Contract & Agency Staff ,Human Resources ,Anderson Knight Ltd ,100270-104 ,597.18,
DFID,DFID,29/08/2014,Contract & Agency Staff ,Human Resources ,Anderson Knight Ltd ,100270-104 ,597.18,
DFID,DFID,08/08/2014,Contract & Agency Staff ,Human Resources ,Anderson Knight Ltd ,100270-104 ,597.18,
DFID,DFID,29/08/2014,Contract & Agency Staff ,Human Resources ,Anderson Knight Ltd ,100270-104 ,597.18,
DFID,DFID,05/08/2014,Interview expenses ,Human Resources ,Recipient name withheld ,100269-128 ,816.50,
DFID,DFID,08/08/2014,Air fares ,Human Resources ,Recipient name withheld ,100269-128 ,"2,393.14",
DFID,DFID,22/08/2014,Interview expenses ,Human Resources ,Recipient name withheld ,100269-128 ,"1,144.59",
DFID,DFID,26/08/2014,Interview expenses ,Human Resources ,Recipient name withheld ,100269-128 ,"2,082.05",
DFID,DFID,26/08/2014,Interview expenses ,Human Resources ,Recipient name withheld ,100269-128 ,"1,060.77",
DFID,DFID,05/08/2014,Interview expenses ,Human Resources ,Recipient name withheld ,100269-128 ,609.95,
DFID,DFID,08/08/2014,Travel - Subsistence ,Human Resources ,Recipient name withheld ,100269-128 ,"1,044.14",
DFID,DFID,01/08/2014,Interview expenses ,Human Resources ,Recipient name withheld ,100269-128 ,601.93,
DFID,DFID,19/08/2014,Research & Development costs ,Research and Evidence Division ,Government Actuary's Department ,203604-101 ,"5,000.00",
DFID,DFID,27/08/2014,Air fares ,Research and Evidence Division ,BCD Travel (USD) ,202392-101 ,738.07,
DFID,DFID,20/08/2014,Aid Programme - Accountable Grant Payments ,East and Central Africa ,VSO ,202525-101 ,"229,677.00",
DFID,DFID,13/08/2014,Legal costs ,Finance and Corporate Performance Division ,MICHELMORES SOLICITORS ,100008-101 ,"1,243.76",
DFID,DFID,14/08/2014,Interview expenses ,Human Resources ,Recipient name withheld ,100269-128 ,891.41,
DFID,DFID,28/08/2014,Legal costs ,Human Resources ,TREASURY SOLICITORS CASH ACC ,100269-136 ,780.00,
DFID,DFID,28/08/2014,Legal costs ,Human Resources ,TREASURY SOLICITORS CASH ACC ,100269-136 ,"2,239.50",
DFID,DFID,08/08/2014,Contract & Agency Staff ,Human Resources ,Anderson Knight Ltd ,100270-104 ,597.18,
DFID,DFID,29/08/2014,Contract & Agency Staff ,Human Resources ,Anderson Knight Ltd ,100270-104 ,597.18,
DFID,DFID,08/08/2014,Contract & Agency Staff ,Human Resources ,Anderson Knight Ltd ,100270-104 ,597.18,
DFID,DFID,29/08/2014,Contract & Agency Staff ,Human Resources ,Anderson Knight Ltd ,100270-104 ,597.18,
DFID,DFID,13/08/2014,Contract & Agency Staff ,Human Resources ,Anderson Knight Ltd ,100270-104 ,597.18,
DFID,DFID,08/08/2014,Training - Course Fees ,Group Operations ,PDP CONFERENCES ,201870-101 ,"4,548.60",
DFID,DFID,08/08/2014,Storage & Distribution costs ,Asia  Caribbean and Overseas Territories ,PICKFORDS LTD ,201739-101 ,"6,037.38",
DFID,DFID,28/08/2014,Aid Programme - Other Financial Aid to Government ,Asia  Caribbean and Overseas Territories ,Government of Montserrat - Montserrat Budget Support Grant ,203897-101 ,"3,085,740.00",
DFID,DFID,28/08/2014,Aid Programme - Other Financial Aid to Government ,Asia  Caribbean and Overseas Territories ,Government of Montserrat - Montserrat Budget Support Grant ,203897-102 ,"291,228.00",
DFID,DFID,28/08/2014,Aid Programme - Other Financial Aid to Government ,Asia  Caribbean and Overseas Territories ,Government of Montserrat - Montserrat Budget Support Grant ,203897-103 ,"255,162.00",
DFID,DFID,21/08/2014,Computer Software Licenses ,Business Solutions Division Level ,MTI Technology Ltd ,200002-116 ,"4,149.24",
DFID,DFID,13/08/2014,Taxi costs ,Business Solutions Division Level ,d&m taxis ,200001-101 ,550.00,
DFID,DFID,15/08/2014,Air fares ,Business Solutions Division Level ,British Airways PLC ,200001-101 ,"1,438.18",
DFID,DFID,26/08/2014,Data Network - land lines ,Business Solutions Division Level ,BT BACS PAYMENTS ,200002-130 ,"1,582.43",
DFID,DFID,04/08/2014,Data Network - land lines ,Business Solutions Division Level ,BT BACS PAYMENTS ,200002-130 ,"1,274.77",
DFID,DFID,05/08/2014,Air fares ,Western Asia Division ,Gerry's Travel Agency Private Limited ,101624-101 ,"1,226.81",
DFID,DFID,12/08/2014,Vehicle Petrol & Oil ,Western Asia Division ,Pakistan State Oil Company Ltd ,101624-101 ,"1,148.21",
DFID,DFID,12/08/2014,Air fares ,Western Asia Division ,Gerry's Travel Agency Private Limited ,101624-101 ,755.06,
DFID,DFID,07/08/2014,Electricity ,Group Operations ,EDF ENERGY ,203717-101 ,"11,375.36",
DFID,DFID,07/08/2014,Electricity ,Group Operations ,EDF ENERGY ,203717-101 ,"13,545.95",
DFID,DFID,29/08/2014,Repairs  Maintenance and Alterations – Other Building Costs ,Group Operations ,MITIE Technical Facilities Management Ltd ,203716-101 ,"2,819.62",
DFID,DFID,28/08/2014,Legal costs ,Policy Division ,TREASURY SOLICITORS CASH ACC ,100045-101 ,"1,080.00",
DFID,DFID,07/08/2014,Bank Charges/Services ,Group Operations ,Government Actuary's Department ,100182-101 ,"2,248.24",
DFID,DFID,20/08/2014,Project delivery costs  supplier services ,Asia  Caribbean and Overseas Territories ,OPTIONS CONSULTANCY SERVICES LIMITED ,201375-103 ,"309,192.00",
DFID,DFID,07/08/2014,Project delivery costs  supplier services ,Asia  Caribbean and Overseas Territories ,OPTIONS CONSULTANCY SERVICES LIMITED ,201375-103 ,"164,423.00",
DFID,DFID,28/08/2014,Project delivery costs  supplier services ,Asia  Caribbean and Overseas Territories ,OPTIONS CONSULTANCY SERVICES LIMITED ,201375-103 ,"3,881.00",
DFID,DFID,11/08/2014,Project delivery costs  supplier services ,Asia  Caribbean and Overseas Territories ,OPTIONS CONSULTANCY SERVICES LIMITED ,201375-103 ,"121,771.00",
DFID,DFID,27/08/2014,Project delivery costs  supplier services ,Asia  Caribbean and Overseas Territories ,OPTIONS CONSULTANCY SERVICES LIMITED ,201375-103 ,"43,825.00",
DFID,DFID,12/08/2014,Aid Programme - Accountable Grant Payments ,Asia  Caribbean and Overseas Territories ,Helvetas Nepal ,201489-101 ,"988,239.28",
DFID,DFID,05/08/2014,Project delivery costs  supplier services ,East and Central Africa ,Crown Agents Bank ,202619-101 ,"100,000.00",
DFID,DFID,14/08/2014,Project delivery costs  supplier services ,East and Central Africa ,Isobel Birch ,202619-106 ,"4,725.00",
DFID,DFID,18/08/2014,Cleaning Costs ,West and Southern Africa ,Sparklean Services Nig Ltd ,100152-110 ,"1,036.01",
DFID,DFID,18/08/2014,Cleaning Costs ,West and Southern Africa ,Sparklean Services Nig Ltd ,101622-105 ,"2,536.45",
DFID,DFID,22/08/2014,Training - Course Fees ,West and Southern Africa ,Capita  Business Services ,101622-106 ,680.00,
DFID,DFID,22/08/2014,Research & Development costs ,Research and Evidence Division ,INSTITUTE OF DEVELOPMENT STUDIES ,201097-102 ,"32,270.45",
DFID,DFID,22/08/2014,Research & Development costs ,Research and Evidence Division ,INSTITUTE OF DEVELOPMENT STUDIES ,201097-101 ,"37,500.00",
DFID,DFID,06/08/2014,Research & Development costs ,Research and Evidence Division ,Humanitarian Outcomes Limited ,203704-105 ,"146,083.00",
DFID,DFID,29/08/2014,Research & Development costs ,Research and Evidence Division ,Humanitarian Outcomes Limited ,203704-105 ,"146,083.00",
DFID,DFID,07/08/2014,Research & Development costs ,Research and Evidence Division ,HEALTH PARTNERS INTERNATIONAL ,204329-102 ,"10,000.00",
DFID,DFID,28/08/2014,Air fares ,West and Southern Africa ,Harvey World Travel Centurion ,101631-101 ,"3,403.50",
DFID,DFID,15/08/2014,Legal costs ,West and Southern Africa ,Webber Wentzel ,101631-101 ,"2,428.39",
DFID,DFID,05/08/2014,Storage & Distribution costs ,West and Southern Africa ,PICKFORDS LTD ,101631-101 ,"5,503.13",
DFID,DFID,27/08/2014,Hotels - Accommodation only ,West and Southern Africa ,Supplier Name withheld ,100152-105 ,"1,087.47",
DFID,DFID,15/08/2014,Air fares ,West and Southern Africa ,Supplier Name withheld ,100152-110 ,611.79,
DFID,DFID,15/08/2014,Vehicle Petrol & Oil ,West and Southern Africa ,British  High Commission Abuja ,100152-110 ,582.85,
DFID,DFID,26/08/2014,Courier & Bag Services ,West and Southern Africa ,British  High Commission Abuja ,100152-110 ,"1,178.54",
DFID,DFID,15/08/2014,Hotels - Accommodation only ,West and Southern Africa ,Supplier Name withheld ,101622-103 ,743.68,
DFID,DFID,27/08/2014,Hotels - Accommodation only ,West and Southern Africa ,Supplier Name withheld ,101622-103 ,"2,076.07",
DFID,DFID,15/08/2014,Air fares ,West and Southern Africa ,Supplier Name withheld ,101622-105 ,"1,489.30",
DFID,DFID,05/08/2014,Telephone Usage & services ,West and Southern Africa ,MTN Nigeria Communications Ltd ,100152-115 ,"1,430.08",
DFID,DFID,05/08/2014,Telephone Usage & services ,West and Southern Africa ,MTN Nigeria Communications Ltd ,101622-107 ,"3,501.24",
DFID,DFID,27/08/2014,Hotels - Accommodation only ,West and Southern Africa ,Supplier Name withheld ,101622-102 ,593.16,
DFID,DFID,15/08/2014,Vehicle Petrol & Oil ,West and Southern Africa ,British  High Commission Abuja ,101622-105 ,"1,426.98",
DFID,DFID,13/08/2014,Electricity ,West and Southern Africa ,Abuja Electricity Distribution Company ,101622-105 ,978.97,
DFID,DFID,26/08/2014,Courier & Bag Services ,West and Southern Africa ,British  High Commission Abuja ,101622-105 ,"2,885.39",
DFID,DFID,13/08/2014,Electricity ,West and Southern Africa ,Abuja Electricity Distribution Company ,101622-105 ,778.11,
DFID,DFID,08/08/2014,Electricity ,West and Southern Africa ,Abuja Electricity Distribution Company ,101622-105 ,884.94,
DFID,DFID,19/08/2014,Electricity ,West and Southern Africa ,Abuja Electricity Distribution Company ,101622-105 ,649.22,
DFID,DFID,15/08/2014,Air fares ,West and Southern Africa ,Supplier Name withheld ,101622-103 ,829.01,
DFID,DFID,15/08/2014,Hotels - Accommodation only ,West and Southern Africa ,Supplier Name withheld ,101622-104 ,520.57,
DFID,DFID,13/08/2014,Electricity ,West and Southern Africa ,Abuja Electricity Distribution Company ,101622-105 ,647.78,
DFID,DFID,15/08/2014,Hotels - Accommodation only ,West and Southern Africa ,Supplier Name withheld ,101622-105 ,855.23,
DFID,DFID,15/08/2014,Hotels - Accommodation only ,West and Southern Africa ,Supplier Name withheld ,101622-105 ,"1,439.38",
DFID,DFID,27/08/2014,Water charges ,West and Southern Africa ,FCT Water Board ,101622-105 ,518.07,
DFID,DFID,11/08/2014,Travel documentation costs ,West and Southern Africa ,Recipient name withheld ,101622-106 ,646.43,
DFID,DFID,05/08/2014,Storage & Distribution costs ,West and Southern Africa ,PICKFORDS LTD ,101622-106 ,"9,472.09",
DFID,DFID,15/08/2014,Training - Course Fees ,West and Southern Africa ,Purple Griffon Limited ,100152-114 ,"2,792.40",
DFID,DFID,20/08/2014,Project delivery costs  supplier services ,West and Southern Africa ,ECORYS UK Ltd. ,104200-104 ,"6,975.00",
DFID,DFID,19/08/2014,Project delivery costs  supplier services ,West and Southern Africa ,Dr Tarry Asoka ,203654-102 ,"4,279.15",
DFID,DFID,18/08/2014,Vehicle Hire Charges,West and Southern Africa ,Olorunshola Emmanuel ,200452-103 ,581.78,
DFID,DFID,26/08/2014,Aid Programme - Other Financial Aid to Government ,West and Southern Africa ,Government of South Africa  (RDP) Fund ,202542-103 ,"375,000.00",
DFID,DFID,05/08/2014,Project delivery costs  supplier services ,Western Asia Division ,Supplier Name withheld ,202190-105 ,"46,298.00",
DFID,DFID,28/08/2014,Project delivery costs  supplier services ,Western Asia Division ,Supplier Name withheld ,203951-101 ,"94,106.75",
DFID,DFID,19/08/2014,Vehicle Petrol & Oil ,Asia  Caribbean and Overseas Territories ,Sikder Filling and Serivce Station ,100025-101 ,579.99,
DFID,DFID,19/08/2014,Air fares ,Asia  Caribbean and Overseas Territories ,Saimon Overseas Ltd ,101603-102 ,"2,630.67",
DFID,DFID,19/08/2014,Electricity ,Asia  Caribbean and Overseas Territories ,Dhaka Electric Supply Company Ltd ,101603-101 ,"1,810.11",
DFID,DFID,27/08/2014,Aid Programme - Accountable Grant Payments ,Asia  Caribbean and Overseas Territories ,Transparency International (Bangladesh) ,200593-104 ,"500,000.00",
DFID,DFID,04/08/2014,Storage & Distribution costs ,Asia  Caribbean and Overseas Territories ,PICKFORDS LTD ,101603-101 ,837.52,
DFID,DFID,04/08/2014,Storage & Distribution costs ,Asia  Caribbean and Overseas Territories ,PICKFORDS LTD ,101603-101 ,"1,203.02",
DFID,DFID,28/08/2014,Hardware - printers ,East and Central Africa ,CANOCITY ,203596-103 ,"6,159.11",
DFID,DFID,15/08/2014,Aid Programme - Accountable Grant Payments ,East and Central Africa ,REFUGEE LAW PROJECT ,200250-103 ,"278,025.00",
DFID,DFID,21/08/2014,Project delivery costs  supplier services ,Asia  Caribbean and Overseas Territories ,DELOITTE TOUCHE TOHAMATSU INDIA PRIVATE LTD (DTTIPL) ,108003-101 ,"51,253.00",
DFID,DFID,25/08/2014,Project delivery costs  supplier services ,Asia  Caribbean and Overseas Territories ,DELOITTE TOUCHE TOHAMATSU INDIA PRIVATE LTD (DTTIPL) ,108003-101 ,"22,595.00",
DFID,DFID,12/08/2014,Project delivery costs  supplier services ,Asia  Caribbean and Overseas Territories ,XAVIER INSTITUTE OF MANAGEMENT ,202736-101 ,"6,996.76",
DFID,DFID,25/08/2014,Project delivery costs  supplier services ,Asia  Caribbean and Overseas Territories ,ERNST &  YOUNG PRIVATE LTD ,200599-101 ,"23,016.80",
DFID,DFID,07/08/2014,Project delivery costs  supplier services ,Asia  Caribbean and Overseas Territories ,ERNST &  YOUNG PRIVATE LTD ,200599-101 ,"58,656.10",
DFID,DFID,07/08/2014,Project delivery costs  supplier services ,Asia  Caribbean and Overseas Territories ,ERNST &  YOUNG PRIVATE LTD ,200599-101 ,"80,787.00",
DFID,DFID,07/08/2014,Project delivery costs  supplier services ,Asia  Caribbean and Overseas Territories ,ERNST &  YOUNG PRIVATE LTD ,200599-101 ,"11,878.90",
DFID,DFID,29/08/2014,Project delivery costs  supplier services ,Western Asia Division ,Supplier Name withheld ,202190-105 ,"36,530.54",
DFID,DFID,07/08/2014,Project delivery costs  supplier services ,Asia  Caribbean and Overseas Territories ,INTERNATIONAL TRADE CENTRE ,202762-105 ,"124,426.42",
DFID,DFID,14/08/2014,Project delivery costs  supplier services ,Asia  Caribbean and Overseas Territories ,INTERNATIONAL TRADE CENTRE ,202762-102 ,"5,788.29",
DFID,DFID,05/08/2014,Project delivery costs  supplier services ,Asia  Caribbean and Overseas Territories ,KANCHAN MATHUR ,114177-101 ,914.93,
DFID,DFID,15/08/2014,Project delivery costs  supplier services ,Asia  Caribbean and Overseas Territories ,DELOITTE TOUCHE TOHAMATSU INDIA PRIVATE LTD (DTTIPL) ,107891-102 ,"117,592.00",
DFID,DFID,11/08/2014,Project delivery costs  supplier services ,Asia  Caribbean and Overseas Territories ,ICF CONSULTING SERVICES LTD. ,114168-101 ,"64,764.00",
DFID,DFID,15/08/2014,Project delivery costs  supplier services ,Asia  Caribbean and Overseas Territories ,DELOITTE TOUCHE TOHAMATSU INDIA PRIVATE LTD (DTTIPL) ,107891-102 ,"44,942.75",
DFID,DFID,27/08/2014,Project delivery costs  supplier services ,Asia  Caribbean and Overseas Territories ,LTS International Ltd. ,203174-102 ,"40,678.28",
DFID,DFID,07/08/2014,Project delivery costs  supplier services ,Asia  Caribbean and Overseas Territories ,LTS International Ltd. ,203174-102 ,"22,462.89",
DFID,DFID,20/08/2014,Oil - Other Utilities ,West and Southern Africa ,Conoil plc ,100152-110 ,"1,846.20",
DFID,DFID,20/08/2014,Oil - Other Utilities ,West and Southern Africa ,Conoil plc ,101622-105 ,"16,615.78",
DFID,DFID,19/08/2014,Computer Consumables - Cds/memory/accessories ,West and Southern Africa ,Kezumotu Technologies Ltd ,100152-115 ,"1,320.80",
DFID,DFID,04/08/2014,Computer Consumables - Cds/memory/accessories ,West and Southern Africa ,Formats Projects Services Limited ,100152-115 ,533.07,
DFID,DFID,04/08/2014,Computer Consumables - Cds/memory/accessories ,West and Southern Africa ,Formats Projects Services Limited ,101622-107 ,"1,305.10",
DFID,DFID,05/08/2014,Aid Programme - Accountable Grant Payments ,West and Southern Africa ,Growth and Development Initiative ,204438-102 ,"13,195.58",
DFID,DFID,25/08/2014,Aid Programme - Voluntary contributions ,Growth and Resilience Division ,EITI Secretariat ,203308-101 ,"250,000.00",
DFID,DFID,29/08/2014,Project delivery costs  supplier services ,Policy Division ,Groupe-conseil baastel ,202948-119 ,"7,995.00",
DFID,DFID,27/08/2014,Telephone Usage & services ,East and Central Africa ,VODACOM TANZANIA LTD ,100230-101 ,"3,037.20",
DFID,DFID,15/08/2014,Facilities Management payments ,East and Central Africa ,JMC Umoja House ,100230-101 ,"1,831.15",
DFID,DFID,26/08/2014,Vehicle Petrol & Oil ,East and Central Africa ,British High Commission(Tsh) ,100230-101 ,"2,520.34",
DFID,DFID,26/08/2014,FCO shared service charges ,East and Central Africa ,British High Commission(Tsh) ,100230-101 ,"2,394.52",
DFID,DFID,26/08/2014,Telephone Usage & services ,East and Central Africa ,British High Commission(Tsh) ,100230-101 ,771.72,
DFID,DFID,07/08/2014,Air fares ,East and Central Africa ,Bon Voyage Travel Centre Ltd(USD) ,101634-101 ,"1,604.28",
DFID,DFID,15/08/2014,Facilities Management payments ,East and Central Africa ,Oysterbay Villas Ltd ,101634-101 ,715.99,
DFID,DFID,15/08/2014,Facilities Management payments ,East and Central Africa ,JMC Umoja House ,101634-101 ,"7,323.99",
DFID,DFID,12/08/2014,Hotels - Accommodation only ,East and Central Africa ,Southern Sun Hotels(T) Ltd (USD) ,101634-101 ,722.29,
DFID,DFID,07/08/2014,Hotels - Accommodation only ,East and Central Africa ,Sea Cliff Court Ltd ,101634-101 ,"5,676.47",
DFID,DFID,05/08/2014,Hotels - Accommodation only ,East and Central Africa ,Sea Cliff Court Ltd ,101634-101 ,"2,237.97",
DFID,DFID,13/08/2014,Electricity ,East and Central Africa ,Tanzania Electric supply company Ltd ,101634-101 ,"2,808.55",
DFID,DFID,26/08/2014,Hotels - Accommodation only ,East and Central Africa ,Southern Sun Hotels(T) Ltd (USD) ,101634-101 ,844.99,
DFID,DFID,26/08/2014,Electricity ,East and Central Africa ,British High Commission(Tsh) ,101634-101 ,869.52,
DFID,DFID,06/08/2014,Secure Staff Accommodation ,East and Central Africa ,Supplier Name withheld ,101634-101 ,"16,827.09",
DFID,DFID,12/08/2014,Secure Staff Accommodation ,East and Central Africa ,Supplier Name withheld ,101634-101 ,"8,965.50",
DFID,DFID,26/08/2014,Building Plant - Air Conditioners ,East and Central Africa ,British High Commission(Tsh) ,101634-101 ,833.14,
DFID,DFID,26/08/2014,Hardware - printers ,East and Central Africa ,British High Commission(Tsh) ,101634-101 ,"2,862.17",
DFID,DFID,08/08/2014,Secure Staff Accommodation ,East and Central Africa ,Supplier Name withheld ,101634-101 ,"26,334.52",Secure staff accommodation for 12 months ( August 2014 - July 2015)   DFID Tanzania
DFID,DFID,26/08/2014,Facilities Management payments ,East and Central Africa ,British High Commission(Tsh) ,101634-101 ,"2,409.66",
DFID,DFID,26/08/2014,Oil - Other Utilities ,East and Central Africa ,British High Commission(Tsh) ,101634-101 ,"1,318.31",
DFID,DFID,07/08/2014,Hotels - Accommodation only ,East and Central Africa ,Doubletree by Hilton Dar es Salaam ,101634-101 ,"1,261.09",
DFID,DFID,07/08/2014,Storage & Distribution costs ,East and Central Africa ,PICKFORDS LTD ,101634-101 ,"1,738.17",
DFID,DFID,25/08/2014,Project delivery costs  supplier services ,West and Southern Africa ,Abt Associates ,202342-102 ,"316,515.52",
DFID,DFID,27/08/2014,Aid Programme - Core contributions ,International Finance Division ,SG HAMBROS BANK & TRUST LTD (USD) ,203232-102 ,"9,000,000.00",
DFID,DFID,01/08/2014,Research & Development costs ,Research and Evidence Division ,Crown Agents Bank ,114010-102 ,"338,058.58",
DFID,DFID,01/08/2014,Aid Programme - Core contributions ,Research and Evidence Division ,INTERNATIONAL DEVELOPMENT RESEARCH CENTRE ,203737-101 ,"252,189.00",
DFID,DFID,08/08/2014,Aid Programme - Trust Funds contributions ,Research and Evidence Division ,IBRD HSBC T ,204151-101 ,"805,667.00",
DFID,DFID,08/08/2014,Aid Programme - Trust Funds contributions ,Research and Evidence Division ,IBRD HSBC T ,204151-103 ,"215,333.00",
DFID,DFID,08/08/2014,Aid Programme - Accountable Grant Payments ,Policy Division ,BOND ,203953-101 ,"250,000.00",
DFID,DFID,07/08/2014,Aid Programme - Voluntary contributions ,Trade for Development Division ,INTERNATIONAL TRADE CENTRE ,203984-101 ,"437,887.38",
DFID,DFID,26/08/2014,Storage & Distribution costs ,East and Central Africa ,PICKFORDS LTD ,101612-101 ,"1,701.31",
DFID,DFID,26/08/2014,Storage & Distribution costs ,East and Central Africa ,PICKFORDS LTD ,101612-101 ,"3,206.37",
DFID,DFID,29/08/2014,Project delivery costs  supplier services ,West and Southern Africa ,ADAM SMITH INTERNATIONAL  LTD ,104190-102 ,"823,229.83",
DFID,DFID,27/08/2014,Project delivery costs  supplier services ,West and Southern Africa ,ADAM SMITH INTERNATIONAL  LTD ,201433-102 ,"346,882.33",
DFID,DFID,22/08/2014,Project delivery costs  supplier services ,West and Southern Africa ,PRICEWATERHOUSECOOPERS ,104190-108 ,"108,108.37",
DFID,DFID,18/08/2014,Aid Programme - Accountable Grant Payments ,West and Southern Africa ,HivosGBP ,202351-102 ,"571,940.00",
DFID,DFID,15/08/2014,Aid Programme - Accountable Grant Payments ,West and Southern Africa ,TechnoServe  Incorporated ,202351-104 ,"94,978.00",
DFID,DFID,04/08/2014,Project delivery costs  supplier services ,West and Southern Africa ,ADAM SMITH INTERNATIONAL  LTD ,203666-102 ,"65,030.22",
DFID,DFID,08/08/2014,Secure Staff Accommodation ,Research and Evidence Division ,Supplier Name withheld ,203874-101 ,"26,334.52",Secure staff accommodation for 12 months ( August 2014  - July 2015 )
DFID,DFID,26/08/2014,Project delivery costs  supplier services ,Western Asia Division ,Ghazali Education Trust ,202697-109 ,"1,933.38",
DFID,DFID,26/08/2014,Project delivery costs  supplier services ,West and Southern Africa ,ADAM SMITH INTERNATIONAL  LTD ,203839-101 ,"43,394.26",
DFID,DFID,08/08/2014,Project delivery costs  supplier services ,West and Southern Africa ,Ibidapo Oyewole ,203920-101 ,"22,687.82",
DFID,DFID,11/08/2014,Project delivery costs  supplier services ,West and Southern Africa ,HEALTH PARTNERS INTERNATIONAL ,202694-101 ,"195,608.24",
DFID,DFID,21/08/2014,Project delivery costs  supplier services ,East and Central Africa ,OPTIONS CONSULTANCY SERVICES LIMITED ,201512-102 ,"126,661.00",
DFID,DFID,22/08/2014,DFID Learning Events ,Asia  Caribbean and Overseas Territories ,Recipient name withheld ,101605-101 ,"1,840.56",
DFID,DFID,21/08/2014,Project delivery costs  supplier services ,Asia  Caribbean and Overseas Territories ,ADAM SMITH INTERNATIONAL  LTD ,114234-102 ,"124,176.00",
DFID,DFID,04/08/2014,Aid Programme - Core contributions ,Global Funds ,IBRD HSBC T ,200763-101 ,"15,000,000.00",
DFID,DFID,27/08/2014,Oil - Other Utilities ,Western Asia Division ,Babar Ali Foundation ,101624-101 ,829.68,
DFID,DFID,19/08/2014,Hotels - Accommodation only ,East and Central Africa ,Golden Jubilee Limited (USD) ,101630-101 ,965.75,
DFID,DFID,27/08/2014,Air fares ,East and Central Africa ,BCD Travel (USD) ,101616-101 ,"1,010.14",
DFID,DFID,06/08/2014,Air fares ,East and Central Africa ,BCD Travel (USD) ,101616-101 ,511.71,
DFID,DFID,06/08/2014,Training - Course Fees ,East and Central Africa ,Capita  Business Services ,101630-101 ,"2,825.05",
DFID,DFID,06/08/2014,Hotels - Accommodation only ,East and Central Africa ,BCD Travel (USD) ,100121-101,"7,570.26",
DFID,DFID,06/08/2014,Hotels - Accommodation only ,East and Central Africa ,BCD Travel (USD) ,101630-101 ,"1,723.65",
DFID,DFID,15/08/2014,Air fares ,East and Central Africa ,WFP Somalia ,101630-101 ,"3,966.65",
DFID,DFID,27/08/2014,Storage & Distribution costs ,East and Central Africa ,PICKFORDS LTD ,101630-101 ,"2,260.51",
DFID,DFID,02/08/2014,Storage & Distribution costs ,East and Central Africa ,PICKFORDS LTD ,101630-101 ,"6,893.69",
DFID,DFID,06/08/2014,Air fares ,East and Central Africa ,BCD Travel (USD) ,203382-112 ,578.45,
DFID,DFID,15/08/2014,Air fares ,East and Central Africa ,WFP Somalia ,203382-112 ,630.49,
DFID,DFID,08/08/2014,Hostile Environment Training ,East and Central Africa ,Pilgrims Group ,203382-112 ,673.13,
DFID,DFID,20/08/2014,Project delivery costs  supplier services ,Asia  Caribbean and Overseas Territories ,COFFEY INTERNATIONAL DEVELOPMENT LTD (notactive) ,203427-101 ,"41,760.15",
DFID,DFID,14/08/2014,Project delivery costs  supplier services ,Asia  Caribbean and Overseas Territories ,Ernst & Young LLP ,114491-101 ,"2,800.00",
DFID,DFID,11/08/2014,Project delivery costs  supplier services ,Asia  Caribbean and Overseas Territories ,Sameer Deep Lepcha ,203274-101 ,720.29,
DFID,DFID,08/08/2014,Project delivery costs  supplier services ,Asia  Caribbean and Overseas Territories ,Pradeep Kumar Shrestha ,203274-101 ,"4,239.25",
DFID,DFID,14/08/2014,Project delivery costs  supplier services ,Asia  Caribbean and Overseas Territories ,Team Consult Pvt. Ltd  ,201129-109 ,"5,843.32",
DFID,DFID,13/08/2014,General Equipment ,Asia  Caribbean and Overseas Territories ,Novel International Pvt. Ltd. ,100150-101 ,"1,310.09",
DFID,DFID,27/08/2014,Storage & Distribution costs ,Asia  Caribbean and Overseas Territories ,PICKFORDS LTD ,101621-101 ,901.73,
DFID,DFID,07/08/2014,Recruitment costs ,Asia  Caribbean and Overseas Territories ,Thompson Nepal Pvt Ltd ,101621-101 ,888.31,
DFID,DFID,27/08/2014,Storage & Distribution costs ,Asia  Caribbean and Overseas Territories ,PICKFORDS LTD ,101621-101 ,"7,985.85",
DFID,DFID,28/08/2014,Facilities Management payments ,Asia  Caribbean and Overseas Territories ,R M B Engineers and Builders Pvt Ltd ,100150-103 ,"1,529.24",
DFID,DFID,21/08/2014,Facilities Management payments ,Asia  Caribbean and Overseas Territories ,John Sanday Associates Pvt. Ltd ,101621-103 ,"1,618.89",
DFID,DFID,28/08/2014,Facilities Management payments ,Asia  Caribbean and Overseas Territories ,John Sanday Associates Pvt. Ltd ,101621-103 ,"3,717.47",
DFID,DFID,21/08/2014,Water charges ,Asia  Caribbean and Overseas Territories ,Bal Krishna Dahal ,101621-103 ,620.50,
DFID,DFID,04/08/2014,Facilities Management payments ,Asia  Caribbean and Overseas Territories ,R M B Engineers and Builders Pvt Ltd ,101621-103 ,"1,115.25",
DFID,DFID,27/08/2014,Facilities Management payments ,Asia  Caribbean and Overseas Territories ,John Sanday Associates Pvt. Ltd ,101621-103 ,"4,703.78",
DFID,DFID,04/08/2014,Facilities Management payments ,Asia  Caribbean and Overseas Territories ,R M B Engineers and Builders Pvt Ltd ,101621-103 ,"1,700.63",
DFID,DFID,28/08/2014,Facilities Management payments ,Asia  Caribbean and Overseas Territories ,R M B Engineers and Builders Pvt Ltd ,101621-103 ,677.37,
DFID,DFID,18/08/2014,Storage & Distribution costs ,Asia  Caribbean and Overseas Territories ,Cargo Packers & Movers Int Pvt Ltd ,101621-103 ,517.75,
DFID,DFID,04/08/2014,Facilities Management payments ,Asia  Caribbean and Overseas Territories ,R M B Engineers and Builders Pvt Ltd ,101621-103 ,658.15,
DFID,DFID,27/08/2014,Facilities Management payments ,Asia  Caribbean and Overseas Territories ,John Sanday Associates Pvt. Ltd ,101621-103 ,766.57,
DFID,DFID,19/08/2014,Hostile Environment Training,Western Asia Division ,Supplier Name withheld ,101601-110 ,"1,077.76",
DFID,DFID,18/08/2014,Project delivery costs  supplier services ,West and Southern Africa ,The Country Lodge Complex ,204838-101 ,"1,302.70",
DFID,DFID,27/08/2014,Storage & Distribution costs ,East and Central Africa ,PICKFORDS LTD ,101633-101 ,"2,260.51",
DFID,DFID,14/08/2014,Vehicle Petrol & Oil ,West and Southern Africa ,British High Commission ,100214-101 ,518.88,
DFID,DFID,14/08/2014,Hotels - Accommodation only ,West and Southern Africa ,The Country Lodge Complex ,101629-101 ,509.23,
DFID,DFID,14/08/2014,Hotels - Accommodation only ,West and Southern Africa ,The Country Lodge Complex ,101629-101 ,509.23,
DFID,DFID,14/08/2014,Vehicle Petrol & Oil ,West and Southern Africa ,British High Commission ,101629-101 ,778.33,
DFID,DFID,18/08/2014,Project delivery costs  supplier services ,East and Central Africa ,The Sudd Institute ,203466-103 ,"15,884.10",
DFID,DFID,26/08/2014,Aid Programme - Accountable Grant Payments ,East and Central Africa ,CEDO VIP ,202943-101 ,"26,331.27",
DFID,DFID,21/08/2014,Project delivery costs  supplier services ,East and Central Africa ,IPA-International Procurement Agency (BV) ,202693-104 ,"3,995.11",
DFID,DFID,12/08/2014,Project delivery costs  supplier services ,East and Central Africa ,Byenkya Julius Atwooki ,200787-108 ,"2,989.62",
DFID,DFID,29/08/2014,Project delivery costs  supplier services ,East and Central Africa ,Byenkya Julius Atwooki ,200787-108 ,"3,134.57",
DFID,DFID,29/08/2014,Electricity ,East and Central Africa ,BRITISH HIGH COMMISSION KLA ,100234-101 ,500.96,
DFID,DFID,20/08/2014,Electricity ,East and Central Africa ,UMEME Ltd ,101635-101 ,715.94,
DFID,DFID,29/08/2014,Electricity ,East and Central Africa ,BRITISH HIGH COMMISSION KLA ,101635-101 ,"1,017.11",
DFID,DFID,04/08/2014,Office Equipment - Purchases ,East and Central Africa ,PC World Computers Ltd ,101635-101 ,531.49,
DFID,DFID,04/08/2014,Hotels - Accommodation only ,East and Central Africa ,Elgon Terrace Hotel Limited ,101635-101 ,756.96,
DFID,DFID,21/08/2014,Project delivery costs  supplier services ,East and Central Africa ,Oloya Aliker Tebere ,200250-106 ,"1,245.17",
DFID,DFID,12/08/2014,Project delivery costs  supplier services ,West and Southern Africa ,MINISTRY OF DEFENCE - HQ BRITFOR ,204483-101 ,"8,488.41",
DFID,DFID,26/08/2014,Hotels - Accommodation only ,West and Southern Africa ,Holiday Inn Accra ,201590-103 ,"1,760.18",
DFID,DFID,21/08/2014,Project delivery costs  supplier services ,Growth and Resilience Division ,PRICEWATERHOUSECOOPERS ,202648-101 ,"56,495.66",
DFID,DFID,13/08/2014,Project delivery costs  supplier services ,Growth and Resilience Division ,PRICEWATERHOUSECOOPERS ,202648-101 ,"92,376.55",
DFID,DFID,28/08/2014,Relocation costs ,West and Southern Africa ,PICKFORDS LTD ,101638-101 ,894.60,
DFID,DFID,05/08/2014,Relocation costs ,West and Southern Africa ,PICKFORDS LTD ,101638-101 ,"9,765.44",
DFID,DFID,01/08/2014,Electricity ,West and Southern Africa ,Recipient name withheld ,101638-103 ,590.67,
DFID,DFID,25/08/2014,Storage & Distribution costs ,West and Southern Africa ,PICKFORDS LTD ,101638-101 ,"4,680.91",
DFID,DFID,14/08/2014,Secure Staff Accommodation ,East and Central Africa ,NAME WITH HELD,101628-101 ,"2,739.73",
DFID,DFID,27/08/2014,Facilities Management payments ,East and Central Africa ,Architecture Pro,101628-101 ,"3,294.63",
DFID,DFID,29/08/2014,Aid Programme - Voluntary contributions ,East and Central Africa ,UNDP MULTI-PARTNER TRUST FUND OFFICE (USD) ACCOUNT ,202974-109 ,"3,646,500.00",
DFID,DFID,05/08/2014,Project delivery costs  supplier services ,Policy Division ,IMPERIAL COLLEGE LONDON ,200706-101 ,"407,014.18",
DFID,DFID,15/08/2014,Project delivery costs  supplier services ,Policy Division ,TROPICAL HEALTH AND EDUCATION TRUST ,202208-101 ,"108,277.00",
DFID,DFID,15/08/2014,Project delivery costs  supplier services ,Policy Division ,TROPICAL HEALTH AND EDUCATION TRUST ,202208-101 ,"86,376.77",
DFID,DFID,18/08/2014,Aid Programme - Accountable Grant Payments ,Policy Division ,Zvitambo Institute for Maternal & Child Health Research ,201854-107 ,"171,725.67",
DFID,DFID,19/08/2014,Hotels - Accommodation only ,East and Central Africa ,Golden Jubilee Limited ,202974-108 ,800.96,
DFID,DFID,26/08/2014,Aid Programme - Accountable Grant Payments ,East and Central Africa ,HivosGBP ,200120-102 ,"253,754.73",
DFID,DFID,20/08/2014,Aid Programme - Accountable Grant Payments ,East and Central Africa ,EISA ,200892-101 ,"108,687.22",
DFID,DFID,22/08/2014,Aid Programme - Accountable Grant Payments ,East and Central Africa ,GHANA CENTER FOR DEMOCRATIC DEVELOPMENT US DOLLAR ACCOUNT ,202501-102 ,"527,007.21",
DFID,DFID,21/08/2014,Aid Programme - Accountable Grant Payments ,East and Central Africa ,Southern Africa Trust ,202501-104 ,"473,112.57",
DFID,DFID,04/08/2014,Property Security & Patrols,East and Central Africa ,BRITISH HIGH COMMISSION KLA ,100234-101 ,"1,462.43",
DFID,DFID,21/08/2014,Secure Staff Accommodation ,East and Central Africa ,Supplier Name withheld ,101635-101 ,"12,597.48",
DFID,DFID,28/08/2014,Facilities Management payments ,East and Central Africa ,Joshi Electrical & General Services ,101635-101 ,"1,848.03",
DFID,DFID,21/08/2014,Facilities Management payments ,East and Central Africa ,Kato Contractors Ltd ,101635-101 ,785.60,
DFID,DFID,21/08/2014,Secure Staff Accommodation ,East and Central Africa ,Supplier Name withheld ,101635-101 ,"17,996.40",
DFID,DFID,04/08/2014,Facilities Management payments ,East and Central Africa ,STAHLCO HOLDINGS ,101635-101 ,799.69,
DFID,DFID,04/08/2014,Property Security & Patrols,East and Central Africa ,BRITISH HIGH COMMISSION KLA ,101635-101 ,"2,969.16",
DFID,DFID,08/08/2014,Telephone Usage & services ,East and Central Africa ,MTN Uganda Ltd ,101635-101 ,571.28,
DFID,DFID,21/08/2014,Facilities Management payments ,East and Central Africa ,Kato Contractors Ltd ,101635-101 ,"1,073.26",
DFID,DFID,22/08/2014,Aid Programme - Accountable Grant Payments ,Asia  Caribbean and Overseas Territories ,IUCN ,114058-109 ,"37,800.00",
DFID,DFID,04/08/2014,Project delivery costs  supplier services ,Asia  Caribbean and Overseas Territories ,NATURAL RESOURCES INSTITUTE ,114058-110 ,"5,198.90",
DFID,DFID,13/08/2014,Oil - Other Utilities ,Western Asia Division ,Supplier Name withheld ,101601-110 ,"11,892.01",
DFID,DFID,06/08/2014,Telephone Usage & services ,Western Asia Division ,Supplier Name withheld ,101601-110 ,"1,330.23",
DFID,DFID,13/08/2014,Oil - Other Utilities ,Western Asia Division ,Supplier Name withheld ,100011-110 ,"1,189.20",
DFID,DFID,19/08/2014,Project delivery costs  supplier services ,West and Southern Africa ,PRICEWATERHOUSECOOPERS ,113961-102 ,"588,018.28",
DFID,DFID,19/08/2014,Project delivery costs  supplier services ,West and Southern Africa ,PRICEWATERHOUSECOOPERS ,113961-103 ,"123,981.32",
DFID,DFID,11/08/2014,Aid Programme - Voluntary contributions ,West and Southern Africa ,UNOPS ,203164-101 ,"2,337,320.00",
DFID,DFID,29/08/2014,Project delivery costs  supplier services ,West and Southern Africa ,ADAM SMITH INTERNATIONAL  LTD ,203161-103 ,"578,040.75",
DFID,DFID,26/08/2014,Project delivery costs  supplier services ,Asia  Caribbean and Overseas Territories ,SIDBI MUMBAI ,114293-103 ,"38,474.86",
DFID,DFID,26/08/2014,Project delivery costs  supplier services ,Asia  Caribbean and Overseas Territories ,SIDBI MUMBAI ,114293-103 ,"26,567.35",
DFID,DFID,28/08/2014,Project delivery costs  supplier services ,Asia  Caribbean and Overseas Territories ,SIDBI MUMBAI ,114293-103 ,"42,894.68",
DFID,DFID,29/08/2014,Project delivery costs  supplier services ,West and Southern Africa ,Netherlands Ministry of Foreign Affairs ,201551-105 ,"2,589,871.00",
DFID,DFID,18/08/2014,Project delivery costs  supplier services ,West and Southern Africa ,Aphinoce Chibwana ,201196-106 ,"2,929.50",
DFID,DFID,21/08/2014,Project delivery costs  supplier services ,West and Southern Africa ,George Chimseu ,201196-106 ,"7,654.11",
DFID,DFID,18/08/2014,Project delivery costs  supplier services ,West and Southern Africa ,Malawi Revenue Authority ,201196-106 ,"4,273.87",
DFID,DFID,26/08/2014,Project delivery costs  supplier services ,West and Southern Africa ,OPTIONS CONSULTANCY SERVICES LIMITED ,202214-103 ,"74,960.00",
DFID,DFID,18/08/2014,Aid Programme - Accountable Grant Payments ,West and Southern Africa ,NATIONAL DEMOCTRATIC INSTITUTE ,203567-103 ,"437,524.00",
DFID,DFID,26/08/2014,Project delivery costs  supplier services ,Western Asia Division ,Ijaz Ahmed & Associates ,202495-101 ,"1,192.16",
DFID,DFID,26/08/2014,Project delivery costs  supplier services ,Western Asia Division ,Ijaz Ahmed & Associates ,202495-101 ,"2,384.32",
DFID,DFID,26/08/2014,Project delivery costs  supplier services ,Western Asia Division ,Ijaz Ahmed & Associates ,202495-101 ,"1,788.24",
DFID,DFID,26/08/2014,Project delivery costs  supplier services ,Western Asia Division ,Ijaz Ahmed & Associates ,202495-101 ,"2,384.32",
DFID,DFID,13/08/2014,Project delivery costs  supplier services ,Western Asia Division ,Sarah Saeed ,113484-106 ,"1,946.48",
DFID,DFID,26/08/2014,Research & Development costs ,Western Asia Division ,Crown Agents Pakistan ,113484-106 ,"22,651.00",
DFID,DFID,26/08/2014,Research & Development costs ,Western Asia Division ,Crown Agents Pakistan ,113484-106 ,"11,325.50",
DFID,DFID,01/08/2014,Secure Staff Accommodation ,East and Central Africa ,Supplier Name withheld ,202594-101 ,"1,767.83",
DFID,DFID,11/08/2014,Vehicle Purchase Costs ,East and Central Africa ,AIR CHARTER SERVICE (STERLING) ,202594-101 ,"1,099.44",
DFID,DFID,22/08/2014,Secure Staff Accommodation ,East and Central Africa ,Supplier Name withheld ,202594-101 ,"6,478.70",
DFID,DFID,18/08/2014,Secure Staff Accommodation ,East and Central Africa ,Supplier Name withheld ,202594-101 ,"1,341.32",
DFID,DFID,28/08/2014,Aid Programme - Trust Funds contributions ,East and Central Africa ,IBRD (HSBC)  C/O THE WORLD BANK ,203597-104 ,"350,000.00",
DFID,DFID,27/08/2014,Project delivery costs  supplier services ,West and Southern Africa ,EFFECTIVE DEVELOPMENT GROUP (EDG) ,113961-105 ,"18,916.74",
DFID,DFID,06/08/2014,Project delivery costs  supplier services ,West and Southern Africa ,ATOS CONSULTING LIMITED ,203230-101 ,"54,000.00",
DFID,DFID,18/08/2014,Storage & Distribution costs ,Middle East  Humanitarian & Security Division ,PICKFORDS LTD ,201705-101 ,"3,657.24",
DFID,DFID,20/08/2014,Aid Programme - Other Financial Aid to Government ,Asia  Caribbean and Overseas Territories ,Ministry of Finance and Planning Jamaica  FID Task Force ,203478-102 ,"134,000.00",
DFID,DFID,06/08/2014,Hotels - Accommodation only ,Policy Division ,Recipient name withheld ,100191-105 ,"1,050.00",
DFID,DFID,07/08/2014,Hotels - Accommodation only ,West and Southern Africa ,Hotel VIP Maputo ,204242-101 ,"1,760.94",
DFID,DFID,26/08/2014,Project delivery costs  supplier services ,West and Southern Africa ,Ms Kerry Selvester ,204497-102 ,"5,082.00",
DFID,DFID,11/08/2014,Project delivery costs  supplier services ,Western Asia Division ,Supplier Name withheld ,203951-101 ,"66,308.33",
DFID,DFID,07/08/2014,Hotels - Accommodation only ,West and Southern Africa ,Novotel Accra ,201629-104 ,643.46,
DFID,DFID,04/08/2014,Relocation costs ,Policy Division ,PICKFORDS LTD ,202419-101 ,"11,894.11",
DFID,DFID,13/08/2014,Training Providers/Facilitation Services ,Communications Division ,Capita  Business Services ,100138-101 ,"1,178.00",
DFID,DFID,04/08/2014,Project delivery costs  supplier services ,International Finance Division ,PRICEWATERHOUSECOOPERS ,202939-103 ,"26,709.73",
DFID,DFID,04/08/2014,Project delivery costs  supplier services ,International Finance Division ,PRICEWATERHOUSECOOPERS ,202939-106 ,"34,566.97",
DFID,DFID,26/08/2014,Project delivery costs  supplier services ,International Finance Division ,PRICEWATERHOUSECOOPERS ,202939-110 ,"88,490.00",
DFID,DFID,26/08/2014,Project delivery costs  supplier services ,International Finance Division ,PRICEWATERHOUSECOOPERS ,202939-110 ,"44,734.80",
DFID,DFID,05/08/2014,Project delivery costs  supplier services ,West and Southern Africa ,Charles Kendall & Partners ,202214-103 ,"45,106.00",
DFID,DFID,05/08/2014,Project delivery costs  supplier services ,West and Southern Africa ,Charles Kendall & Partners ,202214-103 ,"3,502.87",
DFID,DFID,26/08/2014,Contract & Agency Staff ,Finance and Corporate Performance Division ,Search Consultancy Ltd ,100201-101 ,"1,663.20",
DFID,DFID,29/08/2014,Aid Programme - Accountable Grant Payments ,Finance and Corporate Performance Division ,INSTITUTE OF DEVELOPMENT STUDIES ,204296-112 ,"91,013.00",
DFID,DFID,26/08/2014,Aid Programme - Humanitarian Material Relief Assistance and Services ,Western Asia Division ,Supplier Name withheld ,202930-103 ,786.82,
DFID,DFID,26/08/2014,Aid Programme - Humanitarian Material Relief Assistance and Services ,Western Asia Division ,Dech Enterprise (Private) Ltd ,203967-101 ,"7,439.90",
DFID,DFID,01/08/2014,Aid Programme - Joint programme contribution ,Policy Division ,BILL & MELINDA GATES FOUNDATION (USD) ,203324-102 ,"71,496.00",
DFID,DFID,18/08/2014,Storage & Distribution costs ,West and Southern Africa ,PICKFORDS LTD ,101637-101 ,807.00,
DFID,DFID,04/08/2014,Repairs  Maint  Alter - Property & Constrct. Services ,West and Southern Africa ,Pekolyn Tech. Services ,101622-105 ,"1,067.98",
DFID,DFID,05/08/2014,Repairs  Maint  Alter - Property & Constrct. Services ,West and Southern Africa ,Circuit Board (Nig) Ltd ,101622-105 ,"3,791.68",
DFID,DFID,04/08/2014,Repairs  Maint  Alter - Property & Constrct. Services ,West and Southern Africa ,Pekolyn Tech. Services ,101622-105 ,780.85,
DFID,DFID,01/08/2014,Repairs  Maint  Alter - Property & Constrct. Services ,West and Southern Africa ,Lilleker Bros (Nigeria) Ltd ,101622-105 ,"1,795.09",
DFID,DFID,08/08/2014,Aid Programme - Aid and Trade Provision ,Asia  Caribbean and Overseas Territories ,ECGD ACCOUNT ,108234-101 ,"8,369.54",
DFID,DFID,04/08/2014,Aid Programme - Aid and Trade Provision ,Asia  Caribbean and Overseas Territories ,ECGD ACCOUNT ,108240-101 ,"44,460.33",
DFID,DFID,29/08/2014,Aid Programme - Aid and Trade Provision ,Asia  Caribbean and Overseas Territories ,ECGD ACCOUNT ,108241-101 ,"23,032.71",
DFID,DFID,08/08/2014,Aid Programme - Trust Funds contributions ,Western Asia Division ,Supplier Name withheld ,200898-115 ,"17,000.00",
DFID,DFID,27/08/2014,Hotels - Accommodation only ,Finance and Corporate Performance Division ,Chelsea Hotel Abuja ,100008-101 ,790.88,
DFID,DFID,27/08/2014,Hotels - Accommodation only ,Global Funds ,Chelsea Hotel Abuja ,100098-101 ,790.88,
DFID,DFID,20/08/2014,Project delivery costs  supplier services ,West and Southern Africa ,Capital Hotel ,202524-101 ,"5,986.35",
DFID,DFID,04/08/2014,Aid Programme - Joint programme contribution ,West and Southern Africa ,UNDP MULTI-PARTNER TRUST FUND OFFICE (USD) ACCOUNT ,204013-101 ,"250,000.00",
DFID,DFID,26/08/2014,Project delivery costs  supplier services ,West and Southern Africa ,IPA-International Procurement Agency (BV) ,202183-101 ,542.60,
DFID,DFID,28/08/2014,Project delivery costs  supplier services ,West and Southern Africa ,The Country Lodge Complex ,204838-101 ,597.81,
DFID,DFID,04/08/2014,Storage & Distribution costs ,Western Asia Division ,PICKFORDS LTD ,101624-101 ,"2,357.01",
DFID,DFID,07/08/2014,Aid Programme - Accountable Grant Payments ,Communications Division ,BRITISH COUNCIL ,203378-101 ,"1,140,597.00",
DFID,DFID,07/08/2014,Hotels - Accommodation only ,West and Southern Africa ,Alisa Hotel North Ridge ,201584-102 ,605.51,
DFID,DFID,07/08/2014,Hotels - Accommodation only ,West and Southern Africa ,Alisa Hotel North Ridge ,201584-102 ,590.93,
DFID,DFID,07/08/2014,Hotels - Accommodation only ,West and Southern Africa ,Holiday Inn Accra ,204048-102 ,714.90,
DFID,DFID,19/08/2014,Project delivery costs  supplier services ,East and Central Africa ,Demiss Kassaye ,202235-102 ,"4,239.63",
DFID,DFID,07/08/2014,Furniture & Fittings ,West and Southern Africa ,Eurotex Import & Export ,100214-101 ,982.52,
DFID,DFID,22/08/2014,Oil - Other Utilities ,West and Southern Africa ,NP (SL) Ltd ,101629-101 ,"1,470.90",
DFID,DFID,14/08/2014,Project delivery costs  supplier services ,Asia  Caribbean and Overseas Territories ,ADAM SMITH ,202123-105 ,"86,548.38",
DFID,DFID,12/08/2014,Hostile Environment Training ,Middle East  Humanitarian & Security Division ,Pilgrims Group ,203940-102 ,625.00,
DFID,DFID,12/08/2014,Hostile Environment Training ,Middle East  Humanitarian & Security Division ,Pilgrims Group ,203940-102 ,673.13,
DFID,DFID,21/08/2014,Project delivery costs  supplier services ,Middle East  Humanitarian & Security Division ,Sterling International Group  LLC ,204309-102 ,"400,000.00",
DFID,DFID,05/08/2014,Project delivery costs  supplier services ,Middle East  Humanitarian & Security Division ,Hampshire Police Authority ,204309-102 ,"6,347.69",
DFID,DFID,19/08/2014,Project delivery costs  supplier services ,East and Central Africa ,Office of Governor BOU ,200779-111 ,"10,000.00",
DFID,DFID,22/08/2014,Aid Programme - Core contributions ,East and Central Africa ,NEPAD (International Partnership for Africa Fisheries) ,200157-106 ,"82,856.10",
DFID,DFID,07/08/2014,Project delivery costs  supplier services ,East and Central Africa ,PRICEWATERHOUSECOOPERS ,203603-105 ,"50,000.00",
DFID,DFID,29/08/2014,Project delivery costs  supplier services ,East and Central Africa ,ADAM SMITH INTERNATIONAL  LTD ,202693-102 ,"27,100.50",
DFID,DFID,07/08/2014,Medical/Health Services ,West and Southern Africa ,Professional Life Assurance Limited ,100254-101 ,"2,534.17",
DFID,DFID,07/08/2014,Medical/Health Services ,West and Southern Africa ,Professional Life Assurance Limited ,101637-101 ,"3,963.71",
DFID,DFID,26/08/2014,Project delivery costs  supplier services ,Western Asia Division ,Supplier Name withheld ,201023-112 ,"27,707.01",
DFID,DFID,05/08/2014,Project delivery costs  supplier services ,Western Asia Division ,Supplier Name withheld ,201023-112 ,"77,191.92",
DFID,DFID,26/08/2014,Cleaning Costs ,East and Central Africa ,Ikondera Company Ltd,101628-101 ,759.49,
DFID,DFID,28/08/2014,Relocation costs ,East and Central Africa ,PICKFORDS LTD ,101628-101 ,"1,084.00",
DFID,DFID,28/08/2014,Electricity ,East and Central Africa ,EWSA ,101628-101 ,678.08,
DFID,DFID,05/08/2014,Furniture & Fittings ,East and Central Africa ,Nakumatt Rwanda Limited,101628-101 ,579.53,
DFID,DFID,07/08/2014,Electricity ,East and Central Africa ,EWSA ,101628-101 ,"5,488.60",
DFID,DFID,28/08/2014,Storage & Distribution costs ,East and Central Africa ,PICKFORDS LTD ,101628-101 ,"12,686.33",
DFID,DFID,25/08/2014,Legal costs ,East and Central Africa ,MRB ATTORNEYS ,101628-101 ,608.80,
DFID,DFID,05/08/2014,Training Providers/Facilitation Services ,East and Central Africa ,BRITISH COUNCIL ,101628-101 ,"1,220.77",
DFID,DFID,20/08/2014,Medical/Health Services ,Business Solutions Division Level ,Cosmos Hospitals Pvt. Ltd ,200001-101 ,"1,650.48",
DFID,DFID,15/08/2014,Computer software maintenance ,Business Solutions Division Level ,CESG ,200002-189 ,547.20,
DFID,DFID,01/08/2014,Computer software maintenance ,Business Solutions Division Level ,CESG ,200002-189 ,698.40,
DFID,DFID,28/08/2014,Secure Staff Accommodation ,East and Central Africa ,Supplier Name withheld ,204010-102 ,"28,950.54",
DFID,DFID,12/08/2014,Oil - Other Utilities ,West and Southern Africa ,Bilad Investment Limited ,101622-103 ,"4,343.99",
DFID,DFID,18/08/2014,Vehicle Repairs & Maintenance ,West and Southern Africa ,CFAO ,101618-101 ,601.77,
DFID,DFID,06/08/2014,Training Providers/Facilitation Services ,West and Southern Africa ,Capita  Business Services ,101618-101 ,"17,017.50",
DFID,DFID,12/08/2014,Generators & spares ,West and Southern Africa ,Nordam Enterprise ,101618-101 ,"1,061.54",
DFID,DFID,11/08/2014,Generators & spares ,West and Southern Africa ,Nordam Enterprise ,101618-101 ,"1,048.45",
DFID,DFID,11/08/2014,Repairs  Maintenance and Alterations – Other Building Costs ,West and Southern Africa ,Eagle Air Conditioning and Engeneering ,101618-101 ,"1,232.88",
DFID,DFID,20/08/2014,Repairs  Maintenance and Alterations – Other Building Costs ,West and Southern Africa ,Akbanies ,101618-101 ,615.80,
DFID,DFID,15/08/2014,Training - Course Fees ,West and Southern Africa ,Malawi Institute of Management ,101618-101 ,"5,680.60",
DFID,DFID,11/08/2014,Aid Programme - Humanitarian Material Relief Assistance and Services ,Middle East  Humanitarian & Security Division ,HelpAge International UK ,204854-101 ,"265,640.00",
DFID,DFID,12/08/2014,Aid Programme - Humanitarian Material Relief Assistance and Services ,Middle East  Humanitarian & Security Division ,HANDICAP INTERNATIONAL UK ,204854-101 ,"217,500.00",
DFID,DFID,04/08/2014,Aid Programme - Core contributions ,International Finance Division ,SG HAMBROS BANK & TRUST LTD (USD) ,203232-101 ,"721,883.00",
DFID,DFID,04/08/2014,Facilities Management payments ,East and Central Africa ,DM-EURO Engineering Services,101628-101 ,"3,120.24",
DFID,DFID,28/08/2014,Telephone Usage & services ,West and Southern Africa ,Zambia Telecommunications Co Ltd ,101637-101 ,604.37,
DFID,DFID,27/08/2014,Vehicle Hire Charges ,West and Southern Africa ,Sepiso Car Rentals Limited  ,101637-101 ,551.83,
DFID,DFID,21/08/2014,Electricity ,West and Southern Africa ,Zambia Electicity Suppy Corp Ltd ,101637-101 ,632.11,
DFID,DFID,07/08/2014,Repairs  Maint  Alter - Property & Constrct. Services ,West and Southern Africa ,Robertson & CO ,101637-101 ,731.61,
DFID,DFID,27/08/2014,Vehicle Hire Charges ,West and Southern Africa ,Sepiso Car Rentals Limited  ,101637-101 ,551.83,
DFID,DFID,27/08/2014,Vehicle Hire Charges ,West and Southern Africa ,Sepiso Car Rentals Limited  ,101637-101 ,551.83,
DFID,DFID,08/08/2014,Project delivery costs  supplier services ,East and Central Africa ,ADAM SMITH INTERNATIONAL  LTD ,202698-106 ,"158,845.35",
DFID,DFID,28/08/2014,Project delivery costs  supplier services ,East and Central Africa ,ADAM SMITH INTERNATIONAL  LTD ,202698-106 ,"64,419.78",
DFID,DFID,19/08/2014,Subscriptions ,Communications Division ,Durrants lTD ,100197-101 ,"1,365.17",
DFID,DFID,14/08/2014,Subscriptions ,Communications Division ,THE PRESS ASSOCIATION ,100197-101 ,589.93,
DFID,DFID,07/08/2014,Conferences  Seminars & Meeting/Event Resource ,West and Southern Africa ,Faden House ,203823-106 ,"1,238.89",
DFID,DFID,15/08/2014,Project delivery costs  supplier services ,West and Southern Africa ,Odete da Graca Semiao ,201791-103 ,"3,873.66",
DFID,DFID,21/08/2014,Project delivery costs  supplier services ,Middle East  Humanitarian & Security Division ,Sterling International Group  LLC ,204309-102 ,"150,000.00",
DFID,DFID,08/08/2014,Project delivery costs  supplier services ,Middle East  Humanitarian & Security Division ,WILSON  BRYDON & KENNEDY ,203940-101 ,"8,100.00",
DFID,DFID,11/08/2014,Project delivery costs  supplier services ,Middle East  Humanitarian & Security Division ,PEDH Consulting Limited ,203940-101 ,"8,775.00",
DFID,DFID,18/08/2014,Aid Programme - Trust Funds contributions ,Research and Evidence Division ,IBRD HSBC T ,203050-101 ,"989,352.00",
DFID,DFID,18/08/2014,Aid Programme - Trust Funds contributions ,Research and Evidence Division ,IBRD HSBC T ,203050-102 ,"532,728.00",
DFID,DFID,27/08/2014,Furniture & Fittings ,West and Southern Africa ,Akbanies ,101618-101 ,609.62,
DFID,DFID,27/08/2014,Electricity ,West and Southern Africa ,ESCOM ,101618-101 ,"1,117.78",
DFID,DFID,27/08/2014,Water charges ,West and Southern Africa ,Lilongwe Water Board ,101618-101 ,542.74,
DFID,DFID,07/08/2014,Secure Staff Accommodation ,West and Southern Africa ,Supplier Name withheld ,101618-101 ,"1,091.16",
DFID,DFID,07/08/2014,Secure Staff Accommodation ,West and Southern Africa ,Supplier Name withheld ,101618-101 ,"6,183.21",
DFID,DFID,18/08/2014,Conferences  Seminars & Meeting/Event Resource ,West and Southern Africa ,Tilitonse Fund ,101618-101 ,930.34,
DFID,DFID,26/08/2014,Storage & Distribution costs ,West and Southern Africa ,PICKFORDS LTD ,101618-101 ,"5,350.77",
DFID,DFID,08/08/2014,Aid Programme - Accountable Grant Payments ,West and Southern Africa ,AgDevCo ,201862-101 ,"500,000.00",
DFID,DFID,15/08/2014,Cleaning Costs ,Policy Division ,MITIE Technical Facilities Management Ltd ,100191-105 ,536.40,
DFID,DFID,20/08/2014,Aid Programme - Accountable Grant Payments ,Research and Evidence Division ,International Union Against Tuberculosis and Lung Disease ,202506-102 ,"109,122.85",
DFID,DFID,18/08/2014,Aid Programme - Accountable Grant Payments ,Research and Evidence Division ,ASSOCIATION OF COMMONWEALTH UNIVER ,202004-101 ,"62,812.00",
DFID,DFID,14/08/2014,Aid Programme - Accountable Grant Payments ,Research and Evidence Division ,ASSOCIATION OF COMMONWEALTH UNIVER ,202004-101 ,"161,041.00",
DFID,DFID,15/08/2014,Aid Programme - Accountable Grant Payments ,Research and Evidence Division ,ASSOCIATION OF COMMONWEALTH UNIVER ,202004-101 ,"176,773.00",
DFID,DFID,29/08/2014,Research & Development costs ,Research and Evidence Division ,INSTITUTE OF DEVELOPMENT STUDIES ,204806-102 ,"12,500.00",
DFID,DFID,15/08/2014,Recruitment costs ,Human Resources ,HM REVENUE AND CUSTOMS Acc No 12535645 ,100269-117 ,"30,766.82","DFID Contribution to the HMG European Faststreamer Programme for 2014/15 June quarter 
 
"
DFID,DFID,04/08/2014,Training Providers/Facilitation Services ,Human Resources ,Capita  Business Services ,100269-158 ,"1,585.36",
DFID,DFID,04/08/2014,Training Providers/Facilitation Services ,Human Resources ,Capita  Business Services ,100269-158 ,"1,951.22",
DFID,DFID,18/08/2014,FCO shared service charges ,Human Resources ,CABINET OFFICE ,100269-149 ,"11,630.00",
DFID,DFID,18/08/2014,FCO shared service charges ,Human Resources ,CABINET OFFICE ,100269-150 ,"1,642.51",
DFID,DFID,18/08/2014,FCO shared service charges ,Human Resources ,CABINET OFFICE ,100269-150 ,"12,278.89",
DFID,DFID,04/08/2014,Data Network - land lines ,Business Solutions Division Level ,Subisu Cable Net Pvt Ltd ,200002-121 ,540.03,
DFID,DFID,06/08/2014,other information and communication technologies ,Business Solutions Division Level ,NAYATEL (PVT) LTD ,200002-121 ,789.97,
DFID,DFID,08/08/2014,Hotels - Accommodation only ,Policy Division ,Recipient name withheld ,100277-102 ,600.86,
DFID,DFID,01/08/2014,Rail Transport ,Human Resources ,Recipient name withheld ,100266-102 ,880.00,
DFID,DFID,28/08/2014,Project delivery costs  supplier services ,Asia  Caribbean and Overseas Territories ,TURNER & TOWNSEND ,100114-104 ,"11,385.47",
DFID,DFID,20/08/2014,Project delivery costs  supplier services ,Asia  Caribbean and Overseas Territories ,KHURANA STEELS ,100114-104 ,621.32,
DFID,DFID,21/08/2014,Repairs  Maint  Alter - Property & Constrct. Services ,Asia  Caribbean and Overseas Territories ,InterfaceFLOR India Pvt.. Ltd. ,100114-104 ,549.32,
DFID,DFID,15/08/2014,Project delivery costs  supplier services ,Asia  Caribbean and Overseas Territories ,TURNER & TOWNSEND ,100114-104 ,"42,197.50",
DFID,DFID,15/08/2014,Project delivery costs  supplier services ,Asia  Caribbean and Overseas Territories ,FCO SERVICES ,100114-104 ,"15,386.00",
DFID,DFID,28/08/2014,Project delivery costs  supplier services ,Asia  Caribbean and Overseas Territories ,TURNER & TOWNSEND ,100114-104 ,"11,385.47",
DFID,DFID,27/08/2014,Printer Consumables ,Business Solutions Division Level ,Computacentre Plc,200002-153 ,"1,014.00",
DFID,DFID,27/08/2014,Computer Consumables ,Business Solutions Division Level ,Flashbay Ltd,200002-153 ,660.31,
DFID,DFID,27/08/2014,Computer Software Licenses ,Business Solutions Division Level ,Insight PLC,200002-153 ,699.08,
DFID,DFID,27/08/2014,Other passenger transport ,Finance and Corporate Performance Division ,Corporate Travel Provider ,100008-101 ,516.00,
DFID,DFID,27/08/2014,Air fares ,Finance and Corporate Performance Division ,Corporate Travel Provider ,100008-101 ,722.28,
DFID,DFID,27/08/2014,Air fares ,Finance and Corporate Performance Division ,Corporate Travel Provider ,100008-101 ,722.28,
DFID,DFID,27/08/2014,Air fares ,Western Asia Division ,Corporate Travel Provider ,100020-101 ,865.24,
DFID,DFID,27/08/2014,Air fares ,Asia  Caribbean and Overseas Territories ,Corporate Travel Provider ,100025-101 ,622.18,
DFID,DFID,22/08/2014,Hotels - Accommodation only ,Middle East  Humanitarian & Security Division ,Recipient name withheld ,100049-101 ,800.00,
DFID,DFID,27/08/2014,Hotels - Accommodation only ,Middle East  Humanitarian & Security Division ,Corporate Travel Provider ,100049-101 ,797.35,
DFID,DFID,25/08/2014,Hotels - Accommodation only ,Middle East  Humanitarian & Security Division ,Corporate Travel Provider ,100049-101 ,560.07,
DFID,DFID,29/08/2014,Secure Staff Accommodation ,West and Southern Africa ,Supplier Name withheld ,100068-101 ,"10,359.70",
DFID,DFID,25/08/2014,Air fares ,West and Southern Africa ,Corporate Travel Provider ,100068-101 ,"1,812.00",
DFID,DFID,27/08/2014,Printer Consumables ,West and Southern Africa ,Insight Direct UK Ltd,100068-101 ,"1,004.73",
DFID,DFID,15/08/2014,Repairs  Maint  Alter - Property & Constrct. Services ,West and Southern Africa ,Speed Technologies ,100069-101 ,"1,500.00",
DFID,DFID,29/08/2014,Secure Staff Accommodation ,East and Central Africa ,Foreign & Commonwealth Office ,100082-101 ,"11,578.20",
DFID,DFID,29/08/2014,Office Supplies ,East and Central Africa ,Foreign & Commonwealth Office ,100082-101 ,"1,805.06",
DFID,DFID,29/08/2014,Repairs  Maint  Alter - Property & Constrct. Services ,East and Central Africa ,Foreign & Commonwealth Office ,100082-101 ,663.11,
DFID,DFID,29/08/2014,Repairs  Maint  Alter - Property & Constrct. Services ,East and Central Africa ,Foreign & Commonwealth Office ,100082-101 ,627.59,
DFID,DFID,15/08/2014,Telephone Usage & services ,East and Central Africa ,Foreign & Commonwealth Office ,100082-101 ,"1,468.69",
DFID,DFID,15/08/2014,Telephone Usage & services ,East and Central Africa ,Foreign & Commonwealth Office ,100082-101 ,756.83,
DFID,DFID,15/08/2014,Repairs  Maint  Alter - Property & Constrct. Services ,East and Central Africa ,Foreign & Commonwealth Office ,100082-101 ,"1,305.19",
DFID,DFID,04/08/2014,Secure Staff Accommodation ,International Relations Division ,Foreign & Commonwealth Office ,100086-101 ,"1,505.46",
DFID,DFID,04/08/2014,Secure Staff Accommodation ,International Relations Division ,Foreign & Commonwealth Office ,100086-101 ,"1,139.66",
DFID,DFID,25/08/2014,Air fares ,West and Southern Africa ,Corporate Travel Provider ,100096-101 ,523.08,
DFID,DFID,25/08/2014,Air fares ,West and Southern Africa ,Corporate Travel Provider ,100096-101 ,645.80,
DFID,DFID,27/08/2014,Air fares ,Global Funds ,Corporate Travel Provider ,100098-101 ,904.76,
DFID,DFID,27/08/2014,Air fares ,Global Funds ,Corporate Travel Provider ,100098-101 ,866.26,
DFID,DFID,27/08/2014,Air fares ,Global Funds ,Corporate Travel Provider ,100098-101 ,717.08,
DFID,DFID,27/08/2014,Air fares ,Global Funds ,Corporate Travel Provider ,100098-101 ,"1,078.64",
DFID,DFID,28/08/2014,Hotels - Accommodation only ,Global Funds ,Recipient name withheld ,100098-101 ,556.30,
DFID,DFID,27/08/2014,Office Equipment - Maintenance ,Group Operations ,NEOPOST LIMITED ,100106-101 ,"1,567.67",
DFID,DFID,29/08/2014,Repairs  Maintenance and Alterations – Other Building Costs ,Group Operations ,MITIE Technical Facilities Management Ltd ,100106-101 ,562.10,
DFID,DFID,21/08/2014,Postage Costs ,Group Operations ,NEOPOST LIMITED ,100106-101 ,"5,000.00",
DFID,DFID,21/08/2014,Electricity ,Group Operations ,EDF ENERGY ,100106-101 ,"14,688.14",
DFID,DFID,20/08/2014,Repairs  Maint  Alter - Removal & waste disposal services ,Group Operations ,WILLIAM TRACEY LIMITED ,100106-101 ,518.40,
DFID,DFID,27/08/2014,Reproduction & Printing Materials ,Group Operations ,BANNER BUSINESS SUPPLIES,100106-101 ,508.25,
DFID,DFID,06/08/2014,Repairs  Maintenance and Alterations – Other Building Costs ,Group Operations ,MITIE Technical Facilities Management Ltd ,100106-101 ,"1,161.60",
DFID,DFID,29/08/2014,Hotels - Accommodation only ,International Finance Division ,Recipient name withheld ,100111-101 ,578.62,
DFID,DFID,26/08/2014,Hotels - Accommodation only ,International Finance Division ,Recipient name withheld ,100111-101 ,736.29,
DFID,DFID,27/08/2014,Hotels - Accommodation only ,Asia  Caribbean and Overseas Territories ,Corporate Travel Provider ,100113-101 ,605.37,
DFID,DFID,25/08/2014,Auditors Assurance Service ,Asia  Caribbean and Overseas Territories ,BMR Advisers ,100113-101 ,"13,843.65",
DFID,DFID,25/08/2014,Air fares ,Internal Audit ,Corporate Travel Provider ,100121-101 ,553.60,
DFID,DFID,25/08/2014,Air fares ,Internal Audit ,Corporate Travel Provider ,100121-101 ,553.60,
DFID,DFID,25/08/2014,Air fares ,Internal Audit ,Corporate Travel Provider ,100121-101 ,553.60,
DFID,DFID,25/08/2014,Hotels - Accommodation only ,Internal Audit ,Corporate Travel Provider ,100121-101 ,856.37,
DFID,DFID,22/08/2014,Hostile Environment Training ,Internal Audit ,Pilgrims Group ,100121-101 ,673.13,
DFID,DFID,27/08/2014,Air fares ,Internal Audit ,Corporate Travel Provider ,100121-101 ,659.91,
DFID,DFID,27/08/2014,Air fares ,Internal Audit ,Corporate Travel Provider ,100121-101 ,794.45,
DFID,DFID,27/08/2014,Air fares ,Internal Audit ,Corporate Travel Provider ,100121-101 ,794.45,
DFID,DFID,27/08/2014,Air fares ,Internal Audit ,Corporate Travel Provider ,100121-101 ,786.41,
DFID,DFID,29/08/2014,Printer Consumables ,East and Central Africa ,Foreign & Commonwealth Office ,100137-101 ,506.69,
DFID,DFID,12/08/2014,Training Providers/Facilitation Services ,Middle East  Humanitarian & Security Division ,Capita  Business Services ,100146-101 ,"1,959.82",
DFID,DFID,25/08/2014,Air fares ,Middle East  Humanitarian & Security Division ,Corporate Travel Provider ,100146-101 ,702.68,
DFID,DFID,25/08/2014,Air fares ,Middle East  Humanitarian & Security Division ,Corporate Travel Provider ,100146-101 ,603.90,
DFID,DFID,25/08/2014,Air fares ,Middle East  Humanitarian & Security Division ,Corporate Travel Provider ,100146-101 ,745.21,
DFID,DFID,07/08/2014,Hotels - Accommodation only ,West and Southern Africa ,ASIAN HOTELS (NORTH) LIMITED ,100148-101 ,778.16,
DFID,DFID,25/08/2014,Air fares ,West and Southern Africa ,Corporate Travel Provider ,100148-101 ,690.68,
DFID,DFID,26/08/2014,Generators & spares ,West and Southern Africa ,Mocambique Diesel Electrica ,100149-101 ,"13,308.67",
DFID,DFID,27/08/2014,Hotels - Accommodation only ,Group Operations ,Corporate Travel Provider ,100161-101 ,509.30,
DFID,DFID,06/08/2014,Secure Staff Accommodation ,Policy Division ,Foreign & Commonwealth Office ,100191-101 ,"2,594.61",
DFID,DFID,27/08/2014,Air fares ,Policy Division ,Corporate Travel Provider ,100191-101 ,"1,030.56",
DFID,DFID,27/08/2014,Air fares ,Policy Division ,Corporate Travel Provider ,100191-101 ,563.38,
DFID,DFID,27/08/2014,Air fares ,Policy Division ,Corporate Travel Provider ,100191-101 ,997.26,
DFID,DFID,25/08/2014,Air fares ,Policy Division ,Corporate Travel Provider ,100191-101 ,676.26,
DFID,DFID,25/08/2014,Air fares ,Policy Division ,Corporate Travel Provider ,100191-101 ,"1,197.05",
DFID,DFID,25/08/2014,Air fares ,Communications Division ,Corporate Travel Provider ,100197-101 ,972.76,
DFID,DFID,27/08/2014,Air fares ,Communications Division ,Corporate Travel Provider ,100197-101 ,"1,275.26",
DFID,DFID,27/08/2014,Air fares ,Communications Division ,Corporate Travel Provider ,100197-101 ,"4,041.26",
DFID,DFID,29/08/2014,Conferences  Seminars & Meeting/Event Resource ,Finance and Corporate Performance Division ,BIS ,100201-101 ,"3,410.00",
DFID,DFID,27/08/2014,Conferences  Seminars & Meeting/Event Resource ,Finance and Corporate Performance Division ,E-Payment System  ,100201-101 ,792.00,
DFID,DFID,27/08/2014,Training - Course Fees ,Finance and Corporate Performance Division ,E-Payment System  ,100201-101 ,618.00,
DFID,DFID,11/08/2014,Hostile Environment Training,Finance and Corporate Performance Division ,Pilgrims Group ,100201-101 ,673.13,
DFID,DFID,27/08/2014,Hotels - Accommodation only ,Finance and Corporate Performance Division ,Corporate Travel Provider ,100201-101 ,"1,933.73",
DFID,DFID,29/08/2014,Contract & Agency Staff ,Finance and Corporate Performance Division ,Search Consultancy Ltd ,100201-101 ,"1,663.20",
DFID,DFID,28/08/2014,Contract & Agency Staff ,Finance and Corporate Performance Division ,Search Consultancy Ltd ,100201-101 ,"1,330.56",
DFID,DFID,27/08/2014,Training - Course Fees ,West and Southern Africa ,Capita  Business Services ,100214-101 ,"1,202.81",
DFID,DFID,27/08/2014,Generators & spares ,West and Southern Africa ,Tommy Kaitibie ,100214-101 ,671.28,
DFID,DFID,29/08/2014,Printer Consumables ,East and Central Africa ,Foreign & Commonwealth Office ,100218-101 ,506.69,
DFID,DFID,27/08/2014,Air fares ,East and Central Africa ,Corporate Travel Provider ,100227-101 ,618.68,
DFID,DFID,27/08/2014,Air fares ,East and Central Africa ,Corporate Travel Provider ,100227-101 ,556.62,
DFID,DFID,14/08/2014,Storage & Distribution costs ,East and Central Africa ,PICKFORDS LTD ,100227-101 ,"5,817.19",
DFID,DFID,04/08/2014,Office Equipment - Maintenance ,International Relations Division ,Foreign & Commonwealth Office ,100238-101 ,635.67,
DFID,DFID,25/08/2014,Air fares ,International Relations Division ,Corporate Travel Provider ,100240-101 ,995.96,
DFID,DFID,25/08/2014,Hotels - Accommodation only ,International Relations Division ,Corporate Travel Provider ,100240-101 ,568.68,
DFID,DFID,19/08/2014,Hotels - Accommodation only ,International Relations Division ,Recipient name withheld ,100240-101 ,799.40,
DFID,DFID,11/08/2014,Hostile Environment Training ,International Relations Division ,Pilgrims Group ,100240-101 ,673.13,
DFID,DFID,27/08/2014,Hotels - Accommodation only ,Business Solutions Division Level ,Corporate Travel Provider ,200001-101 ,742.50,
DFID,DFID,05/08/2014,Air fares ,Business Solutions Division Level ,Harvey World Travel Centurion ,200001-101 ,952.12,
DFID,DFID,25/08/2014,Hotels - Accommodation only ,Business Solutions Division Level ,Corporate Travel Provider ,200001-101 ,618.18,
DFID,DFID,13/08/2014,Air fares ,Business Solutions Division Level ,Foreign & Commonwealth Office ,200001-101 ,789.63,
DFID,DFID,25/08/2014,Air fares ,Business Solutions Division Level ,Corporate Travel Provider ,200001-101 ,896.76,
DFID,DFID,25/08/2014,Hotels - Accommodation only ,Business Solutions Division Level ,Corporate Travel Provider ,200001-101 ,706.67,
DFID,DFID,25/08/2014,Air fares ,Business Solutions Division Level ,Corporate Travel Provider ,200001-101 ,649.00,
DFID,DFID,25/08/2014,Air fares ,Business Solutions Division Level ,Corporate Travel Provider ,200001-101 ,897.06,
DFID,DFID,25/08/2014,Air fares ,Business Solutions Division Level ,Corporate Travel Provider ,200001-101 ,"1,002.83",
DFID,DFID,25/08/2014,Air fares ,Growth and Resilience Division ,Corporate Travel Provider ,100276-101 ,855.88,
DFID,DFID,25/08/2014,Air fares ,Growth and Resilience Division ,Corporate Travel Provider ,100276-101 ,802.88,
DFID,DFID,27/08/2014,Air fares ,Growth and Resilience Division ,Corporate Travel Provider ,100276-101 ,757.24,
DFID,DFID,28/08/2014,Legal costs ,Finance and Corporate Performance Division ,TREASURY SOLICITORS CASH ACC ,200173-101 ,"1,362.90",
DFID,DFID,25/08/2014,Hotels - Accommodation only ,Finance and Corporate Performance Division ,Corporate Travel Provider ,200173-101 ,"1,766.69",
DFID,DFID,29/08/2014,Project delivery costs  supplier services ,West and Southern Africa ,Foreign & Commonwealth Office ,104223-101 ,"2,164.17",
DFID,DFID,07/08/2014,Project delivery costs  supplier services ,West and Southern Africa ,MALARIA CONSORTIUM ,104223-101 ,"162,864.00",
DFID,DFID,08/08/2014,Project delivery costs  supplier services ,West and Southern Africa ,HEALTH PARTNERS INTERNATIONAL ,104227-102 ,"103,831.24",
DFID,DFID,15/08/2014,Project delivery costs  supplier services ,West and Southern Africa ,Foreign & Commonwealth Office ,104229-101 ,"7,871.95",
DFID,DFID,14/08/2014,Encashment of Promissory Notes ,International Finance Division ,AFRICAN  DEVELOPMENT BANK GROUP ,200147-104 ,"12,238,950.00",
DFID,DFID,29/08/2014,Project delivery costs  supplier services ,West and Southern Africa ,Society for Family  Health ,114206-101 ,"1,246,509.03",
DFID,DFID,25/08/2014,Air fares ,Top Management Group ,Corporate Travel Provider ,100232-104 ,"4,117.82",
DFID,DFID,25/08/2014,Air fares ,Top Management Group ,Corporate Travel Provider ,100232-104 ,865.21,
DFID,DFID,25/08/2014,Air fares ,Top Management Group ,Corporate Travel Provider ,100232-104 ,865.21,
DFID,DFID,25/08/2014,Air fares ,Top Management Group ,Corporate Travel Provider ,100232-104 ,"4,117.82",
DFID,DFID,27/08/2014,Hotels - Accommodation only ,Top Management Group ,Corporate Travel Provider ,100232-104 ,"1,369.54",
DFID,DFID,25/08/2014,Air fares ,Top Management Group ,Corporate Travel Provider ,100232-105 ,908.00,
DFID,DFID,11/08/2014,Government Car Scheme UK ,Top Management Group ,FCO SERVICES ,100232-106 ,925.20,
DFID,DFID,25/08/2014,Air fares ,Top Management Group ,Corporate Travel Provider ,100232-106 ,912.01,
DFID,DFID,08/08/2014,Air fares ,Top Management Group ,Recipient name withheld ,100232-106 ,"1,251.00",
DFID,DFID,25/08/2014,Air fares ,Top Management Group ,Corporate Travel Provider ,100232-106 ,552.51,
DFID,DFID,25/08/2014,Air fares ,Top Management Group ,Corporate Travel Provider ,100232-106 ,"3,195.83",
DFID,DFID,25/08/2014,Air fares ,Top Management Group ,Corporate Travel Provider ,100232-106 ,"3,195.83",
DFID,DFID,11/08/2014,Government Car Scheme UK ,Top Management Group ,FCO SERVICES ,100232-106 ,"7,090.39",
DFID,DFID,11/08/2014,Government Car Scheme UK ,Top Management Group ,FCO SERVICES ,100232-102 ,"3,633.26",
DFID,DFID,11/08/2014,Government Car Scheme UK ,Top Management Group ,FCO SERVICES ,100232-102 ,"7,090.39",
DFID,DFID,27/08/2014,Air fares ,Top Management Group ,Corporate Travel Provider ,100232-102 ,"4,041.26",
DFID,DFID,27/08/2014,Air fares ,Top Management Group ,Corporate Travel Provider ,100232-102 ,"4,041.26",
DFID,DFID,27/08/2014,Air fares ,Top Management Group ,Corporate Travel Provider ,100232-103 ,"2,513.56",
DFID,DFID,11/08/2014,Government Car Scheme UK ,Top Management Group ,FCO SERVICES ,100232-108 ,"3,251.04",
DFID,DFID,25/08/2014,Air fares ,Top Management Group ,Corporate Travel Provider ,100232-108 ,"1,286.96",
DFID,DFID,25/08/2014,Air fares ,Top Management Group ,Corporate Travel Provider ,100232-108 ,"2,218.21",
DFID,DFID,25/08/2014,Air fares ,Top Management Group ,Corporate Travel Provider ,100232-108 ,"2,218.21",
DFID,DFID,29/08/2014,Vehicle Hire Charges,Top Management Group ,Foreign & Commonwealth Office ,100232-108 ,551.07,
DFID,DFID,11/08/2014,Government Car Scheme UK ,Top Management Group ,FCO SERVICES ,100232-108 ,"7,090.39",
DFID,DFID,27/08/2014,Air fares ,Top Management Group ,Corporate Travel Provider ,100232-108 ,"2,463.81",
DFID,DFID,27/08/2014,Air fares ,Top Management Group ,Corporate Travel Provider ,100232-108 ,"2,129.79",
DFID,DFID,25/08/2014,Other passenger transport ,Central Department Division ,Corporate Travel Provider ,100259-101 ,550.80,
DFID,DFID,05/08/2014,Travel - Subsistence ,Middle East  Humanitarian & Security Division ,Recipient name withheld ,204084-101 ,549.19,
DFID,DFID,25/08/2014,Air fares ,Middle East  Humanitarian & Security Division ,Corporate Travel Provider ,204084-101 ,719.89,
DFID,DFID,04/08/2014,Aid Programme - Humanitarian Material Relief Assistance and Services ,Western Asia Division ,CONCERN WORLDWIDE ,203967-104 ,"197,975.00",
DFID,DFID,26/08/2014,Project delivery costs  supplier services ,Asia  Caribbean and Overseas Territories ,OPTIONS CONSULTANCY SERVICES LIMITED ,113963-101 ,"39,749.46",
DFID,DFID,18/08/2014,Project delivery costs  supplier services ,Asia  Caribbean and Overseas Territories ,OPTIONS CONSULTANCY SERVICES LIMITED ,113963-101 ,"112,432.34",
DFID,DFID,18/08/2014,Project delivery costs  supplier services ,Asia  Caribbean and Overseas Territories ,OPTIONS CONSULTANCY SERVICES LIMITED ,113963-101 ,"42,515.17",
DFID,DFID,14/08/2014,Encashment of Promissory Notes ,International Finance Division ,AFRICAN  DEVELOPMENT BANK GROUP ,110989-101 ,"1,551,588.01",
DFID,DFID,25/08/2014,Hotels - Accommodation only ,Policy Division ,Corporate Travel Provider ,100277-101 ,"1,230.81",
DFID,DFID,27/08/2014,Air fares ,Policy Division ,Corporate Travel Provider ,100277-101 ,534.39,
DFID,DFID,25/08/2014,Air fares ,International Relations Division ,Corporate Travel Provider ,100262-101 ,"2,442.39",
DFID,DFID,25/08/2014,Hotels - Accommodation only ,Group Operations ,Corporate Travel Provider ,100264-101 ,825.69,
DFID,DFID,27/08/2014,Air fares ,Human Resources ,Corporate Travel Provider ,100268-101 ,745.92,
DFID,DFID,25/08/2014,Air fares ,Research and Evidence Division ,Corporate Travel Provider ,100039-108 ,920.87,
DFID,DFID,25/08/2014,Hotels - Accommodation only ,Research and Evidence Division ,Corporate Travel Provider ,100039-108 ,552.86,
DFID,DFID,25/08/2014,Air fares ,Research and Evidence Division ,Corporate Travel Provider ,100039-108 ,926.41,
DFID,DFID,27/08/2014,Air fares ,Research and Evidence Division ,Corporate Travel Provider ,100039-108 ,"2,008.26",
DFID,DFID,27/08/2014,Air fares ,Research and Evidence Division ,Corporate Travel Provider ,100039-108 ,"1,074.46",
DFID,DFID,07/08/2014,Project delivery costs  supplier services ,Research and Evidence Division ,PRICEWATERHOUSECOOPERS ,200822-101 ,"76,673.41",
DFID,DFID,07/08/2014,Project delivery costs  supplier services ,Research and Evidence Division ,PRICEWATERHOUSECOOPERS ,200822-101 ,"258,288.28",
DFID,DFID,13/08/2014,Project delivery costs  supplier services ,East and Central Africa ,OPTIONS CONSULTANCY SERVICES LIMITED ,201512-102 ,"126,661.00",
DFID,DFID,13/08/2014,Project delivery costs  supplier services ,East and Central Africa ,OPTIONS CONSULTANCY SERVICES LIMITED ,201512-102 ,"126,661.00",
DFID,DFID,21/08/2014,Project delivery costs  supplier services ,East and Central Africa ,OPTIONS CONSULTANCY SERVICES LIMITED ,201512-102 ,"126,661.00",
DFID,DFID,13/08/2014,Project delivery costs  supplier services ,East and Central Africa ,OPTIONS CONSULTANCY SERVICES LIMITED ,201512-102 ,"126,661.00",
DFID,DFID,08/08/2014,Aid Programme - Accountable Grant Payments ,Policy Division ,ICAR (UK) ,200458-102 ,"250,000.00",
DFID,DFID,25/08/2014,Aid Programme - Core contributions ,Middle East  Humanitarian & Security Division ,MPTF Office PBF ,201064-101 ,"7,500,000.00",
DFID,DFID,22/08/2014,Aid Programme - Challenge Fund payments ,Western Asia Division ,Supplier Name withheld ,113779-103 ,"1,049,600.78",
DFID,DFID,28/08/2014,Project delivery costs  supplier services ,West and Southern Africa ,PKF Professional Services ,114230-103 ,"23,095.11",
DFID,DFID,25/08/2014,Air fares ,Asia  Caribbean and Overseas Territories ,Corporate Travel Provider ,101603-101 ,"1,744.39",
DFID,DFID,25/08/2014,Air fares ,Asia  Caribbean and Overseas Territories ,Corporate Travel Provider ,101603-101 ,"1,371.74",
DFID,DFID,25/08/2014,Air fares ,Asia  Caribbean and Overseas Territories ,Corporate Travel Provider ,101603-101 ,"1,685.68",
DFID,DFID,27/08/2014,Air fares ,Asia  Caribbean and Overseas Territories ,Corporate Travel Provider ,101603-101 ,581.10,
DFID,DFID,27/08/2014,Air fares ,Asia  Caribbean and Overseas Territories ,Corporate Travel Provider ,101603-101 ,581.10,
DFID,DFID,27/08/2014,UK Staff overseas - Flexi Travel Allowance ,Asia  Caribbean and Overseas Territories ,Corporate Travel Provider ,101603-101 ,645.60,
DFID,DFID,27/08/2014,UK Staff overseas - Flexi Travel Allowance ,Asia  Caribbean and Overseas Territories ,Corporate Travel Provider ,101603-101 ,918.65,
DFID,DFID,05/08/2014,Hotels - Accommodation only ,Asia  Caribbean and Overseas Territories ,Graham Gass (Bangladesh) ,101603-101 ,702.25,
DFID,DFID,06/08/2014,Secure Staff Accommodation ,Asia  Caribbean and Overseas Territories ,Foreign & Commonwealth Office ,101604-101 ,"4,732.68",
DFID,DFID,06/08/2014,Hotels - Accommodation only ,Asia  Caribbean and Overseas Territories ,Foreign & Commonwealth Office ,101604-101 ,"1,135.39",
DFID,DFID,06/08/2014,Telephone Usage & services ,Asia  Caribbean and Overseas Territories ,Foreign & Commonwealth Office ,101604-101 ,728.25,
DFID,DFID,06/08/2014,Travel - Subsistence ,Asia  Caribbean and Overseas Territories ,Foreign & Commonwealth Office ,101604-101 ,717.87,
DFID,DFID,06/08/2014,Mobile telephones & accessories ,Asia  Caribbean and Overseas Territories ,Foreign & Commonwealth Office ,101604-101 ,"1,936.12",
DFID,DFID,25/08/2014,Hotels - Accommodation only ,Asia  Caribbean and Overseas Territories ,Corporate Travel Provider ,101604-101 ,628.52,
DFID,DFID,06/08/2014,UK Staff overseas - Flexi Travel Allowance ,Asia  Caribbean and Overseas Territories ,Recipient name withheld ,101604-101 ,663.28,
DFID,DFID,29/08/2014,Secure Staff Accommodation ,Asia  Caribbean and Overseas Territories ,Foreign & Commonwealth Office ,101605-101 ,"21,697.23",
DFID,DFID,29/08/2014,Hotels - Accommodation only ,Asia  Caribbean and Overseas Territories ,Foreign & Commonwealth Office ,101605-101 ,"1,027.32",
DFID,DFID,29/08/2014,Secure Staff Accommodation ,Asia  Caribbean and Overseas Territories ,Foreign & Commonwealth Office ,101605-101 ,"7,169.72",
DFID,DFID,29/08/2014,Training - Travel & Subsistence ,Asia  Caribbean and Overseas Territories ,Foreign & Commonwealth Office ,101605-101 ,"1,607.44",
DFID,DFID,29/08/2014,Air fares ,Asia  Caribbean and Overseas Territories ,Foreign & Commonwealth Office ,101605-101 ,"4,729.67",
DFID,DFID,25/08/2014,Hotels - Accommodation only ,Asia  Caribbean and Overseas Territories ,Corporate Travel Provider ,101605-101 ,670.03,
DFID,DFID,29/08/2014,Secure Staff Accommodation ,West and Southern Africa ,Supplier Name withheld ,101610-101 ,"10,266.77",
DFID,DFID,25/08/2014,Air fares ,West and Southern Africa ,Corporate Travel Provider ,101610-101 ,"1,208.06",
DFID,DFID,25/08/2014,Air fares ,West and Southern Africa ,Corporate Travel Provider ,101610-101 ,958.06,
DFID,DFID,28/08/2014,Storage & Distribution costs ,West and Southern Africa ,PICKFORDS LTD ,101610-101 ,"12,387.39",
DFID,DFID,28/08/2014,Secure Staff Accommodation ,West and Southern Africa ,Supplier Name withheld ,101610-101 ,"10,032.76",
DFID,DFID,07/08/2014,Air fares ,West and Southern Africa ,Jeffery Travels ,101610-101 ,752.82,
DFID,DFID,27/08/2014,Air fares ,West and Southern Africa ,Corporate Travel Provider ,101610-101 ,"1,248.38",
DFID,DFID,27/08/2014,Air fares ,West and Southern Africa ,Corporate Travel Provider ,101610-101 ,"1,252.00",
DFID,DFID,27/08/2014,Air fares ,West and Southern Africa ,Corporate Travel Provider ,101610-101 ,"1,548.28",
DFID,DFID,27/08/2014,Air fares ,West and Southern Africa ,Corporate Travel Provider ,101610-101 ,506.10,
DFID,DFID,27/08/2014,Air fares ,West and Southern Africa ,Corporate Travel Provider ,101610-101 ,567.38,
DFID,DFID,04/08/2014,Secure Staff Accommodation ,West and Southern Africa ,Supplier Name withheld ,101610-101 ,"7,792.30",
DFID,DFID,29/08/2014,Secure Staff Accommodation ,West and Southern Africa ,Supplier Name withheld ,101610-101 ,"10,034.02",
DFID,DFID,18/08/2014,Hostile Environment Training ,West and Southern Africa ,Pilgrims Group ,101610-101 ,810.32,
DFID,DFID,27/08/2014,Air fares ,West and Southern Africa ,Corporate Travel Provider ,101610-101 ,"1,513.38",
DFID,DFID,25/08/2014,Air fares ,West and Southern Africa ,Corporate Travel Provider ,101610-101 ,958.06,
DFID,DFID,25/08/2014,Air fares ,West and Southern Africa ,Corporate Travel Provider ,101610-101 ,"1,208.06",
DFID,DFID,25/08/2014,Air fares ,West and Southern Africa ,Corporate Travel Provider ,101610-101 ,"1,101.98",
DFID,DFID,25/08/2014,Hotels - Accommodation only ,West and Southern Africa ,Corporate Travel Provider ,101610-101 ,"1,004.73",
DFID,DFID,29/08/2014,Secure Staff Accommodation ,West and Southern Africa ,Supplier Name withheld ,101610-101 ,"9,934.15",
DFID,DFID,19/08/2014,Secure Staff Accommodation ,West and Southern Africa ,Supplier Name withheld ,101610-101 ,"10,487.38",
DFID,DFID,29/08/2014,Repairs  Maint  Alter - Property & Constrct. Services ,East and Central Africa ,Foreign & Commonwealth Office ,101612-101 ,"6,803.13",
DFID,DFID,29/08/2014,Repairs  Maint  Alter - Property & Constrct. Services ,East and Central Africa ,Foreign & Commonwealth Office ,101612-101 ,550.32,
DFID,DFID,29/08/2014,Repairs  Maint  Alter - Property & Constrct. Services ,East and Central Africa ,Foreign & Commonwealth Office ,101612-101 ,"1,118.50",
DFID,DFID,25/08/2014,Hotels - Accommodation only ,East and Central Africa ,Corporate Travel Provider ,101612-101 ,"1,814.05",
DFID,DFID,25/08/2014,Hotels - Accommodation only ,East and Central Africa ,Corporate Travel Provider ,101612-101 ,511.17,
DFID,DFID,15/08/2014,Hotels - Accommodation only ,East and Central Africa ,Recipient name withheld ,101612-101 ,580.00,
DFID,DFID,25/08/2014,Hotels - Accommodation only ,West and Southern Africa ,Corporate Travel Provider ,101613-101 ,"2,159.98",
DFID,DFID,25/08/2014,Hotels - Accommodation only ,West and Southern Africa ,Corporate Travel Provider ,101613-101 ,560.07,
DFID,DFID,26/08/2014,Air fares ,West and Southern Africa ,Travel Places Ltd ,101613-101 ,678.38,
DFID,DFID,27/08/2014,Air fares ,West and Southern Africa ,Corporate Travel Provider ,101613-101 ,658.27,
DFID,DFID,27/08/2014,Air fares ,West and Southern Africa ,Corporate Travel Provider ,101613-101 ,574.58,
DFID,DFID,27/08/2014,Air fares ,West and Southern Africa ,Corporate Travel Provider ,101613-101 ,731.27,
DFID,DFID,27/08/2014,Air fares ,West and Southern Africa ,Corporate Travel Provider ,101613-101 ,731.27,
DFID,DFID,27/08/2014,Air fares ,West and Southern Africa ,Corporate Travel Provider ,101613-101 ,658.27,
DFID,DFID,27/08/2014,Air fares ,West and Southern Africa ,Corporate Travel Provider ,101613-101 ,662.36,
DFID,DFID,29/08/2014,Telephone Usage & services ,Asia  Caribbean and Overseas Territories ,Foreign & Commonwealth Office ,101615-101 ,523.48,
DFID,DFID,15/08/2014,Hotels - Accommodation only ,Asia  Caribbean and Overseas Territories ,Foreign & Commonwealth Office ,101615-101 ,647.04,
DFID,DFID,04/08/2014,Storage & Distribution costs ,Asia  Caribbean and Overseas Territories ,PICKFORDS LTD ,101615-101 ,"2,357.01",
DFID,DFID,27/08/2014,Air fares ,Asia  Caribbean and Overseas Territories ,Corporate Travel Provider ,101615-101 ,916.00,
DFID,DFID,05/08/2014,Hotels - Accommodation only ,East and Central Africa ,Recipient name withheld ,101616-101 ,916.00,
DFID,DFID,29/08/2014,Printer Consumables ,East and Central Africa ,Foreign & Commonwealth Office ,101616-101 ,"1,306.99",
DFID,DFID,29/08/2014,Printer Consumables ,East and Central Africa ,Foreign & Commonwealth Office ,101616-101 ,"2,026.77",
DFID,DFID,29/08/2014,Secure Staff Accommodation ,East and Central Africa ,Foreign & Commonwealth Office ,101616-101 ,"1,028.44",
DFID,DFID,27/08/2014,Hotels - Accommodation only ,East and Central Africa ,Corporate Travel Provider ,101616-101 ,660.97,
DFID,DFID,21/08/2014,Other passenger transport ,East and Central Africa ,Recipient name withheld ,101616-101 ,762.40,
DFID,DFID,25/08/2014,Hotels - Accommodation only ,East and Central Africa ,Corporate Travel Provider ,101616-101 ,914.23,
DFID,DFID,25/08/2014,Hotels - Accommodation only ,East and Central Africa ,Corporate Travel Provider ,101616-101 ,629.88,
DFID,DFID,15/08/2014,Furniture & Fittings ,East and Central Africa ,Foreign & Commonwealth Office ,101616-101 ,"1,008.95",
DFID,DFID,15/08/2014,Furniture & Fittings ,East and Central Africa ,Foreign & Commonwealth Office ,101616-101 ,927.29,
DFID,DFID,13/08/2014,Storage & Distribution costs ,West and Southern Africa ,PICKFORDS LTD ,101618-101 ,"1,419.65",
DFID,DFID,27/08/2014,Air fares ,West and Southern Africa ,Corporate Travel Provider ,101618-101 ,"1,186.26",
DFID,DFID,27/08/2014,Air fares ,West and Southern Africa ,Corporate Travel Provider ,101618-101 ,"1,134.16",
DFID,DFID,27/08/2014,Air fares ,West and Southern Africa ,Corporate Travel Provider ,101618-101 ,506.00,
DFID,DFID,27/08/2014,Air fares ,West and Southern Africa ,Corporate Travel Provider ,101618-101 ,506.00,
DFID,DFID,27/08/2014,Air fares ,West and Southern Africa ,Corporate Travel Provider ,101618-101 ,617.96,
DFID,DFID,27/08/2014,Air fares ,West and Southern Africa ,Corporate Travel Provider ,101618-101 ,"1,333.86",
DFID,DFID,27/08/2014,Air fares ,West and Southern Africa ,Corporate Travel Provider ,101618-101 ,"1,186.26",
DFID,DFID,11/08/2014,Hotels - Accommodation only ,West and Southern Africa ,Capital Hotel ,101618-101 ,574.17,
DFID,DFID,25/08/2014,Hotels - Accommodation only ,West and Southern Africa ,Corporate Travel Provider ,101618-101 ,506.53,
DFID,DFID,25/08/2014,Hotels - Accommodation only ,West and Southern Africa ,Corporate Travel Provider ,101618-101 ,514.77,
DFID,DFID,15/08/2014,Hotels - Accommodation only ,Middle East  Humanitarian & Security Division ,Foreign & Commonwealth Office ,101619-101 ,602.13,
DFID,DFID,15/08/2014,Secure Staff Accommodation ,Middle East  Humanitarian & Security Division ,Foreign & Commonwealth Office ,101619-101 ,"8,733.12",
DFID,DFID,27/08/2014,Air fares ,Middle East  Humanitarian & Security Division ,Corporate Travel Provider ,101619-101 ,501.61,
DFID,DFID,16/08/2014,Air fares ,Middle East  Humanitarian & Security Division ,Recipient name withheld ,101619-101 ,971.51,
DFID,DFID,27/08/2014,Air fares ,Middle East  Humanitarian & Security Division ,Corporate Travel Provider ,101619-101 ,778.97,
DFID,DFID,27/08/2014,Air fares ,Middle East  Humanitarian & Security Division ,Corporate Travel Provider ,101619-101 ,501.61,
DFID,DFID,27/08/2014,Air fares ,Middle East  Humanitarian & Security Division ,Corporate Travel Provider ,101619-101 ,606.20,
DFID,DFID,27/08/2014,Air fares ,Middle East  Humanitarian & Security Division ,Corporate Travel Provider ,101619-101 ,606.20,
DFID,DFID,20/08/2014,Vehicle Repairs & Maintenance ,West and Southern Africa ,Toyota de Mocambique  SARL ,101620-101 ,653.23,
DFID,DFID,26/08/2014,Cleaning Costs ,West and Southern Africa ,Limpeza Colorida ,101620-101 ,542.35,
DFID,DFID,25/08/2014,Hotels - Accommodation only ,West and Southern Africa ,Corporate Travel Provider ,101620-101 ,957.48,
DFID,DFID,25/08/2014,UK Staff overseas - Flexi Travel Allowance ,West and Southern Africa ,Corporate Travel Provider ,101620-101 ,619.96,
DFID,DFID,13/08/2014,Hotels - Accommodation only ,West and Southern Africa ,Recipient name withheld ,101620-101 ,"1,093.94",
DFID,DFID,15/08/2014,Hotels - Accommodation only ,West and Southern Africa ,Recipient name withheld ,101620-101 ,"2,775.12",
DFID,DFID,26/08/2014,Repairs  Maint  Alter - Property & Constrct. Services ,West and Southern Africa ,AZKA Construcoes  Lda ,101620-101 ,"3,306.59",
DFID,DFID,27/08/2014,Storage & Distribution costs ,West and Southern Africa ,PICKFORDS LTD ,101620-101 ,"7,985.85",
DFID,DFID,12/08/2014,Repairs  Maint  Alter - Property & Constrct. Services ,West and Southern Africa ,AZKA Construcoes  Lda ,101620-101 ,"10,386.14",
DFID,DFID,07/08/2014,Mobile telephones & accessories ,West and Southern Africa ,MCell ,101620-101 ,"1,838.60",
DFID,DFID,27/08/2014,Air fares ,West and Southern Africa ,Corporate Travel Provider ,101620-101 ,866.96,
DFID,DFID,27/08/2014,Air fares ,West and Southern Africa ,Corporate Travel Provider ,101620-101 ,"1,135.81",
DFID,DFID,07/08/2014,Cleaning Costs ,West and Southern Africa ,Limpeza Colorida ,101620-101 ,743.51,
DFID,DFID,14/08/2014,Repairs  Maint  Alter - Property & Constrct. Services ,West and Southern Africa ,AZKA Construcoes  Lda ,101620-101 ,"3,276.13",
DFID,DFID,27/08/2014,Storage & Distribution costs ,West and Southern Africa ,PICKFORDS LTD ,101620-101 ,901.73,
DFID,DFID,07/08/2014,Electricity ,West and Southern Africa ,Electricidade de Mocambique ,101620-101 ,773.77,
DFID,DFID,18/08/2014,Telephone Usage & services ,Western Asia Division ,Telenor Pakistan ,101624-101 ,731.23,
DFID,DFID,29/08/2014,Storage & Distribution costs ,Western Asia Division ,PICKFORDS LTD ,101624-101 ,"2,693.48",
DFID,DFID,25/08/2014,Air fares ,Western Asia Division ,Corporate Travel Provider ,101624-101 ,"1,106.20",
DFID,DFID,25/08/2014,Air fares ,Western Asia Division ,Corporate Travel Provider ,101624-101 ,667.60,
DFID,DFID,25/08/2014,Hotels - Accommodation only ,Western Asia Division ,Corporate Travel Provider ,101624-101 ,835.99,
DFID,DFID,27/08/2014,Air fares ,Western Asia Division ,Corporate Travel Provider ,101624-101 ,626.24,
DFID,DFID,27/08/2014,Air fares ,Western Asia Division ,Corporate Travel Provider ,101624-101 ,"1,515.24",
DFID,DFID,12/08/2014,Travel documentation costs ,Western Asia Division ,Recipient name withheld ,101624-101 ,874.00,
DFID,DFID,18/08/2014,Storage & Distribution costs ,Western Asia Division ,PICKFORDS LTD ,101624-101 ,"1,968.99",
DFID,DFID,12/08/2014,Training - Course Fees ,Western Asia Division ,Recipient name withheld ,101624-101 ,759.38,
DFID,DFID,18/08/2014,Telephone Usage & services ,Western Asia Division ,PMCL ,101624-101 ,516.05,
DFID,DFID,27/08/2014,Air fares ,Western Asia Division ,Corporate Travel Provider ,101624-101 ,982.00,
DFID,DFID,27/08/2014,Air fares ,Western Asia Division ,Corporate Travel Provider ,101624-101 ,636.86,
DFID,DFID,27/08/2014,Air fares ,Western Asia Division ,Corporate Travel Provider ,101624-101 ,670.90,
DFID,DFID,27/08/2014,Air fares ,Western Asia Division ,Corporate Travel Provider ,101624-101 ,790.76,
DFID,DFID,25/08/2014,Air fares ,Western Asia Division ,Corporate Travel Provider ,101624-101 ,"1,106.20",
DFID,DFID,15/08/2014,Electricity ,Western Asia Division ,Foreign & Commonwealth Office ,101624-101 ,707.41,
DFID,DFID,15/08/2014,Electricity ,Western Asia Division ,Foreign & Commonwealth Office ,101624-101 ,"1,064.53",
DFID,DFID,25/08/2014,Air fares ,Western Asia Division ,Corporate Travel Provider ,101624-101 ,674.84,
DFID,DFID,25/08/2014,Air fares ,Western Asia Division ,Corporate Travel Provider ,101624-101 ,515.28,
DFID,DFID,25/08/2014,Air fares ,Western Asia Division ,Corporate Travel Provider ,101624-101 ,887.20,
DFID,DFID,25/08/2014,Air fares ,Western Asia Division ,Corporate Travel Provider ,101624-101 ,767.40,
DFID,DFID,25/08/2014,Air fares ,Western Asia Division ,Corporate Travel Provider ,101624-101 ,767.40,
DFID,DFID,25/08/2014,Air fares ,Western Asia Division ,Corporate Travel Provider ,101624-101 ,"1,106.20",
DFID,DFID,27/08/2014,Air fares ,East and Central Africa ,Corporate Travel Provider ,101628-101 ,"1,183.22",
DFID,DFID,25/08/2014,Hotels - Accommodation only ,East and Central Africa ,Corporate Travel Provider ,101628-101 ,926.84,
DFID,DFID,20/08/2014,Mobile telephones & accessories ,West and Southern Africa ,Airtel (SL) Ltd ,101629-101 ,657.30,
DFID,DFID,27/08/2014,Training - Course Fees ,West and Southern Africa ,Capita  Business Services ,101629-101 ,"1,804.21",
DFID,DFID,27/08/2014,Generators & spares ,West and Southern Africa ,Tommy Kaitibie ,101629-101 ,"1,006.92",
DFID,DFID,27/08/2014,Storage & Distribution costs ,West and Southern Africa ,PICKFORDS LTD ,101629-101 ,"5,425.88",
DFID,DFID,27/08/2014,Air fares ,West and Southern Africa ,Corporate Travel Provider ,101629-101 ,742.52,
DFID,DFID,27/08/2014,Air fares ,West and Southern Africa ,Corporate Travel Provider ,101629-101 ,528.08,
DFID,DFID,27/08/2014,Air fares ,West and Southern Africa ,Corporate Travel Provider ,101629-101 ,"1,053.27",
DFID,DFID,27/08/2014,Air fares ,West and Southern Africa ,Corporate Travel Provider ,101629-101 ,827.80,
DFID,DFID,27/08/2014,Air fares ,West and Southern Africa ,Corporate Travel Provider ,101629-101 ,682.46,
DFID,DFID,27/08/2014,Air fares ,West and Southern Africa ,Corporate Travel Provider ,101629-101 ,"1,081.85",
DFID,DFID,27/08/2014,Air fares ,West and Southern Africa ,Corporate Travel Provider ,101629-101 ,528.08,
DFID,DFID,27/08/2014,Air fares ,West and Southern Africa ,Corporate Travel Provider ,101629-101 ,"1,050.09",
DFID,DFID,27/08/2014,Air fares ,West and Southern Africa ,Corporate Travel Provider ,101629-101 ,942.57,
DFID,DFID,27/08/2014,Air fares ,West and Southern Africa ,Corporate Travel Provider ,101629-101 ,"1,259.23",
DFID,DFID,27/08/2014,Air fares ,West and Southern Africa ,Corporate Travel Provider ,101629-101 ,838.14,
DFID,DFID,27/08/2014,Air fares ,West and Southern Africa ,Corporate Travel Provider ,101629-101 ,942.57,
DFID,DFID,27/08/2014,Air fares ,West and Southern Africa ,Corporate Travel Provider ,101629-101 ,"1,050.09",
DFID,DFID,27/08/2014,Air fares ,West and Southern Africa ,Corporate Travel Provider ,101629-101 ,"1,077.10",
DFID,DFID,27/08/2014,Air fares ,West and Southern Africa ,Corporate Travel Provider ,101629-101 ,"1,987.58",
DFID,DFID,27/08/2014,Air fares ,West and Southern Africa ,Corporate Travel Provider ,101629-101 ,"1,775.60",
DFID,DFID,27/08/2014,Air fares ,West and Southern Africa ,Corporate Travel Provider ,101629-101 ,682.46,
DFID,DFID,27/08/2014,Air fares ,West and Southern Africa ,Corporate Travel Provider ,101629-101 ,635.37,
DFID,DFID,28/08/2014,Storage & Distribution costs ,West and Southern Africa ,PICKFORDS LTD ,101629-101 ,"1,994.89",
DFID,DFID,25/08/2014,Air fares ,West and Southern Africa ,Corporate Travel Provider ,101629-101 ,955.58,
DFID,DFID,25/08/2014,Air fares ,West and Southern Africa ,Corporate Travel Provider ,101629-101 ,827.40,
DFID,DFID,25/08/2014,Air fares ,West and Southern Africa ,Corporate Travel Provider ,101629-101 ,650.60,
DFID,DFID,25/08/2014,Air fares ,West and Southern Africa ,Corporate Travel Provider ,101629-101 ,904.93,
DFID,DFID,25/08/2014,Air fares ,West and Southern Africa ,Corporate Travel Provider ,101629-101 ,904.93,
DFID,DFID,25/08/2014,Air fares ,West and Southern Africa ,Corporate Travel Provider ,101629-101 ,"1,043.46",
DFID,DFID,25/08/2014,Air fares ,West and Southern Africa ,Corporate Travel Provider ,101629-101 ,"1,103.60",
DFID,DFID,25/08/2014,Air fares ,West and Southern Africa ,Corporate Travel Provider ,101629-101 ,733.96,
DFID,DFID,25/08/2014,Air fares ,West and Southern Africa ,Corporate Travel Provider ,101629-101 ,"2,185.70",
DFID,DFID,29/08/2014,Secure Staff Accommodation ,East and Central Africa ,Foreign & Commonwealth Office ,101630-101 ,"2,056.89",
DFID,DFID,29/08/2014,Printer Consumables ,East and Central Africa ,Foreign & Commonwealth Office ,101630-101 ,"1,306.98",
DFID,DFID,29/08/2014,Project delivery costs  supplier services ,East and Central Africa ,Foreign & Commonwealth Office ,101630-101 ,975.90,
DFID,DFID,29/08/2014,Printer Consumables ,East and Central Africa ,Foreign & Commonwealth Office ,101630-101 ,"2,026.76",
DFID,DFID,29/08/2014,Secure Staff Accommodation ,East and Central Africa ,Foreign & Commonwealth Office ,101630-101 ,"1,028.44",
DFID,DFID,29/08/2014,Secure Staff Accommodation ,East and Central Africa ,Foreign & Commonwealth Office ,101630-101 ,"2,056.89",
DFID,DFID,25/08/2014,Air fares ,East and Central Africa ,Corporate Travel Provider ,101630-101 ,"1,408.40",
DFID,DFID,25/08/2014,Hotels - Accommodation only ,East and Central Africa ,Corporate Travel Provider ,101630-101 ,537.42,
DFID,DFID,27/08/2014,Air fares ,East and Central Africa ,Corporate Travel Provider ,101630-101 ,560.26,
DFID,DFID,25/08/2014,Air fares ,West and Southern Africa ,Corporate Travel Provider ,101631-101 ,601.01,
DFID,DFID,25/08/2014,Air fares ,West and Southern Africa ,Corporate Travel Provider ,101631-101 ,766.24,
DFID,DFID,25/08/2014,Air fares ,West and Southern Africa ,Corporate Travel Provider ,101631-101 ,608.66,
DFID,DFID,25/08/2014,Air fares ,West and Southern Africa ,Corporate Travel Provider ,101631-101 ,667.26,
DFID,DFID,25/08/2014,Air fares ,West and Southern Africa ,Corporate Travel Provider ,101631-101 ,"1,131.58",
DFID,DFID,27/08/2014,Air fares ,West and Southern Africa ,Corporate Travel Provider ,101631-101 ,608.56,
DFID,DFID,27/08/2014,Air fares ,West and Southern Africa ,Corporate Travel Provider ,101631-101 ,614.26,
DFID,DFID,04/08/2014,Storage & Distribution costs ,East and Central Africa ,PICKFORDS LTD ,101633-101 ,"2,843.22",
DFID,DFID,25/08/2014,Air fares ,East and Central Africa ,Corporate Travel Provider ,101633-101 ,793.36,
DFID,DFID,25/08/2014,Air fares ,East and Central Africa ,Corporate Travel Provider ,101633-101 ,"1,096.07",
DFID,DFID,25/08/2014,Hotels - Accommodation only ,East and Central Africa ,Corporate Travel Provider ,101633-101 ,514.57,
DFID,DFID,25/08/2014,Air fares ,East and Central Africa ,Corporate Travel Provider ,101633-101 ,"1,680.56",
DFID,DFID,27/08/2014,Air fares ,East and Central Africa ,Corporate Travel Provider ,101633-101 ,"1,885.90",
DFID,DFID,15/08/2014,Training - Travel & Subsistence ,East and Central Africa ,Foreign & Commonwealth Office ,101633-101 ,599.44,
DFID,DFID,04/08/2014,Storage & Distribution costs ,East and Central Africa ,PICKFORDS LTD ,101633-101 ,845.53,
DFID,DFID,27/08/2014,Hotels - Accommodation only ,East and Central Africa ,Corporate Travel Provider ,101633-101 ,550.71,
DFID,DFID,12/08/2014,Secure Staff Accommodation ,East and Central Africa ,Supplier Name withheld ,101634-101 ,"35,756.85",Secure staff accommodation  for 12 months  ( August 2014 to July 2015 ) DFID Tanzania
DFID,DFID,25/08/2014,Air fares ,East and Central Africa ,Corporate Travel Provider ,101634-101 ,865.07,
DFID,DFID,25/08/2014,Hotels - Accommodation only ,East and Central Africa ,Corporate Travel Provider ,101634-101 ,514.77,
DFID,DFID,14/08/2014,Air fares ,East and Central Africa ,Simbatravelcare Limited ,101635-101 ,"1,152.70",
DFID,DFID,25/08/2014,Hotels - Accommodation only ,East and Central Africa ,Corporate Travel Provider ,101635-101 ,891.59,
DFID,DFID,27/08/2014,Air fares ,East and Central Africa ,Corporate Travel Provider ,101635-101 ,897.56,
DFID,DFID,18/08/2014,Facilities Management payments ,East and Central Africa ,Joshi Electrical & General Services ,101635-101 ,"1,162.40",
DFID,DFID,27/08/2014,Air fares ,East and Central Africa ,Corporate Travel Provider ,101635-101 ,"1,074.56",
DFID,DFID,29/08/2014,Secure Staff Accommodation ,Asia  Caribbean and Overseas Territories ,Foreign & Commonwealth Office ,101636-101 ,"3,437.94",
DFID,DFID,25/08/2014,Hotels - Accommodation only ,Asia  Caribbean and Overseas Territories ,Corporate Travel Provider ,101636-101 ,835.99,
DFID,DFID,25/08/2014,Hotels - Accommodation only ,Asia  Caribbean and Overseas Territories ,Corporate Travel Provider ,101636-101 ,547.70,
DFID,DFID,01/08/2014,Storage & Distribution costs ,West and Southern Africa ,PICKFORDS LTD ,101637-101 ,"19,446.81",
DFID,DFID,29/08/2014,Storage & Distribution costs ,West and Southern Africa ,PICKFORDS LTD ,101637-101 ,"19,147.70",
DFID,DFID,04/08/2014,Storage & Distribution costs ,West and Southern Africa ,PICKFORDS LTD ,101637-101 ,845.53,
DFID,DFID,29/08/2014,Air fares ,Middle East  Humanitarian & Security Division ,Recipient name withheld ,201705-101 ,630.26,
DFID,DFID,29/08/2014,Other passenger transport ,Middle East  Humanitarian & Security Division ,Recipient name withheld ,201705-101 ,684.81,
DFID,DFID,29/08/2014,Air fares ,Middle East  Humanitarian & Security Division ,Recipient name withheld ,201705-101 ,652.93,
DFID,DFID,27/08/2014,Air fares ,Middle East  Humanitarian & Security Division ,Corporate Travel Provider ,201705-101 ,611.40,
DFID,DFID,27/08/2014,Air fares ,Middle East  Humanitarian & Security Division ,Corporate Travel Provider ,201705-101 ,613.50,
DFID,DFID,27/08/2014,Air fares ,Middle East  Humanitarian & Security Division ,Corporate Travel Provider ,201705-101 ,650.36,
DFID,DFID,25/08/2014,Air fares ,Middle East  Humanitarian & Security Division ,Corporate Travel Provider ,201705-101 ,678.61,
DFID,DFID,15/08/2014,Secure Staff Accommodation ,Middle East  Humanitarian & Security Division ,Foreign & Commonwealth Office ,201705-101 ,"2,115.66",
DFID,DFID,15/08/2014,Electricity ,Middle East  Humanitarian & Security Division ,Foreign & Commonwealth Office ,201705-101 ,"1,381.58",
DFID,DFID,25/08/2014,Air fares ,Middle East  Humanitarian & Security Division ,Corporate Travel Provider ,201705-101 ,966.41,
DFID,DFID,25/08/2014,Air fares ,Middle East  Humanitarian & Security Division ,Corporate Travel Provider ,201705-101 ,794.61,
DFID,DFID,25/08/2014,Contract & Agency Staff ,Human Resources ,Michael Page Int. Recruitment Ltd ,100266-108 ,"2,831.52",
DFID,DFID,27/08/2014,Hotels - Accommodation only ,Asia  Caribbean and Overseas Territories ,Corporate Travel Provider ,101621-108 ,"1,330.16",
DFID,DFID,06/08/2014,Secure Staff Accommodation ,International Finance Division ,Foreign & Commonwealth Office ,201723-102 ,"1,503.58",
DFID,DFID,25/08/2014,Air fares ,International Finance Division ,Corporate Travel Provider ,201723-102 ,709.61,
DFID,DFID,25/08/2014,Air fares ,International Finance Division ,Corporate Travel Provider ,201723-102 ,736.61,
DFID,DFID,29/08/2014,Hotels - Accommodation only ,International Finance Division ,Foreign & Commonwealth Office ,201723-102 ,"1,501.51",
DFID,DFID,26/08/2014,UK Staff overseas - Flexi Travel Allowance ,Western Asia Division ,Recipient name withheld ,201699-101 ,523.14,
DFID,DFID,26/08/2014,UK Staff overseas - Flexi Travel Allowance ,Western Asia Division ,Recipient name withheld ,201699-101 ,803.83,
DFID,DFID,04/08/2014,Hotels - Accommodation only ,Western Asia Division ,Foreign & Commonwealth Office ,201699-101 ,"1,096.79",
DFID,DFID,16/08/2014,Hotels - Accommodation only ,Western Asia Division ,Recipient name withheld ,201699-101 ,530.00,
DFID,DFID,27/08/2014,Air fares ,Policy Division ,Corporate Travel Provider ,100274-111 ,"2,782.03",
DFID,DFID,27/08/2014,Training Providers/Facilitation Services ,Policy Division ,Capita,100274-111 ,985.20,
DFID,DFID,20/08/2014,Project delivery costs  supplier services ,Middle East  Humanitarian & Security Division ,Crown Agents Bank ,201828-101 ,"60,000.00",
DFID,DFID,27/08/2014,Air fares ,East and Central Africa ,Corporate Travel Provider ,201845-101 ,"1,166.17",
DFID,DFID,13/08/2014,Aid Programme - Accountable Grant Payments ,Research and Evidence Division ,ASSOCIATION OF COMMONWEALTH UNIVER ,201871-101 ,"56,220.00",
DFID,DFID,20/08/2014,Aid Programme - Accountable Grant Payments ,East and Central Africa ,ALLIANCE FOR A GREEN REVOLUTION IN AFRICA ,201956-101 ,"670,096.27",
DFID,DFID,04/08/2014,Aid Programme - Trust Funds contributions ,Research and Evidence Division ,IBRD HSBC T ,202211-101 ,"15,000,000.00",
DFID,DFID,27/08/2014,Air fares ,Research and Evidence Division ,Corporate Travel Provider ,202332-103 ,794.58,
DFID,DFID,18/08/2014,Project delivery costs  supplier services ,Asia  Caribbean and Overseas Territories ,OPTIONS CONSULTANCY SERVICES LIMITED ,202871-101 ,"29,756.40",
DFID,DFID,26/08/2014,Project delivery costs  supplier services ,Asia  Caribbean and Overseas Territories ,OPTIONS CONSULTANCY SERVICES LIMITED ,202871-101 ,"32,522.21",
DFID,DFID,26/08/2014,Project delivery costs  supplier services ,Asia  Caribbean and Overseas Territories ,Ranjan B Verma ,202871-102 ,"2,000.58",
DFID,DFID,20/08/2014,Project delivery costs  supplier services ,Asia  Caribbean and Overseas Territories ,Ranjan B Verma ,202871-102 ,"2,111.61",
DFID,DFID,06/08/2014,Project delivery costs  supplier services ,Asia  Caribbean and Overseas Territories ,Ranjan B Verma ,202871-102 ,"1,193.07",
DFID,DFID,14/08/2014,Project delivery costs  supplier services ,Western Asia Division ,ADAM SMITH INTERNATIONAL  LTD ,202328-102 ,"237,059.03",
DFID,DFID,25/08/2014,Air fares ,East and Central Africa ,Corporate Travel Provider ,101625-103 ,"1,169.58",
DFID,DFID,25/08/2014,Air fares ,East and Central Africa ,Corporate Travel Provider ,101625-103 ,"1,169.58",
DFID,DFID,27/08/2014,Hotels - Accommodation only ,East and Central Africa ,Corporate Travel Provider ,101625-104 ,520.13,
DFID,DFID,25/08/2014,Air fares ,East and Central Africa ,Corporate Travel Provider ,101625-105 ,973.06,
DFID,DFID,25/08/2014,Air fares ,East and Central Africa ,Corporate Travel Provider ,101625-105 ,"1,322.18",
DFID,DFID,25/08/2014,Air fares ,East and Central Africa ,Corporate Travel Provider ,101625-105 ,"1,039.81",
DFID,DFID,27/08/2014,Air fares ,East and Central Africa ,Corporate Travel Provider ,101625-105 ,875.79,
DFID,DFID,27/08/2014,Air fares ,Western Asia Division ,Corporate Travel Provider ,101601-110 ,514.45,
DFID,DFID,27/08/2014,Air fares ,Western Asia Division ,Corporate Travel Provider ,101601-110 ,"1,554.04",
DFID,DFID,27/08/2014,Air fares ,Western Asia Division ,Corporate Travel Provider ,101601-110 ,590.74,
DFID,DFID,27/08/2014,Air fares ,Western Asia Division ,Corporate Travel Provider ,101601-110 ,861.36,
DFID,DFID,25/08/2014,Air fares ,Western Asia Division ,Corporate Travel Provider ,101601-110 ,613.50,
DFID,DFID,25/08/2014,Air fares ,Western Asia Division ,Corporate Travel Provider ,101601-110 ,"1,585.21",
DFID,DFID,27/08/2014,Air fares ,Western Asia Division ,Corporate Travel Provider ,101601-110 ,"1,443.30",
DFID,DFID,27/08/2014,Air fares ,Western Asia Division ,Corporate Travel Provider ,101601-110 ,"1,195.76",
DFID,DFID,27/08/2014,Air fares ,Western Asia Division ,Corporate Travel Provider ,101601-110 ,"1,340.70",
DFID,DFID,27/08/2014,Air fares ,Western Asia Division ,Corporate Travel Provider ,101601-110 ,629.36,
DFID,DFID,25/08/2014,Air fares ,Western Asia Division ,Corporate Travel Provider ,101601-110 ,603.08,
DFID,DFID,25/08/2014,Air fares ,Western Asia Division ,Corporate Travel Provider ,101601-110 ,520.40,
DFID,DFID,25/08/2014,Hotels - Accommodation only ,Western Asia Division ,Corporate Travel Provider ,101601-110 ,705.02,
DFID,DFID,25/08/2014,Air fares ,Western Asia Division ,Corporate Travel Provider ,101601-110 ,717.66,
DFID,DFID,25/08/2014,Air fares ,Western Asia Division ,Corporate Travel Provider ,101601-110 ,834.40,
DFID,DFID,25/08/2014,Air fares ,Western Asia Division ,Corporate Travel Provider ,101601-110 ,789.10,
DFID,DFID,25/08/2014,Air fares ,Western Asia Division ,Corporate Travel Provider ,101601-110 ,"1,540.84",
DFID,DFID,25/08/2014,Hotels - Accommodation only ,Western Asia Division ,Corporate Travel Provider ,101601-110 ,684.43,
DFID,DFID,25/08/2014,Air fares ,Western Asia Division ,Corporate Travel Provider ,101601-110 ,508.30,
DFID,DFID,25/08/2014,Air fares ,Western Asia Division ,Corporate Travel Provider ,101601-110 ,834.16,
DFID,DFID,25/08/2014,Air fares ,Western Asia Division ,Corporate Travel Provider ,101601-110 ,"1,585.21",
DFID,DFID,25/08/2014,Air fares ,Western Asia Division ,Corporate Travel Provider ,101601-110 ,"1,639.82",
DFID,DFID,25/08/2014,Air fares ,Western Asia Division ,Corporate Travel Provider ,101601-110 ,681.46,
DFID,DFID,25/08/2014,Air fares ,Western Asia Division ,Corporate Travel Provider ,101601-110 ,759.91,
DFID,DFID,25/08/2014,Air fares ,Western Asia Division ,Corporate Travel Provider ,101601-110 ,"1,743.99",
DFID,DFID,25/08/2014,Air fares ,Western Asia Division ,Corporate Travel Provider ,101601-110 ,"1,602.06",
DFID,DFID,25/08/2014,Air fares ,Western Asia Division ,Corporate Travel Provider ,101601-110 ,"1,895.84",
DFID,DFID,25/08/2014,Air fares ,Western Asia Division ,Corporate Travel Provider ,101601-110 ,699.91,
DFID,DFID,25/08/2014,Air fares ,Western Asia Division ,Corporate Travel Provider ,101601-110 ,516.44,
DFID,DFID,25/08/2014,Air fares ,Western Asia Division ,Corporate Travel Provider ,101601-110 ,630.64,
DFID,DFID,25/08/2014,Air fares ,Western Asia Division ,Corporate Travel Provider ,101601-110 ,"1,744.14",
DFID,DFID,25/08/2014,Air fares ,Western Asia Division ,Corporate Travel Provider ,101601-110 ,"1,641.34",
DFID,DFID,29/08/2014,Research & Development costs ,Research and Evidence Division ,INSTITUTE OF DEVELOPMENT STUDIES ,202042-101 ,"245,493.66",
DFID,DFID,06/08/2014,Secure Staff Accommodation ,Middle East  Humanitarian & Security Division ,Foreign & Commonwealth Office ,202410-101 ,"4,055.01",
DFID,DFID,08/08/2014,other information and communication technologies ,Middle East  Humanitarian & Security Division ,THE NATIONAL ARCHIVES ,202410-101 ,600.00,
DFID,DFID,27/08/2014,Air fares ,Middle East  Humanitarian & Security Division ,Corporate Travel Provider ,202410-101 ,"1,040.98",
DFID,DFID,27/08/2014,Air fares ,Middle East  Humanitarian & Security Division ,Corporate Travel Provider ,202410-101 ,"1,314.66",
DFID,DFID,27/08/2014,Air fares ,Middle East  Humanitarian & Security Division ,Corporate Travel Provider ,202410-101 ,612.10,
DFID,DFID,27/08/2014,Air fares ,International Relations Division ,Corporate Travel Provider ,201711-104 ,972.58,
DFID,DFID,27/08/2014,Air fares ,International Relations Division ,Corporate Travel Provider ,201711-104 ,509.10,
DFID,DFID,27/08/2014,Air fares ,International Relations Division ,Corporate Travel Provider ,201711-104 ,733.48,
DFID,DFID,25/08/2014,Hotels - Accommodation only ,International Finance Division ,Corporate Travel Provider ,202259-101 ,"1,412.52",
DFID,DFID,25/08/2014,Air fares ,International Finance Division ,Corporate Travel Provider ,202259-101 ,"1,136.54",
DFID,DFID,01/08/2014,Hotels - Accommodation only ,International Finance Division ,Recipient name withheld ,202259-101 ,522.12,
DFID,DFID,27/08/2014,Air fares ,International Finance Division ,Corporate Travel Provider ,202259-101 ,763.76,
DFID,DFID,27/08/2014,Air fares ,International Finance Division ,Corporate Travel Provider ,202259-101 ,868.20,
DFID,DFID,27/08/2014,Hotels - Accommodation only ,International Finance Division ,Corporate Travel Provider ,202259-101 ,"1,494.89",
DFID,DFID,01/08/2014,Hotels - Accommodation only ,Policy Division ,Recipient name withheld ,202419-102 ,878.45,
DFID,DFID,27/08/2014,Air fares ,Policy Division ,Corporate Travel Provider ,202419-102 ,"1,178.26",
DFID,DFID,27/08/2014,Air fares ,Policy Division ,Corporate Travel Provider ,202419-102 ,"1,058.93",
DFID,DFID,27/08/2014,Air fares ,Policy Division ,Corporate Travel Provider ,202419-102 ,524.39,
DFID,DFID,25/08/2014,Air fares ,Policy Division ,Corporate Travel Provider ,202419-105 ,653.96,
DFID,DFID,25/08/2014,Air fares ,Growth and Resilience Division ,Corporate Travel Provider ,202373-101 ,847.46,
DFID,DFID,29/08/2014,Hotels - Accommodation only ,Growth and Resilience Division ,Recipient name withheld ,202373-101 ,506.04,
DFID,DFID,27/08/2014,Air fares ,Growth and Resilience Division ,Corporate Travel Provider ,202373-101 ,893.30,
DFID,DFID,27/08/2014,Air fares ,Growth and Resilience Division ,Corporate Travel Provider ,202373-101 ,836.60,
DFID,DFID,27/08/2014,Air fares ,International Finance Division ,Corporate Travel Provider ,202432-101 ,693.41,
DFID,DFID,26/08/2014,Aid Programme - Core contributions ,Middle East  Humanitarian & Security Division ,United Nations General Trust Fund Account ,202603-101 ,"1,490,000.00",
DFID,DFID,25/08/2014,Air fares ,Research and Evidence Division ,Corporate Travel Provider ,202333-101 ,604.12,
DFID,DFID,27/08/2014,Air fares ,Research and Evidence Division ,Corporate Travel Provider ,202333-104 ,"1,104.26",
DFID,DFID,15/08/2014,Conferences  Seminars & Meeting/Event Resource ,East and Central Africa ,UNESCO (USD) ,202315-110 ,"12,136.16",
DFID,DFID,22/08/2014,Project delivery costs  supplier services ,West and Southern Africa ,Baker Tilly Nigeria ,202352-103 ,"15,936.31",
DFID,DFID,22/08/2014,other information and communication technologies ,East and Central Africa ,RCS - Radio & Satellite Communication ,202586-101 ,"1,166.69",
DFID,DFID,20/08/2014,Other rentals ,East and Central Africa ,Delegation of the European Union to South Sudan ,202586-101 ,"7,383.88",
DFID,DFID,25/08/2014,Air fares ,East and Central Africa ,Corporate Travel Provider ,202586-101 ,900.09,
DFID,DFID,28/08/2014,Print Services ,Finance and Corporate Performance Division ,Ministry of Justice (2) ,202836-101 ,522.00,
DFID,DFID,25/08/2014,Hotels - Accommodation only ,Finance and Corporate Performance Division ,Corporate Travel Provider ,202836-102 ,530.01,
DFID,DFID,25/08/2014,Air fares ,West and Southern Africa ,Corporate Travel Provider ,200546-103 ,"2,062.96",
DFID,DFID,20/08/2014,Aid Programme - Core contributions ,Research and Evidence Division ,CABI ,202748-101 ,"660,000.00",
DFID,DFID,21/08/2014,Project delivery costs  supplier services ,East and Central Africa ,Sub Saharan Africa Research and Training Center P.L.C ,202913-101 ,"21,578.25",
DFID,DFID,28/08/2014,Project delivery costs  supplier services ,East and Central Africa ,Jennifer Catino Consulting ,202913-101 ,"4,015.88",
DFID,DFID,28/08/2014,Project delivery costs  supplier services ,East and Central Africa ,Lestrade Consultancy Ltd ,202913-101 ,"4,125.00",
DFID,DFID,06/08/2014,Project delivery costs  supplier services ,East and Central Africa ,Lestrade Consultancy Ltd ,202913-101 ,"2,250.00",
DFID,DFID,26/08/2014,Project delivery costs  supplier services ,East and Central Africa ,Foreign & Commonwealth Office ,202913-101 ,944.98,
DFID,DFID,11/08/2014,Contract Catering Services ,East and Central Africa ,Foreign & Commonwealth Office ,202913-101 ,657.35,
DFID,DFID,27/08/2014,Hotels - Accommodation only ,Human Resources ,Corporate Travel Provider ,100269-158 ,"1,178.05",
DFID,DFID,29/08/2014,Project delivery costs  supplier services ,East and Central Africa ,ADAM SMITH INTERNATIONAL  LTD ,202974-101 ,"9,370.75",
DFID,DFID,01/08/2014,Aid Programme - Accountable Grant Payments ,Western Asia Division ,Education Fund for Sindh ,202378-103 ,"249,580.00",
DFID,DFID,01/08/2014,Project delivery costs  supplier services ,Western Asia Division ,Education Fund for Sindh ,202378-103 ,"1,424,705.00",
DFID,DFID,27/08/2014,Project delivery costs  supplier services ,East and Central Africa ,Mennonite Economic Development Associates of Canada ,202481-104 ,"175,510.66",
DFID,DFID,27/08/2014,Project delivery costs  supplier services ,East and Central Africa ,Mennonite Economic Development Associates of Canada ,202481-104 ,"175,510.66",
DFID,DFID,14/08/2014,Encashment of Promissory Notes ,International Finance Division ,AFRICAN  DEVELOPMENT BANK GROUP ,202278-102 ,"21,361,507.96",
DFID,DFID,14/08/2014,Aid Programme - Other Financial Aid to Government ,Asia  Caribbean and Overseas Territories ,Tristan da Cunha Finance Department ,203136-101 ,"114,953.09",
DFID,DFID,14/08/2014,Aid Programme - Other Financial Aid to Government ,Asia  Caribbean and Overseas Territories ,Tristan da Cunha Finance Department ,203136-102 ,"2,792.97",
DFID,DFID,25/08/2014,Aid Programme - Voluntary contributions ,East and Central Africa ,UNOPS ,202827-105 ,"138,000.00",
DFID,DFID,12/08/2014,Aid Programme - Core contributions ,West and Southern Africa ,The World  Bank IBRD ,104190-111 ,"149,400.00",
DFID,DFID,06/08/2014,Project delivery costs  supplier services ,Western Asia Division ,Supplier Name withheld ,202112-102 ,"95,183.58",
DFID,DFID,15/08/2014,Project delivery costs  supplier services ,Policy Division ,Foreign & Commonwealth Office ,203146-101 ,"9,272.57",
DFID,DFID,25/08/2014,Aid Programme - Accountable Grant Payments ,East and Central Africa ,WaterAid Tanzania ,202852-103 ,"86,204.00",
DFID,DFID,04/08/2014,Aid Programme - Accountable Grant Payments ,Policy Division ,WESTMINSTER FOUNDATION FOR DEMOCRACY ,202308-101 ,"416,302.00",
DFID,DFID,19/08/2014,Project delivery costs  supplier services ,Western Asia Division ,Supplier Name withheld ,203309-101 ,"21,044.00",
DFID,DFID,25/08/2014,Project delivery costs  supplier services ,Western Asia Division ,Supplier Name withheld ,203309-101 ,"22,952.04",
DFID,DFID,20/08/2014,Project delivery costs  supplier services ,Western Asia Division ,Supplier Name withheld ,203309-101 ,"48,478.00",
DFID,DFID,12/08/2014,Aid Programme - Accountable Grant Payments ,Policy Division ,IUCN Mesoamerican and the Caribbean ,201724-123 ,"269,240.00",
DFID,DFID,21/08/2014,Project delivery costs  supplier services ,Asia  Caribbean and Overseas Territories ,CENTRE FOR GOOD GOVERNANCE ,203484-101 ,"12,204.40",
DFID,DFID,22/08/2014,Aid Programme - Other Financial Aid to Government ,Asia  Caribbean and Overseas Territories ,St Helena Department of Finance ,203140-101 ,"148,173.00",
DFID,DFID,15/08/2014,Data Network -Satellite ,East and Central Africa ,Foreign & Commonwealth Office ,202913-104 ,"1,032.53",
DFID,DFID,13/08/2014,Aid Programme - Accountable Grant Payments ,Western Asia Division ,Supplier Name withheld ,203501-104 ,"101,527.00",
DFID,DFID,08/08/2014,Aid Programme - Accountable Grant Payments ,Asia  Caribbean and Overseas Territories ,Dolma Development Fund ,203426-101 ,"40,866.77",
DFID,DFID,06/08/2014,Aid Programme - Accountable Grant Payments ,Research and Evidence Division ,GALVmed ,203188-102 ,"431,259.00",
DFID,DFID,26/08/2014,Aid Programme - Accountable Grant Payments ,Western Asia Division ,International Foundation for Electoral Systems (IFES) ,203039-101 ,"688,434.00",
DFID,DFID,05/08/2014,Project delivery costs  supplier services ,Growth and Resilience Division ,LONDON SCHOOL OF ECONOMICS AND POLITICAL SCIENCE ,203286-101 ,"700,000.00",
DFID,DFID,26/08/2014,Project delivery costs  supplier services ,East and Central Africa ,Jacqueline Halima Mgumia ,203459-103 ,"9,092.32",
DFID,DFID,12/08/2014,Aid Programme - Accountable Grant Payments ,Research and Evidence Division ,AATF ,201501-102 ,"458,900.00",
DFID,DFID,25/08/2014,Air fares ,Asia  Caribbean and Overseas Territories ,Corporate Travel Provider ,201739-101 ,"1,892.81",
DFID,DFID,25/08/2014,Air fares ,Asia  Caribbean and Overseas Territories ,Corporate Travel Provider ,201739-101 ,517.62,
DFID,DFID,12/08/2014,UK Staff overseas - Flexi Travel Allowance ,West and Southern Africa ,Supplier Name withheld ,101622-103 ,566.74,
DFID,DFID,25/08/2014,Hotels - Accommodation only ,Asia  Caribbean and Overseas Territories ,Corporate Travel Provider ,101603-102 ,514.77,
DFID,DFID,29/08/2014,Aid Programme - Joint programme contribution ,Asia  Caribbean and Overseas Territories ,Foreign & Commonwealth Office ,203478-101 ,954.67,
DFID,DFID,25/08/2014,Air fares ,East and Central Africa ,Corporate Travel Provider ,101625-102 ,845.51,
DFID,DFID,27/08/2014,Air fares ,East and Central Africa ,Corporate Travel Provider ,101625-102 ,"1,142.56",
DFID,DFID,27/08/2014,Air fares ,East and Central Africa ,Corporate Travel Provider ,101625-102 ,723.58,
DFID,DFID,25/08/2014,Air fares ,West and Southern Africa ,Corporate Travel Provider ,201763-101 ,981.46,
DFID,DFID,07/08/2014,Aid Programme - Trust Funds contributions ,Policy Division ,IBRD (HSBC)  C/O THE WORLD BANK ,203034-103 ,"1,000,000.00",
DFID,DFID,27/08/2014,Air fares ,East and Central Africa ,Corporate Travel Provider ,203473-101 ,927.63,
DFID,DFID,20/08/2014,Aid Programme - Core contributions ,Policy Division ,UNCCD (United Nations Convention to Combat Desertification) ,113735-103 ,"312,464.95",
DFID,DFID,06/08/2014,Aid Programme - Accountable Grant Payments ,East and Central Africa ,NORWEGIAN PEOPLE'S AID(NPA) ,203738-101 ,"210,208.54",
DFID,DFID,06/08/2014,Project delivery costs  supplier services ,Middle East  Humanitarian & Security Division ,Foreign & Commonwealth Office ,203249-103 ,"25,863.89",
DFID,DFID,25/08/2014,Aid Programme - Accountable Grant Payments ,West and Southern Africa ,Health Reform Foundation of Nigeria ,203654-101 ,"195,468.61",
DFID,DFID,27/08/2014,UK Staff overseas - Flexi Travel Allowance ,West and Southern Africa ,Corporate Travel Provider ,202351-105 ,"1,104.46",
DFID,DFID,25/08/2014,Air fares ,Western Asia Division ,Corporate Travel Provider ,100011-110 ,"1,690.88",
DFID,DFID,28/08/2014,Research & Development costs ,Research and Evidence Division ,Social Finance Limited ,203604-101 ,"102,582.31",
DFID,DFID,27/08/2014,Air fares ,International Finance Division ,Corporate Travel Provider ,204686-101 ,"1,441.06",
DFID,DFID,28/08/2014,Aid Programme - Accountable Grant Payments ,East and Central Africa ,HARVARD UNIVERSITY (OFFICE FOR SPONSERED PROGRAMS) ,202574-106 ,"60,315.27",
DFID,DFID,15/08/2014,Repairs  Maintenance and Alterations – Other Building Costs ,Group Operations ,MITIE Technical Facilities Management Ltd ,203717-101 ,957.80,
DFID,DFID,14/08/2014,Other Building Products ,Group Operations ,Wireless Alert Solutions Limited ,203717-101 ,"1,050.00",
DFID,DFID,12/08/2014,Repairs  Maintenance and Alterations – Other Building Costs ,Group Operations ,MITIE Technical Facilities Management Ltd ,203717-101 ,"1,237.17",
DFID,DFID,11/08/2014,Repairs  Maintenance and Alterations – Other Building Costs ,Group Operations ,MITIE Technical Facilities Management Ltd ,203717-101 ,"1,905.22",
DFID,DFID,20/08/2014,Storage & Distribution costs ,Group Operations ,PICKFORDS LTD ,203717-101 ,"1,425.00",
DFID,DFID,13/08/2014,Repairs  Maintenance and Alterations – Other Building Costs ,Group Operations ,MITIE Technical Facilities Management Ltd ,203717-101 ,874.50,
DFID,DFID,12/08/2014,Repairs  Maintenance and Alterations – Other Building Costs ,Group Operations ,MITIE Technical Facilities Management Ltd ,203717-101 ,850.00,
DFID,DFID,25/08/2014,Air fares ,Research and Evidence Division ,Corporate Travel Provider ,203874-101 ,"1,089.00",
DFID,DFID,25/08/2014,Air fares ,Research and Evidence Division ,Corporate Travel Provider ,203874-101 ,635.31,
DFID,DFID,25/08/2014,Air fares ,Research and Evidence Division ,Corporate Travel Provider ,203874-101 ,589.98,
DFID,DFID,25/08/2014,Air fares ,Research and Evidence Division ,Corporate Travel Provider ,203874-102 ,727.27,
DFID,DFID,27/08/2014,Air fares ,Research and Evidence Division ,Corporate Travel Provider ,203874-102 ,700.56,
DFID,DFID,27/08/2014,Air fares ,Research and Evidence Division ,Corporate Travel Provider ,203874-102 ,700.56,
DFID,DFID,27/08/2014,Air fares ,Research and Evidence Division ,Corporate Travel Provider ,203874-102 ,634.56,
DFID,DFID,15/08/2014,Secure Staff Accommodation ,Research and Evidence Division ,Foreign & Commonwealth Office ,202392-101 ,"2,174.42",
DFID,DFID,25/08/2014,Air fares ,Research and Evidence Division ,Corporate Travel Provider ,202392-102 ,"1,640.10",
DFID,DFID,27/08/2014,Air fares ,Research and Evidence Division ,Corporate Travel Provider ,202392-102 ,788.96,
DFID,DFID,25/08/2014,Air fares ,Research and Evidence Division ,Corporate Travel Provider ,202392-104 ,"1,010.62",
DFID,DFID,27/08/2014,Hotels - Accommodation only ,Research and Evidence Division ,Corporate Travel Provider ,202392-104 ,534.33,
DFID,DFID,25/08/2014,Rail Transport ,Research and Evidence Division ,Corporate Travel Provider ,202392-107 ,595.74,
DFID,DFID,25/08/2014,Air fares ,Asia  Caribbean and Overseas Territories ,Corporate Travel Provider ,202403-101 ,613.08,
DFID,DFID,15/08/2014,Telephone Usage & services ,Asia  Caribbean and Overseas Territories ,Foreign & Commonwealth Office ,202403-101 ,567.06,
DFID,DFID,27/08/2014,Air fares ,Asia  Caribbean and Overseas Territories ,Corporate Travel Provider ,202403-101 ,"1,193.09",
DFID,DFID,27/08/2014,Hotels - Accommodation only ,Asia  Caribbean and Overseas Territories ,Corporate Travel Provider ,202403-101 ,660.97,
DFID,DFID,27/08/2014,Air fares ,Asia  Caribbean and Overseas Territories ,Corporate Travel Provider ,202403-101 ,"1,193.09",
DFID,DFID,29/08/2014,Repairs  Maintenance and Alterations – Other Building Costs ,West and Southern Africa ,Foreign & Commonwealth Office ,101638-103 ,992.67,
DFID,DFID,07/08/2014,Furniture & Fittings ,West and Southern Africa ,Mr Eze Samson ,101622-105 ,"1,137.75",
DFID,DFID,27/08/2014,Air fares ,West and Southern Africa ,Supplier Name withheld ,101622-105 ,"2,006.96",
DFID,DFID,29/08/2014,Project delivery costs  supplier services ,West and Southern Africa ,Foreign & Commonwealth Office ,101622-105 ,"10,371.90",
DFID,DFID,27/08/2014,Air fares ,West and Southern Africa ,Supplier Name withheld ,101622-106 ,997.06,
DFID,DFID,27/08/2014,Air fares ,West and Southern Africa ,Supplier Name withheld ,101622-106 ,613.70,
DFID,DFID,27/08/2014,Air fares ,West and Southern Africa ,Supplier Name withheld ,101622-106 ,928.68,
DFID,DFID,27/08/2014,Air fares ,West and Southern Africa ,Supplier Name withheld ,101622-106 ,874.76,
DFID,DFID,27/08/2014,Air fares ,West and Southern Africa ,Supplier Name withheld ,101622-106 ,848.06,
DFID,DFID,27/08/2014,Air fares ,West and Southern Africa ,Supplier Name withheld ,101622-106 ,"1,000.20",
DFID,DFID,25/08/2014,Air fares ,West and Southern Africa ,Supplier Name withheld ,101622-106 ,586.50,
DFID,DFID,25/08/2014,Air fares ,West and Southern Africa ,Supplier Name withheld ,101622-106 ,988.48,
DFID,DFID,25/08/2014,Air fares ,West and Southern Africa ,Supplier Name withheld ,101622-106 ,"6,011.80",
DFID,DFID,25/08/2014,Air fares ,West and Southern Africa ,Supplier Name withheld ,101622-106 ,993.48,
DFID,DFID,25/08/2014,Air fares ,West and Southern Africa ,Supplier Name withheld ,101622-106 ,"1,166.48",
DFID,DFID,25/08/2014,Hotels - Accommodation only ,West and Southern Africa ,Supplier Name withheld ,101622-106 ,833.93,
DFID,DFID,21/08/2014,Project delivery costs  supplier services ,West and Southern Africa ,International Monetary Fund (GBP) ,202468-104 ,"207,119.00",
DFID,DFID,29/08/2014,Aid Programme - Accountable Grant Payments ,West and Southern Africa ,Civil Resource Development & Documentation Centre ,114230-104 ,"28,554.55",
DFID,DFID,25/08/2014,Air fares ,West and Southern Africa ,Corporate Travel Provider ,204049-102 ,604.60,
DFID,DFID,25/08/2014,Air fares ,West and Southern Africa ,Corporate Travel Provider ,204049-102 ,604.60,
DFID,DFID,22/08/2014,Research & Development costs ,Research and Evidence Division ,UNICEF ,203529-102 ,"1,048,349.00",
DFID,DFID,20/08/2014,Aid Programme - Accountable Grant Payments ,East and Central Africa ,TechnoServe  Incorporated ,202844-104 ,"201,341.00",
DFID,DFID,25/08/2014,Air fares ,Middle East  Humanitarian & Security Division ,Corporate Travel Provider ,201701-101 ,706.71,
DFID,DFID,25/08/2014,Air fares ,Middle East  Humanitarian & Security Division ,Corporate Travel Provider ,201701-101 ,750.47,
DFID,DFID,25/08/2014,Air fares ,Middle East  Humanitarian & Security Division ,Corporate Travel Provider ,201701-101 ,731.10,
DFID,DFID,27/08/2014,Air fares ,Middle East  Humanitarian & Security Division ,Corporate Travel Provider ,201701-101 ,647.18,
DFID,DFID,27/08/2014,Air fares ,Middle East  Humanitarian & Security Division ,Corporate Travel Provider ,201701-101 ,647.28,
DFID,DFID,25/08/2014,Air fares ,West and Southern Africa ,Supplier Name withheld ,100152-114 ,"1,059.70",
DFID,DFID,27/08/2014,Air fares ,West and Southern Africa ,Supplier Name withheld ,100152-114 ,911.08,
DFID,DFID,27/08/2014,Air fares ,West and Southern Africa ,Supplier Name withheld ,100152-114 ,911.08,
DFID,DFID,27/08/2014,Further Education costs ,West and Southern Africa ,Walden University. United States of America ,100152-114 ,"1,300.09",
DFID,DFID,22/08/2014,Computer Software Licenses,Human Resources ,Towers Watson Limited ,100269-148 ,"4,008.00",
DFID,DFID,06/08/2014,Telephone Usage & services ,Asia  Caribbean and Overseas Territories ,Foreign & Commonwealth Office ,203478-105 ,501.12,
DFID,DFID,06/08/2014,Secure Staff Accommodation ,Asia  Caribbean and Overseas Territories ,Foreign & Commonwealth Office ,203478-105 ,"3,872.19",
DFID,DFID,29/08/2014,Project delivery costs  supplier services ,Asia  Caribbean and Overseas Territories ,Foreign & Commonwealth Office ,203601-108 ,"2,068.64",
DFID,DFID,28/08/2014,Aid Programme - Other Financial Aid to Government ,East and Central Africa ,Ministry of Finance Tanzania Water Supply ,204033-102 ,"5,000,000.00",
DFID,DFID,25/08/2014,Air fares ,Policy Division ,Corporate Travel Provider ,202402-107 ,769.84,
DFID,DFID,25/08/2014,Air fares ,Policy Division ,Corporate Travel Provider ,202402-107 ,843.91,
DFID,DFID,27/08/2014,Air fares ,Policy Division ,Corporate Travel Provider ,202402-107 ,858.57,
DFID,DFID,27/08/2014,Air fares ,Policy Division ,Corporate Travel Provider ,202402-107 ,"1,044.36",
DFID,DFID,27/08/2014,Air fares ,Policy Division ,Corporate Travel Provider ,202402-107 ,"1,032.65",
DFID,DFID,19/08/2014,Hotels - Accommodation only ,Policy Division ,Recipient name withheld ,202402-107 ,"1,033.23",
DFID,DFID,21/08/2014,Project delivery costs  supplier services ,Middle East  Humanitarian & Security Division ,Swedish Armed Forces ,203940-102 ,"1,281.60",
DFID,DFID,22/08/2014,Travel - Subsistence ,Middle East  Humanitarian & Security Division ,Recipient name withheld ,203940-102 ,682.30,
DFID,DFID,25/08/2014,Air fares ,West and Southern Africa ,Corporate Travel Provider ,101637-102 ,767.14,
DFID,DFID,08/08/2014,Further Education costs ,West and Southern Africa ,Recipient name withheld ,101637-102 ,967.50,
DFID,DFID,06/08/2014,Project delivery costs  supplier services ,West and Southern Africa ,The World  Bank IBRD ,203920-101 ,"9,515.20",
DFID,DFID,08/08/2014,Hotels - Accommodation only ,Middle East  Humanitarian & Security Division ,Recipient name withheld ,203938-105 ,650.27,
DFID,DFID,25/08/2014,Air fares ,International Relations Division ,Corporate Travel Provider ,203707-102 ,"1,729.20",
DFID,DFID,27/08/2014,Air fares ,International Relations Division ,Corporate Travel Provider ,203707-102 ,736.30,
DFID,DFID,11/08/2014,Project delivery costs  supplier services ,West and Southern Africa ,Tiwai Memory Masters Dollar ,203585-102 ,"12,061.79",
DFID,DFID,22/08/2014,Project delivery costs  supplier services ,West and Southern Africa ,Recipient name withheld ,203701-103 ,"1,059.53",
DFID,DFID,27/08/2014,Air fares ,Middle East  Humanitarian & Security Division ,Corporate Travel Provider ,203938-101 ,983.26,
DFID,DFID,27/08/2014,Air fares ,Middle East  Humanitarian & Security Division ,Corporate Travel Provider ,203938-101 ,"1,301.16",
DFID,DFID,08/08/2014,Aid Programme - Voluntary contributions ,East and Central Africa ,   THE WORLD BANK ,203363-107 ,"55,000.00",
DFID,DFID,11/08/2014,"Conferences, Seminars & Meeting/Event Resource",Middle East  Humanitarian & Security Division ,Police Superintendents' Association of E&W ,203944-102 ,"1,000.00",
DFID,DFID,25/08/2014,Air fares ,Middle East  Humanitarian & Security Division ,Corporate Travel Provider ,203944-106 ,"1,616.08",
DFID,DFID,25/08/2014,Air fares ,Middle East  Humanitarian & Security Division ,Corporate Travel Provider ,203944-106 ,"1,466.08",
DFID,DFID,27/08/2014,Hotels - Accommodation only ,Middle East  Humanitarian & Security Division ,Corporate Travel Provider ,203944-107 ,537.42,
DFID,DFID,27/08/2014,Air fares ,Middle East  Humanitarian & Security Division ,Corporate Travel Provider ,203944-107 ,806.11,
DFID,DFID,27/08/2014,Hotels - Accommodation only ,Middle East  Humanitarian & Security Division ,Corporate Travel Provider ,203944-108 ,513.22,
DFID,DFID,27/08/2014,Hotels - Accommodation only ,Middle East  Humanitarian & Security Division ,Corporate Travel Provider ,203944-108 ,571.39,
DFID,DFID,25/08/2014,Air fares ,Middle East  Humanitarian & Security Division ,Corporate Travel Provider ,203944-109 ,"2,125.01",
DFID,DFID,20/08/2014,Project delivery costs  supplier services ,East and Central Africa ,OPTIONS CONSULTANCY SERVICES LIMITED ,203024-103 ,"128,906.00",
DFID,DFID,29/08/2014,Secure Staff Accommodation ,East and Central Africa ,Foreign & Commonwealth Office ,101625-106 ,"1,028.45",
DFID,DFID,25/08/2014,Air fares ,East and Central Africa ,Corporate Travel Provider ,101625-106 ,771.56,
DFID,DFID,13/08/2014,Aid Programme - Accountable Grant Payments ,Research and Evidence Division ,GSMA Ltd ,203638-102 ,"1,150,125.00",
DFID,DFID,28/08/2014,Project delivery costs  supplier services ,Asia  Caribbean and Overseas Territories ,N K Sharma & Co  ,108538-105 ,"1,084.10",
DFID,DFID,15/08/2014,Aid Programme - Accountable Grant Payments ,Research and Evidence Division ,Shell Foundation ,203157-102 ,"215,637.00",
DFID,DFID,29/08/2014,Hotels - Accommodation only ,Middle East  Humanitarian & Security Division ,Foreign & Commonwealth Office ,204055-101 ,552.18,
DFID,DFID,25/08/2014,Air fares ,Middle East  Humanitarian & Security Division ,Corporate Travel Provider ,204055-101 ,"1,225.76",
DFID,DFID,25/08/2014,Air fares ,Middle East  Humanitarian & Security Division ,Corporate Travel Provider ,204055-101 ,"1,225.76",
DFID,DFID,27/08/2014,Air fares ,Middle East  Humanitarian & Security Division ,Corporate Travel Provider ,204055-101 ,736.16,
DFID,DFID,27/08/2014,Air fares ,Middle East  Humanitarian & Security Division ,Corporate Travel Provider ,204055-101 ,529.66,
DFID,DFID,04/08/2014,Aid Programme - Accountable Grant Payments ,Middle East  Humanitarian & Security Division ,HARVARD UNIVERSITY (OFFICE FOR SPONSERED PROGRAMS) ,200507-104 ,"171,194.63",
DFID,DFID,05/08/2014,Aid Programme - Accountable Grant Payments ,Policy Division ,WORLD RESOURCES INSTITUTE ,201724-147 ,"446,582.00",
DFID,DFID,28/08/2014,Aid Programme - Other Financial Aid to Government ,East and Central Africa ,Ministry of Finance Tanzania Water Supply ,204033-106 ,"5,000,000.00",
DFID,DFID,27/08/2014,Hotels - Accommodation only ,Group Operations ,Corporate Travel Provider ,204284-101 ,516.71,
DFID,DFID,25/08/2014,Project delivery costs  supplier services ,West and Southern Africa ,Cork Communications ,204438-101 ,"36,735.40",
DFID,DFID,25/08/2014,Project delivery costs  supplier services ,West and Southern Africa ,Chukwuma Agu ,204438-101 ,"6,298.28",
DFID,DFID,25/08/2014,Project delivery costs  supplier services ,West and Southern Africa ,Chinedu Eze ,204438-101 ,"8,019.16",
DFID,DFID,25/08/2014,Project delivery costs  supplier services ,West and Southern Africa ,Daniel Sunday Ugwu ,204438-101 ,"5,822.56",
DFID,DFID,05/08/2014,Secure Staff Accommodation ,East and Central Africa ,Supplier Name withheld ,204334-102 ,"26,272.19",
DFID,DFID,27/08/2014,Air fares ,International Relations Division ,Corporate Travel Provider ,100262-103 ,911.75,
DFID,DFID,27/08/2014,Air fares ,International Relations Division ,Corporate Travel Provider ,100262-103 ,998.76,
DFID,DFID,25/08/2014,Air fares ,International Relations Division ,Corporate Travel Provider ,100262-103 ,998.01,
DFID,DFID,29/08/2014,Hotels - Accommodation only ,International Relations Division ,Foreign & Commonwealth Office ,100262-103 ,"4,357.21",
DFID,DFID,25/08/2014,Air fares ,International Relations Division ,Corporate Travel Provider ,100262-103 ,888.26,
DFID,DFID,25/08/2014,Air fares ,International Relations Division ,Corporate Travel Provider ,100262-103 ,888.26,
DFID,DFID,25/08/2014,Air fares ,International Relations Division ,Corporate Travel Provider ,100262-103 ,"1,322.20",
DFID,DFID,25/08/2014,Air fares ,International Relations Division ,Corporate Travel Provider ,100262-103 ,"1,368.60",
DFID,DFID,25/08/2014,Hotels - Accommodation only ,East and Central Africa ,Corporate Travel Provider ,202995-107 ,799.74,
DFID,DFID,05/08/2014,Project delivery costs  supplier services ,Research and Evidence Division ,LONDON SCHOOL OF ECONOMICS AND POLITICAL SCIENCE ,203286-103 ,"118,460.18",
DFID,DFID,27/08/2014,Air fares ,Global Funds ,Corporate Travel Provider ,204452-101 ,866.26,
DFID,DFID,27/08/2014,Aid Programme - Humanitarian Material Relief Assistance and Services ,Western Asia Division ,INTERNATIONAL RESCUE COMMITTEE UK ,203967-110 ,"453,523.00",
DFID,DFID,27/08/2014,Air fares ,Finance and Corporate Performance Division ,Corporate Travel Provider ,204662-101 ,913.46,
DFID,DFID,27/08/2014,Air fares ,Finance and Corporate Performance Division ,Corporate Travel Provider ,204662-101 ,655.92,
DFID,DFID,07/08/2014,Project delivery costs  supplier services ,Policy Division ,PRICEWATERHOUSECOOPERS ,114370-104 ,"258,288.28",
DFID,DFID,07/08/2014,Project delivery costs  supplier services ,Policy Division ,PRICEWATERHOUSECOOPERS ,114370-104 ,"98,988.96",
DFID,DFID,11/08/2014,Secure Staff Accommodation ,Policy Division ,Recipient name withheld ,100191-105 ,525.00,
DFID,DFID,28/08/2014,Aid Programme - Trust Funds contributions ,Research and Evidence Division ,IBRD HSBC T ,204343-101 ,"1,200,000.00",
DFID,DFID,27/08/2014,Air fares ,East and Central Africa ,Corporate Travel Provider ,202594-101 ,"1,299.25",
DFID,DFID,27/08/2014,Air fares ,East and Central Africa ,Corporate Travel Provider ,202594-101 ,759.33,
DFID,DFID,27/08/2014,Air fares ,East and Central Africa ,Corporate Travel Provider ,202594-101 ,751.71,
DFID,DFID,20/08/2014,Other rentals ,East and Central Africa ,Delegation of the European Union to South Sudan ,202594-101 ,"7,383.88",
DFID,DFID,25/08/2014,Air fares ,East and Central Africa ,Corporate Travel Provider ,202594-101 ,"1,047.83",
DFID,DFID,25/08/2014,Air fares ,East and Central Africa ,Corporate Travel Provider ,202594-101 ,516.09,
DFID,DFID,25/08/2014,Air fares ,East and Central Africa ,Corporate Travel Provider ,202594-101 ,"1,188.90",
DFID,DFID,25/08/2014,Air fares ,East and Central Africa ,Corporate Travel Provider ,202594-101 ,886.98,
DFID,DFID,25/08/2014,Air fares ,East and Central Africa ,Corporate Travel Provider ,202594-101 ,"1,481.42",
DFID,DFID,25/08/2014,Air fares ,East and Central Africa ,Corporate Travel Provider ,202594-101 ,"1,047.83",
DFID,DFID,25/08/2014,Hotels - Accommodation only ,East and Central Africa ,Corporate Travel Provider ,202594-101 ,"1,196.33",
DFID,DFID,25/08/2014,Air fares ,East and Central Africa ,Corporate Travel Provider ,202594-101 ,696.20,
DFID,DFID,25/08/2014,Hotels - Accommodation only ,East and Central Africa ,Corporate Travel Provider ,202594-101 ,835.99,
DFID,DFID,22/08/2014,other information and communication technologies ,East and Central Africa ,RCS - Radio & Satellite Communication ,202594-101 ,"1,166.69",
DFID,DFID,27/08/2014,Air fares ,East and Central Africa ,Corporate Travel Provider ,100016-107 ,"3,057.46",
DFID,DFID,27/08/2014,Air fares ,East and Central Africa ,Corporate Travel Provider ,100016-107 ,"3,317.46",
DFID,DFID,05/08/2014,Project delivery costs  supplier services ,West and Southern Africa ,Basel Institute On Governance ,200469-117 ,"7,015.00",
DFID,DFID,25/08/2014,Hotels - Accommodation only ,Policy Division ,Corporate Travel Provider ,202419-106 ,861.72,
DFID,DFID,25/08/2014,Air fares ,Policy Division ,Corporate Travel Provider ,100277-109 ,531.14,
DFID,DFID,29/08/2014,Project delivery costs  supplier services ,West and Southern Africa ,OPTIONS CONSULTANCY SERVICES LIMITED ,202214-103 ,"219,306.00",
DFID,DFID,27/08/2014,Air fares ,Regional Directorate ,Corporate Travel Provider ,204833-101 ,"1,050.60",
DFID,DFID,27/08/2014,Air fares ,Middle East  Humanitarian & Security Division ,Corporate Travel Provider ,204844-101 ,998.76,
DFID,DFID,07/08/2014,Project delivery costs  supplier services ,Policy Division ,PRICEWATERHOUSECOOPERS ,114370-105 ,"21,504.25",
DFID,DFID,07/08/2014,Project delivery costs  supplier services ,Policy Division ,PRICEWATERHOUSECOOPERS ,114370-105 ,"355,109.50",
DFID,DFID,04/08/2014,Project delivery costs  supplier services ,Policy Division ,PWC GEC Client Account ,202372-103 ,"15,267,356.00",
DFID,DFID,08/08/2014,Project delivery costs  supplier services ,West and Southern Africa ,HEALTH PARTNERS INTERNATIONAL ,104227-105 ,"232,920.44",
DFID,DFID,28/08/2014,Project delivery costs  supplier services ,East and Central Africa ,Josphine Chumba Nyatichi ,203439-102 ,508.14,
DFID,DFID,28/08/2014,Project delivery costs  supplier services ,East and Central Africa ,Joshua Mwaura Chege ,203439-102 ,508.14,
DFID,DFID,28/08/2014,Project delivery costs  supplier services ,East and Central Africa ,Jerry Oyieko ,203439-102 ,508.14,
DFID,DFID,28/08/2014,Project delivery costs  supplier services ,East and Central Africa ,Delvin Ombati ,203439-102 ,508.14,
DFID,DFID,25/08/2014,Air fares ,International Relations Division ,Corporate Travel Provider ,202319-101 ,812.03,
DFID,DFID,29/08/2014,Secure Staff Accommodation ,International Relations Division ,Recipient name withheld ,202319-101 ,"2,042.22",
DFID,DFID,22/08/2014,Project delivery costs  supplier services ,Policy Division ,Crown Agents Bank ,201724-129 ,"82,282.32",
DFID,DFID,15/08/2014,Project delivery costs  supplier services ,Policy Division ,LTS International Ltd. ,201724-133 ,"241,864.00",
DFID,DFID,27/08/2014,Hotels - Accommodation only ,West and Southern Africa ,Corporate Travel Provider ,203001-105 ,"1,753.30",
DFID,DFID,15/08/2014,Repairs  Maintenance and Alterations – Other Building Costs ,East and Central Africa ,Foreign & Commonwealth Office ,202974-107 ,623.69,
DFID,DFID,18/08/2014,Hotels - Accommodation only ,East and Central Africa ,Recipient name withheld ,202974-107 ,538.09,
DFID,DFID,14/08/2014,DFID Purchased Relief Supplies ,Policy Division ,IPA-International Procurement Agency (BV) ,201724-144 ,"1,336.50",
DFID,DFID,12/08/2014,Project delivery costs  supplier services ,Western Asia Division ,Innovative Development Strategies (Pvt) LTd ,204590-101 ,"2,315.44",
DFID,DFID,27/08/2014,Project delivery costs  supplier services ,Western Asia Division ,Innovative Development Strategies (Pvt) LTd ,204590-101 ,"4,583.39",
DFID,DFID,25/08/2014,Air fares ,East and Central Africa ,Corporate Travel Provider ,101625-107 ,"1,104.41",
DFID,DFID,27/08/2014,Air fares ,East and Central Africa ,Corporate Travel Provider ,101625-107 ,675.58,
DFID,DFID,27/08/2014,Air fares ,Research and Evidence Division ,Corporate Travel Provider ,204815-101 ,551.64,
DFID,DFID,13/08/2014,Research & Development costs ,Research and Evidence Division ,Tim Leyland ,204823-101 ,"4,680.00",
DFID,DFID,07/08/2014,Aid Programme - Accountable Grant Payments ,Policy Division ,WELL GROUNDED LTD ,201724-108 ,"245,787.00",
DFID,DFID,07/08/2014,Aid Programme - Accountable Grant Payments ,Policy Division ,WELL GROUNDED LTD ,201724-108 ,"69,583.00",
DFID,DFID,07/08/2014,Project delivery costs  supplier services ,Asia  Caribbean and Overseas Territories ,Crown Agents Bank ,201645-105 ,"100,677.74",
DFID,DFID,04/08/2014,Project delivery costs  supplier services ,Trade for Development Division ,Co-Creation Hub Nigeria ,203530-102 ,"9,400.00",
DFID,DFID,14/08/2014,Project delivery costs  supplier services ,Trade for Development Division ,Co-Creation Hub Nigeria ,203530-102 ,"9,400.00",
DFID,DFID,01/08/2014,Research & Development costs ,Research and Evidence Division ,Abt Associates ,203052-102 ,"165,986.76",
DFID,DFID,18/08/2014,Aid Programme - Accountable Grant Payments ,Research and Evidence Division ,Zvitambo Institute for Maternal & Child Health Research ,201854-106 ,"171,725.67",
DFID,DFID,27/08/2014,Air fares ,Western Asia Division ,Corporate Travel Provider ,204791-101 ,588.00,
DFID,DFID,29/08/2014,Vehicle Purchase Costs ,Asia  Caribbean and Overseas Territories ,Foreign & Commonwealth Office ,204800-101 ,"25,657.32",
DFID,DFID,15/08/2014,Aid Programme - Joint programme contribution ,Asia  Caribbean and Overseas Territories ,Asian Development Bank - G0093 DFID ,114453-104 ,"9,012.00",
DFID,DFID,29/08/2014,Storage & Distribution costs ,Business Solutions Division Level ,TNT Express (UK) Ltd ,200001-101 ,"4,521.26",
DFID,DFID,05/08/2014,Aid Programme - Accountable Grant Payments ,Research and Evidence Division ,IPDET  CARLETON UNIVERSITY ,203014-104 ,"75,000.00",
DFID,DFID,08/08/2014,Research & Development costs ,Research and Evidence Division ,ODI ,204594-101 ,"19,832.08",
DFID,DFID,27/08/2014,Research & Development costs ,Research and Evidence Division ,ODI ,204776-101 ,"14,972.50",
DFID,DFID,19/08/2014,Project delivery costs  supplier services ,Policy Division ,Sightsavers ,203145-101 ,"334,698.00",
DFID,DFID,18/08/2014,Project delivery costs  supplier services ,Research and Evidence Division ,Centre for Health and Social Services ,202294-111 ,"5,721.17",
DFID,DFID,01/08/2014,Project delivery costs  supplier services ,Middle East  Humanitarian & Security Division ,UPPER QUARTILE ,203620-103 ,"95,073.00",
DFID,DFID,21/08/2014,Aid Programme - Voluntary contributions ,Middle East  Humanitarian & Security Division ,UNICEF UK ,204007-133 ,"1,058,118.00",
DFID,DFID,28/08/2014,Project delivery costs  supplier services ,Western Asia Division ,WYG International ,100020-101 ,"2,588.15",
DFID,DFID,28/08/2014,Project delivery costs  supplier services ,Western Asia Division ,WYG International ,100020-101 ,"6,800.00",
DFID,DFID,19/08/2014,Project delivery costs  supplier services ,Policy Division ,Calder Conferences ,204826-102 ,"5,304.60",
DFID,DFID,19/08/2014,Project delivery costs  supplier services ,Policy Division ,Calder Conferences ,204826-102 ,995.38,
DFID,DFID,26/08/2014,Project delivery costs  supplier services ,Asia  Caribbean and Overseas Territories ,HTSPE LTD ,203035-102 ,"3,662.65",
DFID,DFID,19/08/2014,Project delivery costs  supplier services ,Research and Evidence Division ,CAB INTERNATIONAL ,112152-102 ,"29,149.29",
DFID,DFID,28/08/2014,Project delivery costs  supplier services ,West and Southern Africa ,OXFORD POLICY MANAGEMENT ,202643-103 ,"135,069.87",
DFID,DFID,29/08/2014,Aid Programme - Accountable Grant Payments ,Middle East  Humanitarian & Security Division ,SAFERWORLD ,201898-103 ,"12,770.16",
DFID,DFID,29/08/2014,Aid Programme - Accountable Grant Payments ,Middle East  Humanitarian & Security Division ,SAFERWORLD ,201898-103 ,"28,673.33",
DFID,DFID,29/08/2014,Aid Programme - Accountable Grant Payments ,Middle East  Humanitarian & Security Division ,SAFERWORLD ,201898-103 ,"29,683.33",  
DFID,DFID,14/08/2014,Project delivery costs  supplier services ,East and Central Africa ,OXFORD POLICY MANAGEMENT ,202580-103 ,"34,571.25",
DFID,DFID,13/08/2014,Repairs  Maint  Alter - Removal & waste disposal services ,Group Operations ,BYWATERS ,203717-101 ,"4,392.79",
DFID,DFID,28/08/2014,Aid Programme - Accountable Grant Payments ,Middle East  Humanitarian & Security Division ,Disasters Emergency Committee ,204854-101 ,"2,000,000.00",
DFID,DFID,01/08/2014,Aid Programme - Accountable Grant Payments ,Policy Division ,European Timber Trade Federation ,201724-107 ,"55,927.86",
DFID,DFID,05/08/2014,Project delivery costs  supplier services ,Policy Division ,HTSPE LTD ,202948-124 ,"1,401.20",
DFID,DFID,07/08/2014,Aid Programme - Accountable Grant Payments ,Policy Division ,ClientEarth ,201724-125 ,"250,969.00",
DFID,DFID,28/08/2014,Aid Programme - Accountable Grant Payments ,Asia  Caribbean and Overseas Territories ,The Energy and Resources Institute (TERI) ,200754-101 ,"628,386.20",
DFID,DFID,28/08/2014,Aid Programme - Accountable Grant Payments ,Asia  Caribbean and Overseas Territories ,The Energy and Resources Institute (TERI) ,200754-104 ,"51,162.71",
DFID,DFID,21/08/2014,Aid Programme - Accountable Grant Payments ,Communications Division ,WATERAID ,202197-101 ,"74,249.00",
DFID,DFID,20/08/2014,Aid Programme - Accountable Grant Payments ,Communications Division ,ACTION AGAINST HUNGER UK ,202197-101 ,"267,696.04",
DFID,DFID,21/08/2014,Aid Programme - Accountable Grant Payments ,Communications Division ,WATERAID ,202197-101 ,"45,628.00",
DFID,DFID,07/08/2014,Aid Programme - Accountable Grant Payments ,Communications Division ,UNICEF UK ,202197-101 ,"313,746.00",
DFID,DFID,07/08/2014,Project delivery costs  supplier services ,Communications Division ,  CfBT Education Trust ,201469-106 ,"124,788.00",
DFID,DFID,21/08/2014,Aid Programme - Accountable Grant Payments ,Research and Evidence Division ,Water & Sanitation for the Urban Poor ,203583-104 ,"133,340.00",
DFID,DFID,20/08/2014,Aid Programme - Voluntary contributions ,Policy Division ,Education for All Global Monitoring Report ,203295-104 ,"350,000.00",
DFID,DFID,28/08/2014,Project delivery costs  supplier services ,West and Southern Africa ,IMC Worldwide Ltd. ,203819-103 ,"68,178.02",
DFID,DFID,28/08/2014,Project delivery costs  supplier services ,West and Southern Africa ,HTSPE LTD ,204087-101 ,"14,950.42",
DFID,DFID,07/08/2014,Aid Programme - Core contributions ,Research and Evidence Division ,MEDICAL RESEARCH COUNCIL ,201267-101 ,"2,166,500.60",
DFID,DFID,14/08/2014,Project delivery costs  supplier services ,Research and Evidence Division ,ICF Consulting Services Ltd ,201433-106 ,"88,062.50",
DFID,DFID,28/08/2014,Training Providers/Facilitation Services ,Business Solutions Division Level ,Emergn ,200001-101 ,511.93,
DFID,DFID,08/08/2014,Training Providers/Facilitation Services ,Business Solutions Division Level ,Emergn ,200001-101 ,909.25,
DFID,DFID,08/08/2014,Training Providers/Facilitation Services ,Business Solutions Division Level ,Emergn ,200001-101 ,"7,170.00",
DFID,DFID,07/08/2014,Aid Programme - Accountable Grant Payments ,Policy Division ,Disability Rights Fund Inc. ,203971-101 ,"232,680.00",
DFID,DFID,07/08/2014,Project delivery costs  supplier services ,Research and Evidence Division ,OXFORD POLICY MANAGEMENT ,203196-102 ,"74,487.50",
DFID,DFID,06/08/2014,Aid Programme - Accountable Grant Payments ,Research and Evidence Division ,European Evaluation Society ,203014-105 ,"24,881.25",
DFID,DFID,25/08/2014,Project delivery costs  supplier services ,East and Central Africa ,Jacqueline Burnett ,202315-110 ,"13,330.63",
DFID,DFID,15/08/2014,Data Network -Satellite ,Business Solutions Division Level ,VERIZON UK LIMITED ,200002-126 ,"3,170.06",
DFID,DFID,20/08/2014,Project delivery costs  supplier services ,West and Southern Africa ,HTSPE LTD ,204242-101 ,"3,029.60",
DFID,DFID,21/08/2014,Project delivery costs  supplier services ,East and Central Africa ,HTSPE LTD ,204258-101 ,"18,017.98",
DFID,DFID,04/08/2014,Consultancy Services ,West and Southern Africa ,MORSON INTERNATIONAL ,101622-106 ,"7,058.92",
DFID,DFID,13/08/2014,Aid Programme - Accountable Grant Payments ,West and Southern Africa ,Institute  for Security Studies ,203622-102 ,"37,225.74",
DFID,DFID,21/08/2014,Project delivery costs  supplier services ,West and Southern Africa ,ght training ltd ,204438-101 ,"4,020.62",
DFID,DFID,28/08/2014,Project delivery costs  supplier services ,Asia  Caribbean and Overseas Territories ,OXFORD POLICY MANAGEMENT ,202123-105 ,"16,480.39",
DFID,DFID,01/08/2014,Project delivery costs  supplier services ,Policy Division ,Peters & Peters Solicitors LLP ,200999-102 ,"12,000.00",
DFID,DFID,12/08/2014,Project delivery costs  supplier services ,East and Central Africa ,OXFORD POLICY MANAGEMENT ,202844-101 ,"29,368.35",
DFID,DFID,18/08/2014,Project delivery costs  supplier services ,East and Central Africa ,OXFORD POLICY MANAGEMENT ,202844-101 ,"99,997.10",
DFID,DFID,07/08/2014,Project delivery costs  supplier services ,East and Central Africa ,IMC Worldwide Ltd. ,200221-105 ,"364,791.53",
DFID,DFID,22/08/2014,Project delivery costs  supplier services ,Asia  Caribbean and Overseas Territories ,FAMILY HEALTH INTERNATIONAL ,113707-101 ,"343,592.48",
DFID,DFID,22/08/2014,Project delivery costs  supplier services ,Asia  Caribbean and Overseas Territories ,FAMILY HEALTH INTERNATIONAL ,113707-101 ,"263,564.00",
DFID,DFID,21/08/2014,Project delivery costs  supplier services ,Asia  Caribbean and Overseas Territories ,ICF Consulting Services Ltd ,203484-101 ,"121,086.00",
DFID,DFID,21/08/2014,Project delivery costs  supplier services ,Asia  Caribbean and Overseas Territories ,ICF Consulting Services Ltd ,203484-101 ,"3,552.00",
DFID,DFID,21/08/2014,Project delivery costs  supplier services ,Asia  Caribbean and Overseas Territories ,ICF Consulting Services Ltd ,203484-101 ,"17,844.00",
DFID,DFID,21/08/2014,Project delivery costs  supplier services ,Asia  Caribbean and Overseas Territories ,ICF Consulting Services Ltd ,203484-101 ,"10,851.00",
DFID,DFID,11/08/2014,Project delivery costs  supplier services ,Asia  Caribbean and Overseas Territories ,TEXIM OVERSEAS PVT. LTD ,203484-101 ,"1,529.93",
DFID,DFID,22/08/2014,Project delivery costs  supplier services ,Asia  Caribbean and Overseas Territories ,FAMILY HEALTH INTERNATIONAL ,203484-101 ,"16,253.00",
DFID,DFID,21/08/2014,Project delivery costs  supplier services ,Asia  Caribbean and Overseas Territories ,ICF Consulting Services Ltd ,203484-101 ,"13,652.00",
DFID,DFID,22/08/2014,Project delivery costs  supplier services ,Asia  Caribbean and Overseas Territories ,FAMILY HEALTH INTERNATIONAL ,203484-101 ,"16,253.00",
DFID,DFID,22/08/2014,Project delivery costs  supplier services ,Asia  Caribbean and Overseas Territories ,OXFORD POLICY MANAGEMENT ,114293-105 ,"47,500.00",
DFID,DFID,25/08/2014,Aid Programme - Core contributions ,East and Central Africa ,Kenya Private Sector Alliance ,203348-103 ,"284,180.00",
DFID,DFID,05/08/2014,Project delivery costs  supplier services ,Asia  Caribbean and Overseas Territories ,ICF Consulting Services Ltd ,107891-102 ,"7,764.00",
DFID,DFID,28/08/2014,Project delivery costs  supplier services ,Asia  Caribbean and Overseas Territories ,ICF Consulting Services Ltd ,107891-102 ,"17,370.00",
DFID,DFID,28/08/2014,Project delivery costs  supplier services ,Asia  Caribbean and Overseas Territories ,ICF Consulting Services Ltd ,107891-102 ,"7,130.00",
DFID,DFID,26/08/2014,Project delivery costs  supplier services ,Asia  Caribbean and Overseas Territories ,IPE Global Private Limited ,108078-101 ,"50,615.72",
DFID,DFID,26/08/2014,Project delivery costs  supplier services ,Asia  Caribbean and Overseas Territories ,IPE Global Private Limited ,108078-101 ,"19,650.14",
DFID,DFID,05/08/2014,Project delivery costs  supplier services ,Asia  Caribbean and Overseas Territories ,ICF Consulting Services Ltd ,107891-102 ,"52,109.00",
DFID,DFID,05/08/2014,Project delivery costs  supplier services ,Asia  Caribbean and Overseas Territories ,ICF Consulting Services Ltd ,107891-102 ,"17,370.00",
DFID,DFID,26/08/2014,Project delivery costs  supplier services ,Asia  Caribbean and Overseas Territories ,IPE Global Private Limited ,108078-101 ,"31,846.21",
DFID,DFID,26/08/2014,Project delivery costs  supplier services ,Asia  Caribbean and Overseas Territories ,IPE Global Private Limited ,108078-101 ,"15,312.45",
DFID,DFID,26/08/2014,Project delivery costs  supplier services ,Asia  Caribbean and Overseas Territories ,IPE Global Private Limited ,108078-101 ,"4,866.40",
DFID,DFID,21/08/2014,Aid Programme - Accountable Grant Payments ,International Finance Division ,Water & Sanitation for the Urban Poor ,203583-101 ,"813,707.00",
DFID,DFID,15/08/2014,Project delivery costs  supplier services ,Policy Division ,HTSPE LTD ,202948-123 ,"15,148.00",
DFID,DFID,28/08/2014,Aid Programme - Accountable Grant Payments ,Western Asia Division ,THE ASIA FOUNDATION ,202289-101 ,"59,300.42",
DFID,DFID,15/08/2014,Aid Programme - Accountable Grant Payments ,Asia  Caribbean and Overseas Territories ,SAFERWORLD ,203174-101 ,"30,457.00",
DFID,DFID,29/08/2014,Aid Programme - Accountable Grant Payments ,East and Central Africa ,Katuni  Consult ,203383-109 ,"14,411.00",
DFID,DFID,01/08/2014,Aid Programme - Accountable Grant Payments ,East and Central Africa ,Katuni  Consult ,203383-109 ,"14,411.00",
DFID,DFID,20/08/2014,Project delivery costs  supplier services ,West and Southern Africa ,HTSPE LTD ,200681-101 ,"166,416.12",
DFID,DFID,04/08/2014,Project delivery costs  supplier services ,West and Southern Africa ,OXFORD POLICY MANAGEMENT ,200341-101 ,"159,017.64",
DFID,DFID,28/08/2014,Project delivery costs  supplier services ,West and Southern Africa ,OXFORD POLICY MANAGEMENT ,200341-101 ,"121,991.25",
DFID,DFID,19/08/2014,Training - Course Fees ,Research and Evidence Division ,THE POLICY PRACTICE LTD ,202331-102 ,"15,275.28",
DFID,DFID,06/08/2014,Project delivery costs  supplier services ,Asia  Caribbean and Overseas Territories ,IMC Worldwide Ltd. ,203186-103 ,"99,439.10",
DFID,DFID,15/08/2014,Project delivery costs  supplier services ,East and Central Africa ,Axiom monitoring and evaluation ltd ,201294-106 ,"8,650.08",
DFID,DFID,14/08/2014,Aid Programme - Accountable Grant Payments ,West and Southern Africa ,Africa Centre for Energy ,204330-104 ,"37,951.22",
DFID,DFID,05/08/2014,Aid Programme - Accountable Grant Payments ,West and Southern Africa ,CAMFED ,202493-101 ,"1,868,576.00",
DFID,DFID,19/08/2014,Generators & spares ,East and Central Africa ,CHARLES KENDALL & PARTNERS LIMITED (PROCUREMENT) ,101628-101 ,"1,766.54",
DFID,DFID,25/08/2014,Project delivery costs  supplier services ,East and Central Africa ,BMB Mott MacDonald-PO6116 ,202946-105 ,"135,875.63",
DFID,DFID,25/08/2014,Project delivery costs  supplier services ,East and Central Africa ,BMB Mott MacDonald-PO6116 ,202946-108 ,"28,811.59",
DFID,DFID,04/08/2014,Project delivery costs  supplier services ,Policy Division ,Sightsavers ,203146-103 ,"345,340.00",
DFID,DFID,13/08/2014,Project delivery costs  supplier services ,West and Southern Africa ,HTSPE LTD ,104189-101 ,"492,212.76",
DFID,DFID,20/08/2014,Project delivery costs  supplier services ,East and Central Africa ,Mannion Daniels Limited ,203382-101 ,"19,375.82",
DFID,DFID,22/08/2014,Project delivery costs  supplier services ,West and Southern Africa ,HTSPE LTD ,203164-103 ,"19,573.20",
DFID,DFID,22/08/2014,Project delivery costs  supplier services ,West and Southern Africa ,HTSPE LTD ,203164-103 ,"8,620.11",
DFID,DFID,22/08/2014,Project delivery costs  supplier services ,West and Southern Africa ,HTSPE LTD ,203164-103 ,"109,296.72",
DFID,DFID,14/08/2014,Aid Programme - Accountable Grant Payments ,West and Southern Africa ,CAMFED ,202623-111 ,"253,374.00",
DFID,DFID,11/08/2014,DFID Purchased Relief Supplies ,West and Southern Africa ,CHARLES KENDALL & PARTNERS LIMITED (PROCUREMENT) ,202524-112 ,"1,108.83",
DFID,DFID,11/08/2014,DFID Purchased Relief Supplies ,West and Southern Africa ,CHARLES KENDALL & PARTNERS LIMITED (PROCUREMENT) ,202524-112 ,"80,977.40",
DFID,DFID,27/08/2014,Aid Programme - Accountable Grant Payments ,East and Central Africa ,ODI ,202552-102 ,"358,779.00",
DFID,DFID,07/08/2014,Project delivery costs  supplier services ,West and Southern Africa ,CHARLES KENDALL & PARTNERS LIMITED (PROCUREMENT) ,113961-106 ,807.58,
DFID,DFID,12/08/2014,Project delivery costs  supplier services ,West and Southern Africa ,CHARLES KENDALL & PARTNERS LIMITED (PROCUREMENT) ,113961-106 ,"32,048.78",
DFID,DFID,19/08/2014,Project delivery costs  supplier services ,West and Southern Africa ,CHARLES KENDALL & PARTNERS LIMITED (PROCUREMENT) ,113961-106 ,"16,788.57",
DFID,DFID,06/08/2014,Project delivery costs  supplier services ,Research and Evidence Division ,HTSPE LTD ,202242-108 ,"36,539.16",
DFID,DFID,18/08/2014,Project delivery costs  supplier services ,Research and Evidence Division ,UNIVERSITY COLLEGE LONDON ,202796-101 ,"210,834.00",
DFID,DFID,01/08/2014,Project delivery costs  supplier services ,Research and Evidence Division ,E Wylde Consulting Ltd ,202796-101 ,"3,125.00",
DFID,DFID,26/08/2014,Aid Programme - Accountable Grant Payments ,Research and Evidence Division ,BRITISH GEOLOGICAL SURVEY ,202125-108 ,"35,134.75",
DFID,DFID,29/08/2014,Project delivery costs  supplier services ,Research and Evidence Division ,HTSPE LTD ,203193-101 ,"28,783.68",
DFID,DFID,29/08/2014,Project delivery costs  supplier services ,Research and Evidence Division ,OXFORD POLICY MANAGEMENT ,203193-101 ,"33,596.40",
DFID,DFID,13/08/2014,Project delivery costs  supplier services ,East and Central Africa ,University of Wolverhampton Corporate Services ,203431-101 ,"150,974.34",
DFID,DFID,11/08/2014,Aid Programme - Accountable Grant Payments ,Policy Division ,Program for Appropriate Technology in Health ,202825-101 ,"61,756.85",
DFID,DFID,11/08/2014,Training Providers/Facilitation Services ,Communications Division ,Civil Service College Limited ,100138-101 ,915.00,
DFID,DFID,21/08/2014,Project delivery costs  supplier services ,International Finance Division ,MET OFFICE ,203809-101 ,"28,321.00",
DFID,DFID,21/08/2014,Aid Programme - Accountable Grant Payments ,West and Southern Africa ,SAIIA ,202528-101 ,"149,451.74",
DFID,DFID,06/08/2014,Electricity ,Western Asia Division ,Lahore Electrical Supply Company (LESCO) ,101624-101 ,671.49,
DFID,DFID,18/08/2014,Hostile Environment Training ,Middle East  Humanitarian & Security Division ,GroundTruth Consulting ,203940-102 ,"10,052.00",
DFID,DFID,19/08/2014,Hostile Environment Training ,Middle East  Humanitarian & Security Division ,GroundTruth Consulting ,203940-102 ,"44,130.00",
DFID,DFID,20/08/2014,Project delivery costs  supplier services ,East and Central Africa ,HTSPE LTD ,200221-105 ,"4,901.23",
DFID,DFID,28/08/2014,Project delivery costs  supplier services ,West and Southern Africa ,OXFORD POLICY MANAGEMENT ,203543-106 ,"26,738.19",
DFID,DFID,20/08/2014,Vehicle Repairs & Maintenance ,East and Central Africa ,Crown Auto Trade Co. Ltd ,202586-101 ,578.91,
DFID,DFID,20/08/2014,Vehicle Repairs & Maintenance ,East and Central Africa ,Crown Auto Trade Co. Ltd ,202594-101 ,578.91,
DFID,DFID,11/08/2014,Aid Programme - Humanitarian Material Relief Assistance and Services ,Middle East  Humanitarian & Security Division ,Internews Europe ,204854-101 ,"184,511.00",
DFID,DFID,13/08/2014,Aid Programme - Humanitarian Material Relief Assistance and Services ,Middle East  Humanitarian & Security Division ,ACTION AGAINST HUNGER UK ,204854-101 ,"402,236.00",
DFID,DFID,21/08/2014,Aid Programme - Accountable Grant Payments ,International Finance Division ,Water & Sanitation for the Urban Poor ,203583-105 ,"133,340.00",
DFID,DFID,26/08/2014,Project delivery costs  supplier services ,East and Central Africa ,HTSPE LTD ,203574-106 ,"1,502.48",
DFID,DFID,26/08/2014,Project delivery costs  supplier services ,East and Central Africa ,HTSPE LTD ,203574-112 ,"36,030.80",
DFID,DFID,01/08/2014,Project delivery costs  supplier services ,East and Central Africa ,HTSPE LTD ,203574-112 ,"33,363.05",
DFID,DFID,26/08/2014,Project delivery costs  supplier services ,East and Central Africa ,HTSPE LTD ,203574-103 ,"24,567.57",
DFID,DFID,01/08/2014,Project delivery costs  supplier services ,East and Central Africa ,HTSPE LTD ,203574-103 ,"24,008.14",
DFID,DFID,11/08/2014,Project delivery costs  supplier services ,West and Southern Africa ,CHARLES KENDALL & PARTNERS LIMITED (PROCUREMENT) ,113961-106 ,"15,886.24",
DFID,DFID,12/08/2014,Project delivery costs  supplier services ,West and Southern Africa ,CHARLES KENDALL & PARTNERS LIMITED (PROCUREMENT) ,113961-106 ,"1,602.44",
DFID,DFID,19/08/2014,Project delivery costs  supplier services ,West and Southern Africa ,CHARLES KENDALL & PARTNERS LIMITED (PROCUREMENT) ,113961-106 ,839.43,
DFID,DFID,05/08/2014,Project delivery costs  supplier services ,Communications Division ,CENTRE FOR GLOBAL EDUCATION live ,201469-104 ,"1,735.31",
DFID,DFID,15/08/2014,Project delivery costs  supplier services ,East and Central Africa ,HTSPE LTD ,203439-102 ,"19,325.00",
DFID,DFID,05/08/2014,Project delivery costs  supplier services ,Asia  Caribbean and Overseas Territories ,Global Proxima Solutions Pvt Ltd ,100114-104 ,656.69,
DFID,DFID,04/08/2014,Project delivery costs  supplier services ,Asia  Caribbean and Overseas Territories ,Akhtar Imam ,107370-103 ,"5,500.00",
DFID,DFID,07/08/2014,Furniture & Fittings ,West and Southern Africa ,CHARLES KENDALL & PARTNERS LIMITED (PROCUREMENT) ,101618-101 ,"9,619.03",
DFID,DFID,21/08/2014,Project delivery costs  supplier services ,Middle East  Humanitarian & Security Division ,TONY BENNETT ,201705-101 ,"7,259.72",
DFID,DFID,26/08/2014,Project delivery costs  supplier services ,Asia  Caribbean and Overseas Territories ,Web Werks India Pvt. Ltd. ,114506-101 ,764.68,
DFID,DFID,28/08/2014,Aid Programme - Accountable Grant Payments ,East and Central Africa ,Helen Keller International-Tanzania ,202480-101 ,"151,807.48",
DFID,DFID,28/08/2014,Project delivery costs  supplier services ,East and Central Africa ,OXFORD POLICY MANAGEMENT ,202377-103 ,"22,838.00",
DFID,DFID,28/08/2014,Project delivery costs  supplier services ,East and Central Africa ,OXFORD POLICY MANAGEMENT ,202377-103 ,"29,100.00",
DFID,DFID,29/08/2014,Project delivery costs  supplier services ,East and Central Africa ,OXFORD POLICY MANAGEMENT ,202377-103 ,"36,000.00",
DFID,DFID,26/08/2014,Project delivery costs  supplier services ,East and Central Africa ,JH Media ,202913-101 ,"5,250.00",
DFID,DFID,28/08/2014,Project delivery costs  supplier services ,East and Central Africa ,Not To Scale ,202913-101 ,"22,503.18",
DFID,DFID,18/08/2014,Project delivery costs  supplier services ,Asia  Caribbean and Overseas Territories ,OXFORD POLICY MANAGEMENT ,202123-105 ,"30,070.56",
DFID,DFID,18/08/2014,Project delivery costs  supplier services ,Asia  Caribbean and Overseas Territories ,OXFORD POLICY MANAGEMENT ,202123-105 ,"25,839.31",
DFID,DFID,11/08/2014,DFID Purchased Relief Supplies ,East and Central Africa ,CHARLES KENDALL & PARTNERS LIMITED (PROCUREMENT) ,202547-103 ,"27,273.99",
DFID,DFID,11/08/2014,Project delivery costs  supplier services ,East and Central Africa ,CHARLES KENDALL & PARTNERS LIMITED (PROCUREMENT) ,202547-103 ,"1,363.70",
DFID,DFID,22/08/2014,Project delivery costs  supplier services ,Asia  Caribbean and Overseas Territories ,S Barakzai ,203012-101 ,"98,898.16",
DFID,DFID,19/08/2014,Project delivery costs  supplier services ,Asia  Caribbean and Overseas Territories ,IMC Worldwide Ltd. ,203463-101 ,"160,519.20",
DFID,DFID,27/08/2014,Project delivery costs  supplier services ,Trade for Development Division ,SAANA CONSULTING LTD ,203524-102 ,"17,479.00",
DFID,DFID,29/08/2014,Project delivery costs  supplier services ,Asia  Caribbean and Overseas Territories ,OXFORD POLICY MANAGEMENT ,203186-105 ,"200,042.89",
DFID,DFID,12/08/2014,Aid Programme - Accountable Grant Payments ,Policy Division ,Program for Appropriate Technology in Health ,203663-101 ,"300,000.00",
DFID,DFID,21/08/2014,DFID Purchased Relief Supplies ,West and Southern Africa ,CHARLES KENDALL & PARTNERS LIMITED (PROCUREMENT) ,202214-106 ,"88,170.09",
DFID,DFID,22/08/2014,DFID Purchased Relief Supplies ,West and Southern Africa ,CHARLES KENDALL & PARTNERS LIMITED (PROCUREMENT) ,202214-106 ,"95,774.05",
DFID,DFID,22/08/2014,DFID Purchased Relief Supplies ,West and Southern Africa ,CHARLES KENDALL & PARTNERS LIMITED (PROCUREMENT) ,202214-106 ,"2,910.19",
DFID,DFID,28/08/2014,DFID Purchased Relief Supplies ,West and Southern Africa ,CHARLES KENDALL & PARTNERS LIMITED (PROCUREMENT) ,202214-106 ,"36,674.64",
DFID,DFID,28/08/2014,DFID Purchased Relief Supplies ,West and Southern Africa ,CHARLES KENDALL & PARTNERS LIMITED (PROCUREMENT) ,202214-106 ,"23,458.08",
DFID,DFID,25/08/2014,DFID Purchased Relief Supplies ,West and Southern Africa ,CHARLES KENDALL & PARTNERS LIMITED (PROCUREMENT) ,202214-106 ,"105,111.99",
DFID,DFID,26/08/2014,DFID Purchased Relief Supplies ,West and Southern Africa ,CHARLES KENDALL & PARTNERS LIMITED (PROCUREMENT) ,202214-106 ,"2,061.94",
DFID,DFID,28/08/2014,DFID Purchased Relief Supplies ,West and Southern Africa ,CHARLES KENDALL & PARTNERS LIMITED (PROCUREMENT) ,202214-106 ,"2,281.08",
DFID,DFID,22/08/2014,DFID Purchased Relief Supplies ,West and Southern Africa ,CHARLES KENDALL & PARTNERS LIMITED (PROCUREMENT) ,202214-106 ,"43,130.54",
DFID,DFID,28/08/2014,DFID Purchased Relief Supplies ,West and Southern Africa ,CHARLES KENDALL & PARTNERS LIMITED (PROCUREMENT) ,202214-106 ,"116,838.43",
DFID,DFID,22/08/2014,DFID Purchased Relief Supplies ,West and Southern Africa ,CHARLES KENDALL & PARTNERS LIMITED (PROCUREMENT) ,202214-106 ,"48,495.96",
DFID,DFID,28/08/2014,DFID Purchased Relief Supplies ,West and Southern Africa ,CHARLES KENDALL & PARTNERS LIMITED (PROCUREMENT) ,202214-106 ,523.24,
DFID,DFID,22/08/2014,DFID Purchased Relief Supplies ,West and Southern Africa ,CHARLES KENDALL & PARTNERS LIMITED (PROCUREMENT) ,202214-106 ,"21,642.52",
DFID,DFID,22/08/2014,DFID Purchased Relief Supplies ,West and Southern Africa ,CHARLES KENDALL & PARTNERS LIMITED (PROCUREMENT) ,202214-106 ,"1,224.48",
DFID,DFID,22/08/2014,DFID Purchased Relief Supplies ,West and Southern Africa ,CHARLES KENDALL & PARTNERS LIMITED (PROCUREMENT) ,202214-106 ,"126,219.53",
DFID,DFID,22/08/2014,DFID Purchased Relief Supplies ,West and Southern Africa ,CHARLES KENDALL & PARTNERS LIMITED (PROCUREMENT) ,202214-106 ,"1,119.91",
DFID,DFID,28/08/2014,DFID Purchased Relief Supplies ,West and Southern Africa ,CHARLES KENDALL & PARTNERS LIMITED (PROCUREMENT) ,202214-106 ,541.57,
DFID,DFID,20/08/2014,DFID Purchased Relief Supplies ,West and Southern Africa ,CHARLES KENDALL & PARTNERS LIMITED (PROCUREMENT) ,202214-106 ,"7,931.87",
DFID,DFID,20/08/2014,DFID Purchased Relief Supplies ,West and Southern Africa ,CHARLES KENDALL & PARTNERS LIMITED (PROCUREMENT) ,202214-106 ,"4,275.59",
DFID,DFID,28/08/2014,DFID Purchased Relief Supplies ,West and Southern Africa ,CHARLES KENDALL & PARTNERS LIMITED (PROCUREMENT) ,202214-106 ,"43,761.20",
DFID,DFID,20/08/2014,DFID Purchased Relief Supplies ,West and Southern Africa ,CHARLES KENDALL & PARTNERS LIMITED (PROCUREMENT) ,202214-106 ,"16,969.33",
DFID,DFID,20/08/2014,DFID Purchased Relief Supplies ,West and Southern Africa ,CHARLES KENDALL & PARTNERS LIMITED (PROCUREMENT) ,202214-106 ,"76,144.10",
DFID,DFID,20/08/2014,DFID Purchased Relief Supplies ,West and Southern Africa ,CHARLES KENDALL & PARTNERS LIMITED (PROCUREMENT) ,202214-106 ,"138,237.92",
DFID,DFID,28/08/2014,DFID Purchased Relief Supplies ,West and Southern Africa ,CHARLES KENDALL & PARTNERS LIMITED (PROCUREMENT) ,202214-106 ,"3,609.01",
DFID,DFID,25/08/2014,DFID Purchased Relief Supplies ,West and Southern Africa ,CHARLES KENDALL & PARTNERS LIMITED (PROCUREMENT) ,202214-106 ,"155,959.82",
DFID,DFID,20/08/2014,DFID Purchased Relief Supplies ,West and Southern Africa ,CHARLES KENDALL & PARTNERS LIMITED (PROCUREMENT) ,202214-106 ,"119,684.46",
DFID,DFID,25/08/2014,DFID Purchased Relief Supplies ,West and Southern Africa ,CHARLES KENDALL & PARTNERS LIMITED (PROCUREMENT) ,202214-106 ,"2,239.95",
DFID,DFID,27/08/2014,DFID Purchased Relief Supplies ,West and Southern Africa ,CHARLES KENDALL & PARTNERS LIMITED (PROCUREMENT) ,202214-106 ,"83,347.51",
DFID,DFID,28/08/2014,DFID Purchased Relief Supplies ,West and Southern Africa ,CHARLES KENDALL & PARTNERS LIMITED (PROCUREMENT) ,202214-106 ,605.01,
DFID,DFID,22/08/2014,DFID Purchased Relief Supplies ,West and Southern Africa ,CHARLES KENDALL & PARTNERS LIMITED (PROCUREMENT) ,202214-106 ,"114,229.60",
DFID,DFID,08/08/2014,Research & Development costs ,Research and Evidence Division ,Natural Environment Research Council ,203774-101 ,"150,000.00",
DFID,DFID,14/08/2014,Project delivery costs  supplier services ,Middle East  Humanitarian & Security Division ,SixtyOne Whitehall ,203939-103 ,"3,240.00",
DFID,DFID,14/08/2014,Project delivery costs  supplier services ,Middle East  Humanitarian & Security Division ,SixtyOne Whitehall ,203939-103 ,"2,160.00",
DFID,DFID,14/08/2014,Project delivery costs  supplier services ,Middle East  Humanitarian & Security Division ,SixtyOne Whitehall ,203939-103 ,"4,536.00",
DFID,DFID,14/08/2014,Project delivery costs  supplier services ,Middle East  Humanitarian & Security Division ,SixtyOne Whitehall ,203939-103 ,"1,992.00",
DFID,DFID,14/08/2014,Project delivery costs  supplier services ,Middle East  Humanitarian & Security Division ,SixtyOne Whitehall ,203939-103 ,"1,320.00",
DFID,DFID,14/08/2014,Project delivery costs  supplier services ,West and Southern Africa ,ICF Consulting Services Ltd ,201433-107 ,"88,062.50",
DFID,DFID,21/08/2014,Aid Programme - Accountable Grant Payments ,Research and Evidence Division ,Water & Sanitation for the Urban Poor ,203583-103 ,"366,000.00",
DFID,DFID,15/08/2014,Project delivery costs  supplier services ,Policy Division ,HTSPE LTD ,202948-120 ,"11,518.96",
DFID,DFID,22/08/2014,Medical/Health Services ,East and Central Africa ,Britam Insurance Company Ltd ,202594-101 ,"1,524.90",
DFID,DFID,21/08/2014,Project delivery costs  supplier services ,Western Asia Division ,HTSPE LTD ,202491-102 ,"113,041.75",
DFID,DFID,21/08/2014,Aid Programme - Challenge Fund payments ,Western Asia Division ,HTSPE LTD ,202491-106 ,"42,938.00",
DFID,DFID,11/08/2014,Project delivery costs  supplier services ,Asia  Caribbean and Overseas Territories ,OXFORD POLICY MANAGEMENT ,202744-101 ,"34,451.40",
DFID,DFID,04/08/2014,Aid Programme - Accountable Grant Payments ,Asia  Caribbean and Overseas Territories ,THE ASIA FOUNDATION ,202798-102 ,"338,095.52",
DFID,DFID,04/08/2014,Aid Programme - Accountable Grant Payments ,Policy Division ,Vital Voices Global Partnership ,202882-103 ,"62,150.23",
DFID,DFID,19/08/2014,Project delivery costs  supplier services ,Western Asia Division ,OXFORD POLICY MANAGEMENT ,202367-103 ,"316,819.65",
DFID,DFID,01/08/2014,Project delivery costs  supplier services ,West and Southern Africa ,OXFORD POLICY MANAGEMENT ,202623-114 ,"49,250.55",
DFID,DFID,26/08/2014,Project delivery costs  supplier services ,West and Southern Africa ,OXFORD POLICY MANAGEMENT ,203811-106 ,"37,402.07",
DFID,DFID,19/08/2014,Project delivery costs  supplier services ,East and Central Africa ,IMC Worldwide Ltd. ,202347-105 ,"11,125.00",
DFID,DFID,20/08/2014,Aid Programme - Accountable Grant Payments ,Policy Division ,International Relief and Development ,202921-123 ,"39,477.99",
DFID,DFID,28/08/2014,Project delivery costs  supplier services ,East and Central Africa ,SeeSaw ,204436-102 ,"21,348.25",
DFID,DFID,04/08/2014,Aid Programme - Core contributions ,Policy Division ,INTOSAI Development Initiative ,203176-102 ,"73,302.32",
DFID,DFID,22/08/2014,Aid Programme - Accountable Grant Payments ,Middle East  Humanitarian & Security Division ,Namati ,202186-102 ,"193,610.82",
DFID,DFID,22/08/2014,other information and communication technologies ,Western Asia Division ,Supplier Name withheld ,101601-110 ,"17,651.98",
DFID,DFID,22/08/2014,other information and communication technologies ,Western Asia Division ,Supplier Name withheld ,100011-110 ,"2,407.09",
DFID,DFID,24/08/2014,Office Supplies ,Asia  Caribbean and Overseas Territories ,Lotus Stationery & Computers ,100025-101 ,627.41,
DFID,DFID,19/08/2014,Aid Programme - Accountable Grant Payments ,International Finance Division ,Microfinance Information Exchange  Inc. ,201394-104 ,"41,217.00",
DFID,DFID,07/08/2014,Data Network - land lines ,Business Solutions Division Level ,Level 3 ,200002-117 ,"55,369.01",UK Telephony Charges for 3 months (April to June 2014) 
DFID,DFID,15/08/2014,Data Network -Satellite ,Business Solutions Division Level ,Level 3 ,200002-117 ,516.00,
DFID,DFID,04/08/2014,Aid Programme - Voluntary contributions ,Middle East  Humanitarian & Security Division ,African Development Bank TFT ,203236-108 ,"400,000.00",
DFID,DFID,01/08/2014,Aid Programme - Accountable Grant Payments ,West and Southern Africa ,THET Zambia ,203543-102 ,"111,010.00",
DFID,DFID,13/08/2014,Aid Programme - Accountable Grant Payments ,Asia  Caribbean and Overseas Territories ,Institute for Human Rights and Business ,203601-107 ,"132,334.49",
DFID,DFID,14/08/2014,Hostile Environment Training ,Middle East  Humanitarian & Security Division ,College of Policing Ltd ,204309-102 ,"43,421.53",
DFID,DFID,18/08/2014,Aid Programme - Joint programme contribution ,West and Southern Africa ,National Crime Agency ,204048-101 ,"116,519.03",
DFID,DFID,06/08/2014,Aid Programme - Accountable Grant Payments ,Asia  Caribbean and Overseas Territories ,Public Health Foundation of India (GB) ,203224-105 ,"24,083.00",
DFID,DFID,25/08/2014,Project delivery costs  supplier services ,Business Solutions Division Level ,Info-Assure LTD ,200003-165 ,"5,400.00",
DFID,DFID,25/08/2014,Project delivery costs  supplier services ,Business Solutions Division Level ,Info-Assure LTD ,200003-165 ,960.00,
DFID,DFID,26/08/2014,Professional member subscriptions ,Human Resources ,ODN Europe ,100269-148 ,"1,411.20",
DFID,DFID,28/08/2014,Data Network - land lines ,Business Solutions Division Level ,Vodacom Business Nigeria USD ,200002-121 ,"1,456.45",
DFID,DFID,28/08/2014,Data Network - land lines ,Business Solutions Division Level ,Vodacom Business Nigeria USD ,200002-121 ,599.96,
DFID,DFID,28/08/2014,Data Network - land lines ,Business Solutions Division Level ,Vodacom Business Nigeria USD ,203329-102 ,"1,164.64",
DFID,DFID,28/08/2014,Data Network - land lines ,Business Solutions Division Level ,Vodacom Business Nigeria USD ,203329-102 ,"2,827.24",
DFID,DFID,27/08/2014,Aid Programme - Accountable Grant Payments ,Asia  Caribbean and Overseas Territories ,Chinese Academy of International Trade and Economic Cooperation ,203174-101 ,"42,200.63",
DFID,DFID,28/08/2014,Medical/Health Services ,West and Southern Africa ,GP Supplies Limited ,101620-101 ,"1,493.75",
